{"text_format":"1","workbook":"xlsx","n_sheets":6,"sheets":["Broker & Insured Information","Smart Application","SOV","Commercial Unit Details","Printable App","RPA Data"],"not_rendered":{"charts":0,"images":8,"macros":1,"external_links":0,"defined_names":5,"comments":0,"pivot_tables":0},"unopened":[],"bounds":{"document_bytes":16777216,"sheet_cells":100000,"rows_first":2000,"rows_last":500,"rows_between":2000,"halvings":0,"cell_chars":16384,"cell_head_chars":4096},"cells_cut":0,"cells_raw":0,"read":"whole","date_system":"1900"}

{"sheet":"Broker & Insured Information","index":0,"n_rows":57,"n_cols":7,"rows_kept":57,"cut":false,"hidden":false,"merged":[[51,2,51,7],[48,2,48,3],[45,2,45,3],[46,2,46,3],[47,2,47,3],[32,3,32,5],[33,2,33,5],[49,2,49,5],[5,2,5,3],[4,2,4,7],[17,2,17,7],[7,2,7,7],[36,2,36,7],[29,3,29,5],[30,3,30,5],[31,3,31,5]]}
[]
[]
[]
[]
[null,null,"The Community Association Package brings Property and General Liability together competitively into one easy-to-complete application. It was designed by real estate liability insurance veterans who applied their industry expertise to deliver a unique solution for community associations."]
[null,null,"•  Condominium associations (COA)",null,"•  Homeowners associations (HOA)","•  Cooperatives (COOP)","•  Planned unit developments (PUD)"]
[]
[null,null,"Broker Contact Details"]
[null,null,null,"Brokerage Office Name:"]
[null,null,null,"Broker Contact Name:"]
[null,null,null,"Brokerage  Office Address:"]
[null,null,null,"City:"]
[null,null,null,"State:"]
[null,null,null,"Zip Code:"]
[null,null,null,"Does your brokerage control the account?"]
[]
[]
[null,null,"Insured Contact and Management Details"]
[null,null,null,"Proposed Insured Name:"]
[null,null,null,"Proposed Insured Mailing Address:"]
[]
[null,null,null,"City:"]
[null,null,null,"State:"]
[null,null,null,"Zip Code:"]
[]
[null,null,null,"Inspection Contact Name:",null,"Number of Association Employees (if any):"]
[null,null,null,"Inspection Contact Phone Number:",null,"Is an independent property management firm utilized?"]
[null,null,null,"Inspection Contact E-mail Address:",null,"Property Management Firm Name (if applicable):"]
[]
[null,null,null,"Does the association or property management firm hire independent contractors?"]
[null,null,null,"Is snow clearance of common areas the responsibility of the Association or is it contracted to a 3rd party?"]
[null,null,null,"Is street or road maintenance the responsibility of the association or  contracted to a 3rd party?"]
[null,null,null,"Does the Association use security personnel or contract it via a 3rd party?"]
[null,null,"Do employees or volunteers use personal automobiles on behalf of the association, either on a weekly or daily basis?"]
[]
[]
[null,null,"Association & Amenity Information"]
[]
[null,null,null,"Proposed Insured Physical Address:",null,"Proposed Effective Date:"]
[null,null,null,"City:",null,"Proposed Expiration Date (edit if needed):"]
[null,null,null,"State:",null,"Quote Need By Date:"]
[null,null,null,"County:",null,"Target Premium:"]
[null,null,null,"Zip Code:",null,"Expiring Premium:"]
[null,null,null,null,null,"Expiring Carrier:"]
[]
[null,null,"Association Type:",null,null,"Year First Construction Completed:"]
[null,null,"*Number of Habitational Buildings Association Must Insure:",null,null,"*Total Number of Pools, Spas, and/or Saunas:"]
[null,null,"*Number of Amenity, Services, or Commercial Buildings:",null,null,"*Is there a restaurant on premises?"]
[null,null,"*Is any space leased to a commercial or professional tenant?",null,null,"*Is there a clubhouse?"]
[null,null,"Are there any bodies of water such as lakes, ponds, retention basins, canals, lagoons or rivers on or next to the premises?"]
[]
[null,null,"*Supplemental applications are required when Association is responsible for habitational structures or has commercial occupancies."]
[]
[null,null,null,"Total Number of Units:",null,"Average Market Value of a Unit:"]
[null,null,null,"Is the Association fully built-out?",null,"Total Unit Count Expected When Complete:"]
[null,null,null,"Units Owned by the Association:",null,"Units Owned by developer/sponsor:"]
[null,null,null,"Number of units rented (annual basis):",null,"Units Owned by financial institution:"]

{"sheet":"Smart Application","index":1,"n_rows":407,"n_cols":21,"rows_kept":407,"cut":false,"hidden":false,"merged":[[301,11,301,12],[348,10,348,21],[329,8,329,21],[339,9,339,21],[32,9,32,21],[340,9,340,21],[296,11,296,12],[297,11,297,12],[298,11,298,12],[299,11,299,12],[300,11,300,12],[308,11,308,12],[309,11,309,12],[310,11,310,12],[311,11,311,12],[312,11,312,12],[378,8,378,21],[373,9,373,21],[370,9,370,13],[358,13,358,14],[359,13,359,14],[360,13,360,14],[361,13,361,14],[362,13,362,14],[371,13,371,14],[372,13,372,14],[367,13,367,14],[374,9,374,21],[9,9,9,20],[155,9,155,21],[156,10,156,21],[62,8,62,21],[34,8,34,21],[66,9,66,21],[45,8,45,21],[46,9,46,21],[121,10,121,21],[60,10,60,21],[26,9,26,21],[31,9,31,21],[25,9,25,21],[302,11,302,12],[303,11,303,12],[305,11,305,12],[306,11,306,12],[307,11,307,12],[294,9,294,21],[292,9,292,21],[129,10,129,21],[264,9,264,21],[165,10,165,21],[219,10,219,21],[197,8,197,21],[290,9,290,21],[288,9,288,21],[225,10,225,21],[230,10,230,21],[233,10,233,21],[262,9,262,21],[159,9,159,21],[391,7,391,21],[394,8,394,21],[381,7,381,21],[383,7,383,21],[385,7,385,21],[387,7,387,21],[389,7,389,21],[357,13,357,14],[323,10,323,21],[368,9,368,12],[368,13,368,14],[369,13,369,14],[341,9,341,21],[343,9,343,21],[355,13,355,14],[356,13,356,14],[349,8,349,21],[369,9,369,12],[363,13,363,14],[365,13,365,14],[326,9,326,21],[354,8,354,21]]}
["Show",null,"Yes"]
["Show",null,"No"]
["Show"]
["Show"]
["Show/Hide","Dependent?","Logic","Input Field?","Dynamic?","Input Type"]
["Show","No","n/a","No","No","Heading",null,null,"The following buildings / exposures / amenities / claims history are either not eligible or eligible:"]
["Show","Heading","Heading","No","No","Heading",null,null,"Associations that offer the following amenities, services, activities or can otherwise be described as the following are ineligible risks:"]
["Show","No","n/a","No","No","FYI",null,null,null,"A.       Associations where more than 50% of units are rented on an annual basis."]
["Show","No","n/a","No","No","FYI",null,null,null,"B.       Associations that allow unit owners to sublease for less than 12 months."]
["Show","No","n/a","No","No","FYI",null,null,null,"C.       Associations where the property management firm’s employees perform any maintenance or service work on property that is owned by unit owners, or on behalf of individual unit owners."]
["Show","No","n/a","No","No","FYI",null,null,null,"D.       Associations where public or non-owner pool access of any kind is offered, including events."]
["Show","No","n/a","No","No","FYI",null,null,null,"E.        Associations with pools featuring diving board(s) and/or water slide(s)."]
["Show","No","n/a","No","No","FYI",null,null,null,"F.        Associations that permit Sponsored Athletic teams, such as swim teams are permitted pool access."]
["Show","No","n/a","No","No","FYI",null,null,null,"G.       Associations with tanning beds or tanning salons that are owned, operated or maintained by the insured."]
["Show","No","n/a","No","No","FYI",null,null,null,"H.       Associations with Passenger Transportation Services, whether provided by the insured or contracted out to a third party."]
["Show","No","n/a","No","No","FYI",null,null,null,"I.          Associations that permit the use of ATV’s and recreational vehicles including golf carts used to transport residents."]
["Show","No","n/a","No","No","FYI",null,null,null,"J.         Associations that permit hunting, archery, indoor, outdoor trap and skeet shooting ranges."]
["Show","No","n/a","No","No","FYI",null,null,null,"K.        Associations with armed guard (no exceptions for Courtesy Officers) and/or guard dog services of any kind."]
["Show","No","n/a","No","No","FYI",null,null,null,"L.        Association-provided stable or equestrian amenities."]
["Show","No","n/a","No","No","FYI",null,null,null,"M.     Association-provided ski areas including skiing activities, water skiing and water ski jets."]
["Show","No","n/a","No","No","FYI",null,null,null,"N.       Association-provided and/or owned day care, in-home daycare, medical and nursing operations of any kind."]
["Show","No","n/a","No","No","FYI",null,null,null,"O.       Association-owned and/or operated golf courses."]
["Show","No","n/a","No","No","Space",null,null,null,"P.        Associations with Aircraft and Aviation exposures, airports, and/or landing strips of any kind."]
["Show","Heading","Heading","No","No","Heading"]
["Show","No","n/a","No","No","FYI",null,null,"Associations with Buildings and/or Property that have the following features are not eligible:"]
[null,null,null,null,null,null,null,null,null,"Q.     Buildings with an effective age over 20 years that have not had the roof, HVAC, plumbing, and electrical systems updated. Effective age means the last complete renovation or replacement of the above components. "]
["Show","No","n/a","No","No","FYI",null,null,null,"R.     Habitational buildings with occupancy of less than 75% of total units, unless new construction or gut rehabbed within one year of the proposed effective date of coverage. A certificate of occupancy must be issued prior to the effective date of coverage. No single individual buildings can be completely vacant. "]
["Show","No","n/a","No","No","FYI",null,null,null,"S.      Buildings or garages with man lifts."]
["Show","No","n/a","No","No","FYI",null,null,null,"T.       Buildings with common areas that exceed 3 stories in height."]
["Show","No","n/a","No","No","FYI",null,null,null,"U.       Common areas, buildings, or individual units with any identified construction defects."]
["Show","No","n/a","No","No","FYI",null,null,null,"V.      Common areas, buildings, or individual units with polybutylene or galvanized plumbing."]
["Show","No","n/a","No","No","FYI",null,null,null,"W.      Common areas, buildings, or individual units with electric systems featuring fuse panels or that otherwise utilize fuses and/or electric systems utilizing knob and tube wiring. Federal Pacific Stab Lok circuit breakers and panels are ineligible. "]
["Show","No","n/a","No","No","FYI",null,null,null,"X.     Common areas, buildings, or individual units with any aluminum wiring other than the main feed line. Aluminum wiring to major appliance connections is acceptable."]
["Show","No","n/a","No","No","FYI",null,null,null,"Y.      Associations with any building or common element, etc which currently contains asbestos and/or lead paint"]
["Show","No","n/a","Yes","No","Checkbox",null,null,"By confirming via this box I acknowledge that I have read items above and agree that all exposures within this association complies."]
["Show","No","n/a","No","No","Space"]
["Show","Heading","Heading","No","No","Heading",null,null,"Residential Ownership and Occupancy Details"]
["Show","No","n/a","Yes","No","Y/N",null,null,null,"Is the developer/builder/sponsor or their representatives on the board?"]
["Show","No","n/a","Yes","No","Y/N",null,null,null,"Does association have any ownership or rental restrictions for owners or residents?"]
[{"$f":"IF(OR('Broker & Insured Information'!$E$57<>0,'Broker & Insured Information'!$E$57=\"\"),\"Show\",\"Hide\")","v":"Show"},"Yes","Units rented >0","No","No","PAGE 1 Data Point",null,{"$f":"'Broker & Insured Information'!$E$57","v":0},null,"Units Rented on an Annual Basis"]
[{"$f":"IF(OR('Broker & Insured Information'!$E$57<>0,'Broker & Insured Information'!$E$57=\"\"),\"Show\",\"Hide\")","v":"Show"},"Yes","Units rented >0","Yes","No","Y/N",null,null,null,null,"Are the rules governing use of the unit and emergency procedures provided?"]
[{"$f":"IF(OR('Broker & Insured Information'!$E$57<>0,'Broker & Insured Information'!$E$57=\"\"),\"Show\",\"Hide\")","v":"Show"},"Yes","Units rented >0","Yes","No","List",null,null,null,null,"Who provides the emergency procedures to the tenant?"]
[{"$f":"IF(OR('Broker & Insured Information'!$E$57<>0,'Broker & Insured Information'!$E$57=\"\"),\"Show\",\"Hide\")","v":"Show"},"Yes","Units rented >0","Yes","No","Y/N",null,null,null,null,"Is proof of insurance obtained from all tenants?"]
["Show","No","n/a","No","No","Space"]
["Show","Heading","Heading","No","No","Heading",null,null,"Risk Transfer"]
["Show","No","n/a","No","No","FYI",null,null,"The following risk transfer requirements must be obtained through written contract for all but not limited to the following business relationships: commercial tenants; 3rd party vendors; rental or reserving of association grounds or buildings; contractors providing services such as snow removal, elevator maintenance, security, road maintenance, restaurants, outside life guard services and valet parking."]
["Show","No","n/a","No","No","FYI",null,null,null,"3rd Party Contractors or Service Providers as Indicated previously (but requirement is not limited to):"]
["Show","Yes","Always Show","No","No","FYI",null,null,null,null,"Association-hired or property management firm-hired independent contractors"]
["Show","Yes","Always Show","No","No","FYI",null,null,null,null,"Snow clearance 3rd party contractor"]
["Show","Yes","Always Show","No","No","FYI",null,null,null,null,"Street or road maintenance 3rd party contractor"]
["Show","Yes","Always Show","No","No","FYI",null,null,null,null,"Security personnel 3rd party contractor"]
["Show","Yes","Always Show","No","No","FYI",null,null,null,null,"Commerical Tenant"]
["Show","No","Always Show","No","No","FYI",null,null,null,null,"Solar panel installation/maintenance/leasing/contracting of any kind"]
["Show","No","n/a","No","No","FYI",null,null,null,null,"Requirement is applicable for any 3rd Party Contractor or Service Provider not specifically mentioned"]
["Show","No","n/a","No","No","Space"]
["Show","No","n/a","No","No","FYI",null,null,null,"Risk Transfer Requirements for all 3rd party relationships include:"]
["Show","No","n/a","No","No","FYI",null,null,null,null,"Written contract must be in place"]
["Show","No","n/a","No","No","FYI",null,null,null,null,"Current certificates of insurance must be collected"]
["Show","No","n/a","No","No","FYI",null,null,null,null,"Association must be named as an additional insured"]
["Show","No","n/a","No","No","FYI",null,null,null,null,"Liability limits must be at least $1M per Occurrence with a $2M General Aggregate"]
["Show","No","n/a","No","No","FYI",null,null,null,null,"3rd paty contractor/service provider must provide a hold harmless or indemnification agreement that is favorable to the association."]
["Show","No","n/a","No","No","FYI",null,null,null,null,"Association cannot indemnify or hold harmless any independent contractor by contractual agreement."]
["Show","No","n/a","Yes","No","Checkbox",null,null,"By confirming via this box I acknowledge that I have read items above and agree that all exposures within this association complies."]
["Show","No","N/a","No","No","Space"]
["Show","Heading","Heading","No","No","Heading",null,null," Commercial/Professional Exposures (Where Applicable)"]
["Show","Source","Is commercial?","No","No","PAGE 1 Data Point",null,{"$f":"'Broker & Insured Information'!$E$49","v":0},null,"Is there any space leased to a commercial or professional tenant?"]
[{"$f":"IF(OR('Broker & Insured Information'!$E$49=\"Yes\",'Broker & Insured Information'!$E$49=\"\"),\"Show\",\"Hide\")","v":"Show"},"Yes","Commercial Tenant = Y","No","No","Heading",null,null,null,"For each commercial or professional occupant be prepared to provide the following on the Commercial Unit Details Tab (see the bottom of the workbook)"]
[{"$f":"IF(OR('Broker & Insured Information'!$E$49=\"Yes\",'Broker & Insured Information'!$E$49=\"\"),\"Show\",\"Hide\")","v":"Show"},"Yes","Commercial Tenant = Y","Yes","No","Text",null,null,null,null,"Business\nName"]
[{"$f":"IF(OR('Broker & Insured Information'!$E$49=\"Yes\",'Broker & Insured Information'!$E$49=\"\"),\"Show\",\"Hide\")","v":"Show"},"Yes","Commercial Tenant = Y","Yes","No","Text",null,null,null,null,"Type of\nBusiness"]
[{"$f":"IF(OR('Broker & Insured Information'!$E$49=\"Yes\",'Broker & Insured Information'!$E$49=\"\"),\"Show\",\"Hide\")","v":"Show"},"Yes","Commercial Tenant = Y","Yes","No","Data Point",null,null,null,null,"Unit #"]
[{"$f":"IF(OR('Broker & Insured Information'!$E$49=\"Yes\",'Broker & Insured Information'!$E$49=\"\"),\"Show\",\"Hide\")","v":"Show"},"Yes","Commercial Tenant = Y","Yes","No","Data Point",null,null,null,null,"Square\nFootage"]
[{"$f":"IF(OR('Broker & Insured Information'!$E$49=\"Yes\",'Broker & Insured Information'!$E$49=\"\"),\"Show\",\"Hide\")","v":"Show"},"Yes","Commercial Tenant = Y","Yes","No","Y/N",null,null,null,null,"Owned by\nAssociation?"]
[{"$f":"IF(OR('Broker & Insured Information'!$E$49=\"Yes\",'Broker & Insured Information'!$E$49=\"\"),\"Show\",\"Hide\")","v":"Show"},"Yes","Commercial Tenant = Y","Yes","No","Y/N",null,null,null,null,"Rented by Association? If yes, attach Certificate of Ins."]
["Show","No","N/a","No","No","Space"]
["Show","Heading","Heading","No","No","Heading",null,null,"Association Employees/Volunteers"]
["Show","No","n/a","No","No","PAGE 1 Data Point",null,{"$f":"'Broker & Insured Information'!$G$26","v":0},null,"Number of Association Employees (if any):"]
[{"$f":"IF(OR('Broker & Insured Information'!$G$26<>0,'Broker & Insured Information'!$G$26=\"\"),\"Show\",\"Hide\")","v":"Show"},"Yes","Employee Count <>0","Yes","No","Y/N",null,null,null,"Do any employees have maintenance responsibilities?"]
[{"$f":"IF(OR('Broker & Insured Information'!$G$26<>0,'Broker & Insured Information'!$G$26=\"\"),\"Show\",\"Hide\")","v":"Show"},"Yes","Employee Count <>0","Yes","No","Y/N",null,null,null,"Do any employees perform road maintenance, snow removal, roofing, HVAC unit or boiler repair?"]
[{"$f":"IF(OR('Broker & Insured Information'!$G$26<>0,'Broker & Insured Information'!$G$26=\"\"),\"Show\",\"Hide\")","v":"Show"},"Yes","Employee Count <>0","Yes","No","Y/N",null,null,null,"Do association employees perform any maintenance or service work on property owned by unit owners?"]
[{"$f":"IF(OR('Broker & Insured Information'!$G$26<>0,'Broker & Insured Information'!$G$26=\"\"),\"Show\",\"Hide\")","v":"Show"},"Yes","Employee Count <>0","Yes","No","Y/N",null,null,null,null,"Is a signed hold harmless agreement obtained from the unit owner?"]
["Show","Source","n/a","No","No","PAGE 1 Data Point",null,{"$f":"'Broker & Insured Information'!$G$34","v":0},null,"Do employees or volunteers use personal automobiles on behalf of the association, either on a weekly or daily basis?"]
[{"$f":"IF(OR('Broker & Insured Information'!$G$34=\"Yes\",'Broker & Insured Information'!$G$34=\"\"),\"Show\",\"Hide\")","v":"Show"},"Yes","Any Emp/Vols use autos? = Y","Yes","No","Data Point",null,null,null,null,"a. Number of employees that have usage of personal autos (enter to the left)"]
[{"$f":"IF(OR('Broker & Insured Information'!$G$34=\"Yes\",'Broker & Insured Information'!$G$34=\"\"),\"Show\",\"Hide\")","v":"Show"},"Yes","Any Emp/Vols use autos? = Y","Yes","No","Data Point",null,null,null,null,null,"Number of Volunteers (enter to the left)"]
[{"$f":"IF(OR('Broker & Insured Information'!$G$34=\"Yes\",'Broker & Insured Information'!$G$34=\"\"),\"Show\",\"Hide\")","v":"Show"},"Yes","Any Emp/Vols use autos? = Y","Yes","No","Text",null,null,null,null,"Describe type of usage                          "]
[{"$f":"IF(OR('Broker & Insured Information'!$G$34=\"Yes\",'Broker & Insured Information'!$G$34=\"\"),\"Show\",\"Hide\")","v":"Show"},"Yes","Any Emp/Vols use autos? = Y","Yes","No","Y/N",null,null,null,null,null,"Does association obtain MVRs?"]
[{"$f":"IF(OR('Broker & Insured Information'!$G$34=\"Yes\",'Broker & Insured Information'!$G$34=\"\"),\"Show\",\"Hide\")","v":"Show"},"Yes","Any Emp/Vols use autos? = Y","Yes","No","Y/N",null,null,null,null,"Does association confirm adequate insurance is in place?"]
[{"$f":"IF(OR('Broker & Insured Information'!$G$34=\"Yes\",'Broker & Insured Information'!$G$34=\"\"),\"Show\",\"Hide\")","v":"Show"},"Yes","Any Emp/Vols use autos? = Y","Yes","No","Data Point",null,null,null,null,null,"If yes, indicate minimum limits required: $_                           "]
["Show","No","N/a","No","No","Space"]
["Show","Heading","Heading","No","No","Heading",null,null,"Independent Property Management Firm"]
["Show","Source","n/a","No","No","PAGE 1 Data Point",null,{"$f":"'Broker & Insured Information'!$G$27","v":0},null,"Is an independent property management firm utilized?             "]
[{"$f":"IF(OR('Broker & Insured Information'!$G$27=\"Yes\",'Broker & Insured Information'!$G$27=\"\"),\"Show\",\"Hide\")","v":"Show"},"Yes","Is Ind Prop Man used? = Y","Yes","No","Data Point",null,null,null,"Has the property management firm been in business at least 2 years?"]
[{"$f":"IF(OR('Broker & Insured Information'!$G$27=\"Yes\",'Broker & Insured Information'!$G$27=\"\"),\"Show\",\"Hide\")","v":"Show"},"Yes","Is Ind Prop Man used? = Y","Yes","No","Data Point",null,null,null,"How long have they managed the proposed insured property?  (enter years to the left)"]
[{"$f":"IF(OR('Broker & Insured Information'!$G$27=\"Yes\",'Broker & Insured Information'!$G$27=\"\"),\"Show\",\"Hide\")","v":"Show"},"Yes","Is Ind Prop Man used? = Y","Yes","No","Y/N",null,null,null,"Is the independent property manager on the premises full time?"]
[{"$f":"IF(OR('Broker & Insured Information'!$G$27=\"Yes\",'Broker & Insured Information'!$G$27=\"\"),\"Show\",\"Hide\")","v":"Show"},"Yes","Is Ind Prop Man used? = Y","Yes","No","Y/N",null,null,null,"Are on site visits conducted at regular intervals?"]
[{"$f":"IF(OR('Broker & Insured Information'!$G$27=\"Yes\",'Broker & Insured Information'!$G$27=\"\"),\"Show\",\"Hide\")","v":"Show"},"Yes","Is Ind Prop Man used? = Y","Yes","No","Y/N",null,null,null,"Does the independent property management firm have a maintenance staff?"]
[{"$f":"IF(OR('Broker & Insured Information'!$G$27=\"Yes\",'Broker & Insured Information'!$G$27=\"\"),\"Show\",\"Hide\")","v":"Show"},"Yes + Source","Is Ind Prop Man used? = Y","Yes","Yes","Y/N",null,null,null,"Do the management firm's employees perform any maintenance or service work on property that is owned by unit owners?"]
[{"$f":"IF(OR(AND('Broker & Insured Information'!$G$27=\"Yes\",$H$96=\"Yes\"),'Broker & Insured Information'!$G$27=\"\"),\"Show\",\"Hide\")","v":"Show"},"Yes","Is Ind Prop Man used? = Y + Does Prop Man do work for unit owners?","Yes","No","Y/N",null,null,null,null,"Is a signed hold harmless agreement obtained from the unit owner?"]
["Show","No","N/a","No","No","Space"]
["Show","Heading","Heading","No","No","Heading",null,null,"Additional Liability Exposures"]
[{"$f":"IF(OR('Broker & Insured Information'!$G$48=\"Yes\",'Broker & Insured Information'!$G$48=\"\"),\"Show\",\"Hide\")","v":"Show"},"Source","n/a","No","No","PAGE 1 Data Point",null,{"$f":"'Broker & Insured Information'!$G$48","v":0},null,"Is there a restaurant on premises?"]
[{"$f":"IF(OR('Broker & Insured Information'!$G$48=\"Yes\",'Broker & Insured Information'!$G$48=\"\"),\"Show\",\"Hide\")","v":"Show"},"Yes","Restaurant = Y","Yes","No","Y/N",null,null,null,null,"Are there any deep fat fryers?"]
[{"$f":"IF(OR('Broker & Insured Information'!$G$48=\"Yes\",'Broker & Insured Information'!$G$48=\"\"),\"Show\",\"Hide\")","v":"Show"},"Yes","Restaurant = Y","Yes","No","Y/N",null,null,null,null,"Is the hood and duct system protected by an extinguishing system?"]
[{"$f":"IF(OR('Broker & Insured Information'!$G$48=\"Yes\",'Broker & Insured Information'!$G$48=\"\"),\"Show\",\"Hide\")","v":"Show"},"Yes","Restaurant = Y","Yes","No","Y/N",null,null,null,null,"Is the extinguishing system a wet chemical system that meets U.L. 300 Standards?"]
[{"$f":"IF(OR('Broker & Insured Information'!$G$48=\"Yes\",'Broker & Insured Information'!$G$48=\"\"),\"Show\",\"Hide\")","v":"Show"},"Yes","Restaurant = Y","Yes","No","Y/N",null,null,null,null,"Is there a cleaning contract in force with an independent contractor?"]
[{"$f":"IF(OR('Broker & Insured Information'!$G$48=\"Yes\",'Broker & Insured Information'!$G$48=\"\"),\"Show\",\"Hide\")","v":"Show"},"Yes","Restaurant = Y","Yes","No","Y/N",null,null,null,null,"Is it open year round?"]
[{"$f":"IF(OR('Broker & Insured Information'!$G$48=\"Yes\",'Broker & Insured Information'!$G$48=\"\"),\"Show\",\"Hide\")","v":"Show"},"Yes","Restaurant = Y","Yes","No","Y/N",null,null,null,null,"Is it open to the public?"]
[{"$f":"IF(OR('Broker & Insured Information'!$G$48=\"Yes\",'Broker & Insured Information'!$G$48=\"\"),\"Show\",\"Hide\")","v":"Show"},"Yes","Restaurant = Y","Yes","No","Y/N",null,null,null,null,"Is it owned or operated by the association?"]
["Show","Source","n/a","No","No","PAGE 1 Data Point",null,{"$f":"'Broker & Insured Information'!$G$31","v":0},null,"Is snow clearance the responsibility of the Association or is it contracted to a 3rd party? (3rd Party must comply with prior stated 'Risk Transfer Requirements')"]
[{"$f":"IF(OR('Broker & Insured Information'!$G$31=\"3rd Party Contractor\",'Broker & Insured Information'!$G$31=\"\"),\"Show\",\"Hide\")","v":"Show"},"Yes","Snow clearance = Y","Yes","No","Y/N",null,null,null,null,"If an independent contractor is utilized, does the association have a written contract?"]
[{"$f":"IF(OR('Broker & Insured Information'!$G$31=\"Property Manager\",'Broker & Insured Information'!$G$31=\"3rd Party Contractor\",'Broker & Insured Information'!$G$31=\"\"),\"Show\",\"Hide\")","v":"Show"},"Yes","Snow clearance = Y","Yes","No","Y/N",null,null,null,null,"Does the contract stipulate snow fall amount of 2\" or more requires snow clearance to be performed?"]
[{"$f":"IF(OR('Broker & Insured Information'!$G$32=\"Employee of Association\",'Broker & Insured Information'!$G$32=\"Property Manager\",'Broker & Insured Information'!$G$32=\"3rd Party Contractor\",'Broker & Insured Information'!$G$32=\"\"),\"Show\",\"Hide\")","v":"Show"},"Source","n/a","No","No","PAGE 1 Data Point",null,{"$f":"'Broker & Insured Information'!$G$32","v":0},null,"Is street or road maintenance the responsibility of the association or  contracted to a 3rd party? (3rd Party must comply with prior stated 'Risk Transfer Requirements')"]
[{"$f":"IF(OR('Broker & Insured Information'!$G$32=\"Employee of Association\",'Broker & Insured Information'!$G$32=\"Property Manager\",'Broker & Insured Information'!$G$32=\"3rd Party Contractor\",'Broker & Insured Information'!$G$32=\"\"),\"Show\",\"Hide\")","v":"Show"},"Yes","Street Maintenance = Y","Yes","No","Data Point",null,null,null,null,"Please indicate the number of Miles of Roads that the association is responsible to the left."]
[{"$f":"IF(OR('Broker & Insured Information'!$G$50=\"Yes\",'Broker & Insured Information'!$G$50=\"\"),\"Show\",\"Hide\")","v":"Show"},"Source","n/a","No","No","PAGE 1 Data Point",null,{"$f":"'Broker & Insured Information'!$G$50","v":0},null,"Are there any bodies of water such as lakes, ponds, retention basins, canals, lagoons or rivers on or next to the premises?"]
[{"$f":"IF(OR('Broker & Insured Information'!$G$50=\"Yes\",'Broker & Insured Information'!$G$50=\"\"),\"Show\",\"Hide\")","v":"Show"},"Yes","Bodies of water = Y","Yes","No","Y/N",null,null,null,null,"Is swimming allowed?"]
[{"$f":"IF(OR('Broker & Insured Information'!$G$50=\"Yes\",'Broker & Insured Information'!$G$50=\"\"),\"Show\",\"Hide\")","v":"Show"},"Yes","Bodies of water = Y","Yes","No","Y/N",null,null,null,null,"Are any other water activities permitted?"]
[{"$f":"IF(OR('Broker & Insured Information'!$G$50=\"Yes\",'Broker & Insured Information'!$G$50=\"\"),\"Show\",\"Hide\")","v":"Show"},"Yes","Bodies of water = Y","Yes","No","Text",null,null,null,null,"Describe water activity:    "]
[{"$f":"IF(OR('Broker & Insured Information'!$G$50=\"Yes\",'Broker & Insured Information'!$G$50=\"\"),\"Show\",\"Hide\")","v":"Show"},"Yes","Bodies of water = Y","Yes","No","Y/N",null,null,null,null,"Any dock or pier fueling operations?"]
[{"$f":"IF(OR('Broker & Insured Information'!$G$50=\"Yes\",'Broker & Insured Information'!$G$50=\"\"),\"Show\",\"Hide\")","v":"Show"},"Yes","Bodies of water = Y","Yes","No","Y/N",null,null,null,null,"Are any public memberships permitted?"]
[{"$f":"IF(OR('Broker & Insured Information'!$G$50=\"Yes\",'Broker & Insured Information'!$G$50=\"\"),\"Show\",\"Hide\")","v":"Show"},"Yes","Bodies of water = Y","Yes","No","Y/N",null,null,null,null,"Do public members provide a hold harmless and indemnification agreement?"]
[{"$f":"IF(OR('Broker & Insured Information'!$G$50=\"Yes\",'Broker & Insured Information'!$G$50=\"\"),\"Show\",\"Hide\")","v":"Show"},"Yes","Bodies of water = Y","Yes","No","Y/N",null,null,null,null,"# of public members:                      "]
[{"$f":"IF(OR('Broker & Insured Information'!$G$50=\"Yes\",'Broker & Insured Information'!$G$50=\"\"),\"Show\",\"Hide\")","v":"Show"},"Yes","Bodies of water = Y","Yes","No","Y/N",null,null,null,null,"Do any lakes exceed 75 acres in surface area?"]
[{"$f":"IF(OR('Broker & Insured Information'!$G$50=\"Yes\",'Broker & Insured Information'!$G$50=\"\"),\"Show\",\"Hide\")","v":"Show"},"Yes","Bodies of water = Y","Yes","No","Y/N",null,null,null,null,"Is there a dam, levee or dike? (lake cannot exceed 25 acres of surface area)   (If yes, Attach most current inspection and engineering report)"]
["Show","Yes + Source","n/a","No","Yes","Y/N",null,null,null,"Is there a swimming pool, spa, hot tub, or whirlpool?"]
[{"$f":"IF(OR(OR($H$123=\"Yes\",'Broker & Insured Information'!$G$47>0),$H$123=\"\"),\"Show\",\"Hide\")","v":"Show"},"Yes","Pool = Y, Pool = >0","Yes","No","Data Point",null,null,null,null,"Number of Pools (enter value to the left)"]
[{"$f":"IF(OR(OR($H$123=\"Yes\",'Broker & Insured Information'!$G$47>0),$H$123=\"\"),\"Show\",\"Hide\")","v":"Show"},"Yes","Pool = Y, Pool = >0","Yes","No","Data Point",null,null,null,null,"Number of of Spa/Hot Tubs (enter value to the left)"]
[{"$f":"IF(OR(OR($H$123=\"Yes\",'Broker & Insured Information'!$G$47>0),$H$123=\"\"),\"Show\",\"Hide\")","v":"Show"},"Yes","Pool = Y, Pool = >0","Yes","No","Data Point",null,null,null,null,"Number of Whirlpools (enter value to the left)"]
[{"$f":"IF(OR(OR($H$123=\"Yes\",'Broker & Insured Information'!$G$47>0),$H$123=\"\"),\"Show\",\"Hide\")","v":"Show"},"Yes","Pool = Y, Pool = >0","Yes","No","Y/N",null,null,null,null,"Do all hot tubs, spas, and/or whirlpools have emergency shut-off switches or buttons?"]
[{"$f":"IF(OR(OR($H$123=\"Yes\",'Broker & Insured Information'!$G$47>0),$H$123=\"\"),\"Show\",\"Hide\")","v":"Show"},"Yes","Pool = Y, Pool = >0","Yes","No","Y/N",null,null,null,null,"Is there a fence at least 4 feet high around all pools?"]
[{"$f":"IF(OR(OR($H$123=\"Yes\",'Broker & Insured Information'!$G$47>0),$H$123=\"\"),\"Show\",\"Hide\")","v":"Show"},"Yes","Pool = Y, Pool = >0","Yes","No","Y/N",null,null,null,null,"Does the fence have a self-closing and self-latching gate?"]
[{"$f":"IF(OR(OR($H$123=\"Yes\",'Broker & Insured Information'!$G$47>0),$H$123=\"\"),\"Show\",\"Hide\")","v":"Show"},"Yes","Pool = Y, Pool = >0","Yes","No","Y/N",null,null,null,null,"Are all swimming pools and spas in compliance with local and state regulations as well as the Virginia Graeme Baker Pool and Spa Safety Act?"]
[{"$f":"IF(OR(OR($H$123=\"Yes\",'Broker & Insured Information'!$G$47>0),$H$123=\"\"),\"Show\",\"Hide\")","v":"Show"},"Yes","Pool = Y, Pool = >0","Yes","No","Y/N",null,null,null,null,"Are the pool rules prominently posted?"]
[{"$f":"IF(OR(OR($H$123=\"Yes\",'Broker & Insured Information'!$G$47>0),$H$123=\"\"),\"Show\",\"Hide\")","v":"Show"},"Yes","Pool = Y, Pool = >0","Yes","No","Y/N",null,null,null,null,"Is lifesaving equipment accesible and maintained in good condition?"]
[{"$f":"IF(OR(OR($H$123=\"Yes\",'Broker & Insured Information'!$G$47>0),$H$123=\"\"),\"Show\",\"Hide\")","v":"Show"},"Yes","Pool = Y, Pool = >0","Yes","No","Y/N",null,null,null,null,"Is an emergency phone accessible and fully operational?"]
[{"$f":"IF(OR(OR($H$123=\"Yes\",'Broker & Insured Information'!$G$47>0),$H$123=\"\"),\"Show\",\"Hide\")","v":"Show"},"Yes","Pool = Y, Pool = >0","Yes","No","Y/N",null,null,null,null,"Are any public memberships permitted?"]
[{"$f":"IF(OR(OR($H$123=\"Yes\",'Broker & Insured Information'!$G$47>0),$H$123=\"\"),\"Show\",\"Hide\")","v":"Show"},"Yes","Pool = Y, Pool = >0","Yes","No","Y/N",null,null,null,null,"Are lifeguards required by ordinance?"]
[{"$f":"IF(OR(OR($H$123=\"Yes\",'Broker & Insured Information'!$G$47>0),$H$123=\"\"),\"Show\",\"Hide\")","v":"Show"},"Yes + Source","Pool = Y, Pool = >0","Yes","Yes","Y/N",null,null,null,null,"Are lifeguards provided?"]
[{"$f":"IF(OR(OR(AND($H$123=\"Yes\",$H$136=\"Yes\"),'Broker & Insured Information'!$G$47>0),AND($H$123=\"\",$H$136=\"\")),\"Show\",\"Hide\")","v":"Show"},"Yes","Pool = Y, Pool = >0 + Lifegaurds? = Y","Yes","No","Y/N",null,null,null,null,null,"Do all lifeguards hold Red Cross or equivalent certifications?"]
[{"$f":"IF(OR(OR(AND($H$123=\"Yes\",$H$136=\"Yes\"),'Broker & Insured Information'!$G$47>0),AND($H$123=\"\",$H$136=\"\")),\"Show\",\"Hide\")","v":"Show"},"Yes","Pool = Y, Pool = >0 + Lifegaurds? = Y","Yes","No","Y/N",null,null,null,null,null,"Are lifeguards on duty during all hours of pool use?"]
[{"$f":"IF(OR(OR(AND($H$123=\"Yes\",$H$136=\"Yes\"),'Broker & Insured Information'!$G$47>0),AND($H$123=\"\",$H$136=\"\")),\"Show\",\"Hide\")","v":"Show"},"Yes","Pool = Y, Pool = >0 + Lifegaurds? = Y","Yes","No","Y/N",null,null,null,null,null,"Is an outside lifeguard service used? Must comply with prior stated 'Risk Transfer Requirements'"]
[{"$f":"IF(OR(OR($H$123=\"Yes\",'Broker & Insured Information'!$G$47>0),$H$123=\"\"),\"Show\",\"Hide\")","v":"Show"},"Yes","Pool = Y, Pool = >0","Yes","No","Y/N",null,null,null,null,"Is the pool rented for private parties?"]
[{"$f":"IF(OR(OR($H$123=\"Yes\",'Broker & Insured Information'!$G$47>0),$H$123=\"\"),\"Show\",\"Hide\")","v":"Show"},"Yes + Source","Pool = Y, Pool = >0","Yes","No","Y/N",null,null,null,null,null,"Is alcohol sold or provided by the insured?"]
[{"$f":"IF(OR('Broker & Insured Information'!$G$49=\"Yes\",'Broker & Insured Information'!$G$49=\"\"),\"Show\",\"Hide\")","v":"Show"},"Source","n/a","No","No","PAGE 1 Data Point",null,{"$f":"'Broker & Insured Information'!$G$49","v":0},null,"Is there a clubhouse?"]
[{"$f":"IF(OR('Broker & Insured Information'!$G$49=\"Yes\",'Broker & Insured Information'!$G$49=\"\"),\"Show\",\"Hide\")","v":"Show"},"Yes + Source","Clubhouse? = Y","Yes","No","Y/N",null,null,null,null,"Are facilities rented to or used by individual unit owners?"]
[{"$f":"IF(OR('Broker & Insured Information'!$G$49=\"Yes\",'Broker & Insured Information'!$G$49=\"\"),\"Show\",\"Hide\")","v":"Show"},"Yes","Clubhouse? = Y + rented to unit owners = Y","Yes","No","Data Point",null,null,null,null,null,"Indicate # of events annually                                                                                                                                                                                                   "]
[{"$f":"IF(OR('Broker & Insured Information'!$G$49=\"Yes\",'Broker & Insured Information'!$G$49=\"\"),\"Show\",\"Hide\")","v":"Show"},"Yes","Clubhouse? = Y","Yes","No","Y/N",null,null,null,null,"Are facilities rented to or used by anyone other than unit owners? (Yes = Knockout)"]
[{"$f":"IF(OR('Broker & Insured Information'!$G$49=\"Yes\",'Broker & Insured Information'!$G$49=\"\"),\"Show\",\"Hide\")","v":"Show"},"Yes","Clubhouse? = Y","Yes","No","Y/N",null,null,null,null,"Are there cooking facilities on premises?"]
[{"$f":"IF(OR(AND($H$142=\"Yes\",$H$146=\"\"),AND($H$142=\"Yes\",$H$146=\"Yes\")),\"Show\",\"Hide\")","v":"Hide"},"Yes","Clubhouse? = Y","Yes","No","Y/N",null,null,null,null,"Are there any deep fat fryers?"]
[{"$f":"IF(OR(AND($H$142=\"Yes\",$H$146=\"\"),AND($H$142=\"Yes\",$H$146=\"Yes\")),\"Show\",\"Hide\")","v":"Hide"},"Yes","Clubhouse? = Y","Yes","No","Y/N",null,null,null,null,"Is the hood and duct system protected by an extinguishing system?"]
["Hide","Yes","Clubhouse? = Y","Yes","No","Y/N",null,null,null,null,"Is the extinguishing system a wet chemical system that meets U.L. 300 Standards?"]
["Hide","Yes","Clubhouse? = Y","Yes","No","Y/N",null,null,null,null,"Is there a cleaning contract in force with an independent contractor?"]
["Show","Source","n/a","No","No","PAGE 1 Data Point",null,{"$f":"'Broker & Insured Information'!$G$33","v":0},null,"Does the Association use security personnel? Armed guards and/or guard dog services are ineligible as advised previously. "]
[{"$f":"IF(OR('Broker & Insured Information'!$G$33=\"Yes\",'Broker & Insured Information'!$G$33=\"\"),\"Show\",\"Hide\")","v":"Show"},"Yes","Does assoc use security? = Y","Yes","No","Y/N",null,null,null,null,"Are background checks performed on all persons in security work?"]
[{"$f":"IF(OR('Broker & Insured Information'!$G$33=\"Yes\",'Broker & Insured Information'!$G$33=\"\"),\"Show\",\"Hide\")","v":"Show"},"Yes","Does assoc use security? = Y","Yes","No","Y/N",null,null,null,null,"Is an outside security service utilized?"]
[{"$f":"IF(OR('Broker & Insured Information'!$G$33=\"Yes\",'Broker & Insured Information'!$G$33=\"\"),\"Show\",\"Hide\")","v":"Show"},"Yes","Does assoc use security? = Y","Yes","No","Y/N",null,null,null,null,"Is the association named as an additional insured?"]
[{"$f":"IF(OR('Broker & Insured Information'!$G$33=\"Yes\",'Broker & Insured Information'!$G$33=\"\"),\"Show\",\"Hide\")","v":"Show"},"Yes","Does assoc use security? = Y","Yes","No","Y/N",null,null,null,null,"Are the liability limits at least $1,000,000 per Occurrence with a $1,000,000 General Aggregate?"]
["Show","Source","Always show","Yes","Yes","Y/N",null,null,null,"Has the association or any unit owners/tenants installed solar panels on any of the association roofs?\nSolar panel installation/maintenance/leasing/contracting of any kind must comply with prior stated 'Risk Transfer Requirements'"]
[{"$f":"IF(OR($H$156=\"Yes\",$H$156=\"\"),\"Show\",\"Hide\")","v":"Show"},"Yes","Assoc has solar panels","Yes","No","Y/N",null,null,null,null,"Do the solar panels have an emergency shutoff switch at exterior ground level (for fire fighter safety)?\nNo exterior solar panel shutoff will result in a declination."]
["Show","No","n/a","No","No","Space"]
["Show","Heading","Heading","No","No","Heading",null,null,"Liability Coverage"]
[{"$f":"IF(OR('Broker & Insured Information'!E41=\"AZ\",'Broker & Insured Information'!E41=\"CA\",'Broker & Insured Information'!E41=\"NV\"),\"Show\",\"Hide\")","v":"Hide"},"Yes","State must = AZ, CA, NV","Yes","Yes","Dropdown",null,"$1MM per Occurrence/$2MM Aggregate",null,"General Liability Limit \n(Request an option to the left. Be advised that the $2MM/$4MM option is subject to Underwriter review and may not be able for all associations based on their characteristics. Be sure to review your quote to confirm the limit Distinguished can offer prior to binding.)"]
[{"$f":"IF(A160=\"Show\",\"Hide\",\"Show\")","v":"Show"},"Yes","State cannot be AZ, CA, NV","No","No","FYI",null,null,null,"General Liability: $1,000,000 per occurrence  $2,000,000 aggregate "]
["Show","No","n/a","No","No","FYI",null,null,null,null,"Medical Payments: $5,000 "]
["Show","No","n/a","No","No","FYI",null,null,null,"Hired and Nonowned Auto Liability*"]
["Show","No","n/a","No","No","FYI",null,null,null,null,"*Coverage for hired and nonowned auto liability will be included unless there is an owned auto exposure. "]
[{"$f":"IF(OR('Broker & Insured Information'!$G$26<>0,'Broker & Insured Information'!$G$26=\"\"),\"Show\",\"Hide\")","v":"Show"},"Yes + Source","Employee Count <>0","Yes","Yes","Y/N",null,null,null,"Is Employee Benefits Liability coverage desired?"]
[{"$f":"IF(OR($H$165=\"Yes\",$H$165=\"\"),\"Show\",\"Hide\")","v":"Show"},"Yes","Employee benefits desired?= Yes","No","No","FYI",null,null,null,null,"Coverage is provided on claims made basis with an annual aggregate. The minimum EBL limit offered is $1,000,000 and the minimum retention is $1,000. "]
[{"$f":"IF(AND(OR('Broker & Insured Information'!$G$26<>0,'Broker & Insured Information'!$G$26=\"\"),SUMPRODUCT(--('Broker & Insured Information'!$E$41={\"OH\",\"ND\",\"WA\",\"WY\"}))),\"Show\",\"Hide\")","v":"Hide"},"Yes + Source","Employee Count <>0","Yes","Yes","Y/N",null,null,null,"Is Stop Gap Liability – Employers Liability coverage desired?"]
[{"$f":"IF(AND(OR('Broker & Insured Information'!$G$26<>0,'Broker & Insured Information'!$G$26=\"\"),SUMPRODUCT(--('Broker & Insured Information'!$E$41={\"OH\",\"ND\",\"WA\",\"WY\"}))),\"Show\",\"Hide\")","v":"Hide"},"Yes","Stop Gap liability desired?= Yes","Yes","No","Data point",null,null,null,null,"Total payroll (enter to the left)"]
["Show","No","n/a","No","No","Space"]
["Show","Heading","Heading","No","No","Heading",null,null,"Premises Features, Exposures, and Details (Where Applicable)"]
[{"$f":"IF(OR('Broker & Insured Information'!$E$47<>0,'Broker & Insured Information'!$E$47=\"\"),\"Show\",\"Hide\")","v":"Show"},"Yes","Assoc has Hab bldgs","No","No","FYI",null,null,"LIFE SAFETY- We require at least the following to alert people in the event of a fire and for emergency egress: "]
[{"$f":"IF(OR('Broker & Insured Information'!$E$47<>0,'Broker & Insured Information'!$E$47=\"\"),\"Show\",\"Hide\")","v":"Show"},"Yes","Assoc has Hab bldgs","No","No","FYI",null,null,null,"Stories/Height Requirements"]
[{"$f":"IF(OR('Broker & Insured Information'!$E$47<>0,'Broker & Insured Information'!$E$47=\"\"),\"Show\",\"Hide\")","v":"Show"},"Yes","Assoc has Hab bldgs","No","No","FYI",null,null,null,null,"Buildings 1 to 3 stories containing 16 units or less:"]
[{"$f":"IF(OR('Broker & Insured Information'!$E$47<>0,'Broker & Insured Information'!$E$47=\"\"),\"Show\",\"Hide\")","v":"Show"},"Yes","Assoc has Hab bldgs","No","No","FYI",null,null,null,null,null,"Smoke detectors in each unit and common area. "]
[{"$f":"IF(OR('Broker & Insured Information'!$E$47<>0,'Broker & Insured Information'!$E$47=\"\"),\"Show\",\"Hide\")","v":"Show"},"Yes","Assoc has Hab bldgs","No","No","FYI",null,null,null,null,"Buildings 1 to 3 stories with more than 16 units: "]
[{"$f":"IF(OR('Broker & Insured Information'!$E$47<>0,'Broker & Insured Information'!$E$47=\"\"),\"Show\",\"Hide\")","v":"Show"},"Yes","Assoc has Hab bldgs","No","No","FYI",null,null,null,null,null,"Smoke detectors in each unit and common area. Two means of egress."]
[{"$f":"IF(OR('Broker & Insured Information'!$E$47<>0,'Broker & Insured Information'!$E$47=\"\"),\"Show\",\"Hide\")","v":"Show"},"Yes","Assoc has Hab bldgs","No","No","FYI",null,null,null,null,"Buildings 4-6 stories:"]
[{"$f":"IF(OR('Broker & Insured Information'!$E$47<>0,'Broker & Insured Information'!$E$47=\"\"),\"Show\",\"Hide\")","v":"Show"},"Yes","Assoc has Hab bldgs","No","No","FYI",null,null,null,null,null,"Smoke detectors in each unit and common area."]
[{"$f":"IF(OR('Broker & Insured Information'!$E$47<>0,'Broker & Insured Information'!$E$47=\"\"),\"Show\",\"Hide\")","v":"Show"},"Yes","Assoc has Hab bldgs","No","No","FYI",null,null,null,null,null,"Two means of egress through a masonry enclosed stairwell with class A or B rated fire door on each floor. Emergency lighting in all interior stairwells, halls and common areas."]
[{"$f":"IF(OR('Broker & Insured Information'!$E$47<>0,'Broker & Insured Information'!$E$47=\"\"),\"Show\",\"Hide\")","v":"Show"},"Yes","Assoc has Hab bldgs","No","No","FYI",null,null,null,null,null,"Local fire alarm system with manual pull alarms."]
[{"$f":"IF(OR('Broker & Insured Information'!$E$47<>0,'Broker & Insured Information'!$E$47=\"\"),\"Show\",\"Hide\")","v":"Show"},"Yes","Assoc has Hab bldgs","No","No","FYI",null,null,null,null,null,"Elevator recall."]
[{"$f":"IF(OR('Broker & Insured Information'!$E$47<>0,'Broker & Insured Information'!$E$47=\"\"),\"Show\",\"Hide\")","v":"Show"},"Yes","Assoc has Hab bldgs","No","No","FYI",null,null,null,null,"Buildings 7-10 stories:"]
[{"$f":"IF(OR('Broker & Insured Information'!$E$47<>0,'Broker & Insured Information'!$E$47=\"\"),\"Show\",\"Hide\")","v":"Show"},"Yes","Assoc has Hab bldgs","No","No","FYI",null,null,null,null,null,"Smoke detectors in each unit and common area. Fully sprinklered."]
[{"$f":"IF(OR('Broker & Insured Information'!$E$47<>0,'Broker & Insured Information'!$E$47=\"\"),\"Show\",\"Hide\")","v":"Show"},"Yes","Assoc has Hab bldgs","No","No","FYI",null,null,null,null,null,"Two means of egress through a masonry enclosed stairwell with class A or B rated fire door on each floor. Emergency lighting in all interior stairwells, halls and common areas."]
[{"$f":"IF(OR('Broker & Insured Information'!$E$47<>0,'Broker & Insured Information'!$E$47=\"\"),\"Show\",\"Hide\")","v":"Show"},"Yes","Assoc has Hab bldgs","No","No","FYI",null,null,null,null,null,"Local fire alarm system with manual pull alarms. Elevator recall."]
[{"$f":"IF(OR('Broker & Insured Information'!$E$47<>0,'Broker & Insured Information'!$E$47=\"\"),\"Show\",\"Hide\")","v":"Show"},"Yes","Assoc has Hab bldgs","No","No","FYI",null,null,null,null,null,"Standpipes in each stairwell."]
[{"$f":"IF(OR('Broker & Insured Information'!$E$47<>0,'Broker & Insured Information'!$E$47=\"\"),\"Show\",\"Hide\")","v":"Show"},"Yes","Assoc has Hab bldgs","No","No","FYI",null,null,null,null,"Buildings 10 to 20 stories:"]
[{"$f":"IF(OR('Broker & Insured Information'!$E$47<>0,'Broker & Insured Information'!$E$47=\"\"),\"Show\",\"Hide\")","v":"Show"},"Yes","Assoc has Hab bldgs","No","No","FYI",null,null,null,null,null,"Smoke detectors in each unit and common area. Fully sprinklered."]
[{"$f":"IF(OR('Broker & Insured Information'!$E$47<>0,'Broker & Insured Information'!$E$47=\"\"),\"Show\",\"Hide\")","v":"Show"},"Yes","Assoc has Hab bldgs","No","No","FYI",null,null,null,null,null,"Two means of egress through a masonry enclosed stairwell with class A or B rated fire door on each floor. Emergency lighting in all interior stairwells, halls and common areas."]
[{"$f":"IF(OR('Broker & Insured Information'!$E$47<>0,'Broker & Insured Information'!$E$47=\"\"),\"Show\",\"Hide\")","v":"Show"},"Yes","Assoc has Hab bldgs","No","No","FYI",null,null,null,null,null,"Annunciator panel in lobby."]
[{"$f":"IF(OR('Broker & Insured Information'!$E$47<>0,'Broker & Insured Information'!$E$47=\"\"),\"Show\",\"Hide\")","v":"Show"},"Yes","Assoc has Hab bldgs","No","No","FYI",null,null,null,null,null,"Central station fire alarm system transmitting to a station with two guards on duty 24/7/365. Elevator recall."]
[{"$f":"IF(OR('Broker & Insured Information'!$E$47<>0,'Broker & Insured Information'!$E$47=\"\"),\"Show\",\"Hide\")","v":"Show"},"Yes","Assoc has Hab bldgs","No","No","FYI",null,null,null,null,null,"Standpipes in each stairwell."]
[{"$f":"IF(OR('Broker & Insured Information'!$E$47<>0,'Broker & Insured Information'!$E$47=\"\"),\"Show\",\"Hide\")","v":"Show"},"Yes","Assoc has Hab bldgs","No","No","FYI",null,null,null,"Square Footage Requirements"]
[{"$f":"IF(OR('Broker & Insured Information'!$E$47<>0,'Broker & Insured Information'!$E$47=\"\"),\"Show\",\"Hide\")","v":"Show"},"Yes","Assoc has Hab bldgs","No","No","FYI",null,null,null,null,"Buildings over 20,000 square feet"]
[{"$f":"IF(OR('Broker & Insured Information'!$E$47<>0,'Broker & Insured Information'!$E$47=\"\"),\"Show\",\"Hide\")","v":"Show"},"Yes","Assoc has Hab bldgs","No","No","FYI",null,null,null,null,null,"8\" masonry fire wall/division per every 20,000 of building sq ft"]
[{"$f":"IF(OR('Broker & Insured Information'!$E$47<>0,'Broker & Insured Information'!$E$47=\"\"),\"Show\",\"Hide\")","v":"Show"},"Yes","Assoc has Hab bldgs","No","No","FYI",null,null,null,null,null,null,"Firewalls must go from the ground floor to the underside of the roof."]
[{"$f":"IF(OR('Broker & Insured Information'!$E$47<>0,'Broker & Insured Information'!$E$47=\"\"),\"Show\",\"Hide\")","v":"Show"},"Yes","Assoc has Hab bldgs","No","No","FYI",null,null,null,null,null,"Must have common stairwells masonry enclosed and protected by self closing UL class A or B fire doors."]
[{"$f":"IF(OR('Broker & Insured Information'!$E$47<>0,'Broker & Insured Information'!$E$47=\"\"),\"Show\",\"Hide\")","v":"Show"},"Yes","Assoc has Hab bldgs","Yes","No","Checkbox",null,null,"By confirming via this box I acknowledge that I have read item F.1. Life Safety above and agree that all locations comply with applicable requirements."]
[{"$f":"IF(OR('Broker & Insured Information'!$E$47<>0,'Broker & Insured Information'!$E$47=\"\"),\"Show\",\"Hide\")","v":"Show"},"Yes","Assoc has Hab bldgs","No","No","Space"]
[{"$f":"IF(AND('Broker & Insured Information'!$E$55=\"No\",OR('Broker & Insured Information'!$E$47<>0,'Broker & Insured Information'!$E$47=\"\")),\"Show\",\"Hide\")","v":"Hide"},"Yes","Assoc has Hab bldgs & Assoc Fully Built out = No","No","Yes","Heading",null,null,"ASSOCIATIONS UNDER CONSTUCTION"]
[{"$f":"IF(AND('Broker & Insured Information'!$E$55=\"No\",OR('Broker & Insured Information'!$E$47<>0,'Broker & Insured Information'!$E$47=\"\")),\"Show\",\"Hide\")","v":"Hide"},"Yes","Assoc has Hab bldgs & Assoc Fully Built out = No","Yes","No","Data Point",null,{"$f":"'Broker & Insured Information'!$E$55","v":0},null,"Is the Association fully built-out?"]
[{"$f":"IF(AND('Broker & Insured Information'!$E$55=\"No\",OR('Broker & Insured Information'!$E$47<>0,'Broker & Insured Information'!$E$47=\"\")),\"Show\",\"Hide\")","v":"Hide"},"Yes","Assoc has Hab bldgs & Assoc Fully Built out = No","Yes","No","Data Point",null,{"$f":"'Broker & Insured Information'!$G$55","v":0},null,"Total Unit Count Expected When Complete"]
[{"$f":"IF(AND('Broker & Insured Information'!$E$55=\"No\",OR('Broker & Insured Information'!$E$47<>0,'Broker & Insured Information'!$E$47=\"\")),\"Show\",\"Hide\")","v":"Hide"},"Yes","Assoc has Hab bldgs & Assoc Fully Built out = No","Yes","No","Data Point",null,null,null,"Total Number of Units expected to be added during proposed policy term (enter value in the space to the left)"]
[{"$f":"IF(AND('Broker & Insured Information'!$E$55=\"No\",OR('Broker & Insured Information'!$E$47<>0,'Broker & Insured Information'!$E$47=\"\")),\"Show\",\"Hide\")","v":"Hide"},"Yes","Assoc has Hab bldgs & Assoc Fully Built out = No","Yes","No","Data Point",null,null,null,"Total Square Footage expected to be added during proposed policy term (enter value in the space to the left)"]
[{"$f":"IF(AND('Broker & Insured Information'!$E$55=\"No\",OR('Broker & Insured Information'!$E$47<>0,'Broker & Insured Information'!$E$47=\"\")),\"Show\",\"Hide\")","v":"Hide"},"Yes","Assoc has Hab bldgs & Assoc Fully Built out = No","Yes","Yes","Data Point",null,null,null,"How frequently is new building construction expected to be completed for this association?"]
[{"$f":"IF(OR('Broker & Insured Information'!$E$47<>0,'Broker & Insured Information'!$E$48<>0,'Broker & Insured Information'!$E$49=\"Yes\",'Broker & Insured Information'!$G$48=\"Yes\",'Broker & Insured Information'!$G$49=\"Yes\"),\"Show\",\"Hide\")","v":"Hide"},"Yes",null,"Yes",null,"Space"]
[{"$f":"IF(OR('Broker & Insured Information'!$E$47<>0,'Broker & Insured Information'!$E$48<>0,'Broker & Insured Information'!$E$49=\"Yes\",'Broker & Insured Information'!$G$48=\"Yes\",'Broker & Insured Information'!$G$49=\"Yes\"),\"Show\",\"Hide\")","v":"Hide"},"Yes","Assoc has Hab bldgs","Yes","No","Heading",null,null,"GENERAL DETAILS"]
[{"$f":"IF(OR('Broker & Insured Information'!$E$47<>0,'Broker & Insured Information'!$E$48<>0,'Broker & Insured Information'!$E$49=\"Yes\",'Broker & Insured Information'!$G$48=\"Yes\",'Broker & Insured Information'!$G$49=\"Yes\"),\"Show\",\"Hide\")","v":"Hide"},"Yes + Source","Assoc has Hab bldgs","Yes","Yes","Y/N",null,null,null,"Is there any building with a roof over 20 years old?"]
[{"$f":"IF(AND(OR('Broker & Insured Information'!$E$47<>0,'Broker & Insured Information'!$E$48<>0,'Broker & Insured Information'!$E$49=\"Yes\",'Broker & Insured Information'!$G$48=\"Yes\",'Broker & Insured Information'!$G$49=\"Yes\"),$H$208=\"Yes\"),\"Show\",\"Hide\")","v":"Hide"},"Yes","Assoc has Hab bldgs + Roof>20yrs = Y","Yes","No","Y/N",null,null,null,null,"Has a professional inspection of all roofs over 20 years been conducted? (If Yes, attach a copy of last inspection report)"]
[{"$f":"IF(AND(OR('Broker & Insured Information'!$E$47<>0,'Broker & Insured Information'!$E$48<>0,'Broker & Insured Information'!$E$49=\"Yes\",'Broker & Insured Information'!$G$48=\"Yes\",'Broker & Insured Information'!$G$49=\"Yes\"),$H$208=\"Yes\"),\"Show\",\"Hide\")","v":"Hide"},"Yes","Assoc has Hab bldgs + Roof>20yrs = Y","Yes","No","Y/N",null,null,null,null,"Does any roof have fire retardant plywood? (If Yes, attach a copy of last inspection report)"]
[{"$f":"IF(AND(OR('Broker & Insured Information'!$E$47<>0,'Broker & Insured Information'!$E$48<>0,'Broker & Insured Information'!$E$49=\"Yes\",'Broker & Insured Information'!$G$48=\"Yes\",'Broker & Insured Information'!$G$49=\"Yes\"),'Broker & Insured Information'!E41=\"CO\"),\"Show\",\"Hide\")","v":"Hide"},"Yes + Source","Assoc has Hab bldgs + State = CO","Yes","No","Data Point",null,null,null,"What is the year of oldest roof (either new construction or last complete roof resurface) out of all the association buildings? "]
[{"$f":"IF(OR('Broker & Insured Information'!$E$47<>0,'Broker & Insured Information'!$E$48<>0,'Broker & Insured Information'!$E$49=\"Yes\",'Broker & Insured Information'!$G$48=\"Yes\",'Broker & Insured Information'!$G$49=\"Yes\"),\"Show\",\"Hide\")","v":"Hide"},"Yes + Source","Assoc has Hab bldgs","Yes","Yes","Y/N",null,null,null,"Is or was asbestos or lead paint ever present in common elements or units?"]
[{"$f":"IF(AND(OR('Broker & Insured Information'!$E$47<>0,'Broker & Insured Information'!$E$48<>0,'Broker & Insured Information'!$E$49=\"Yes\",'Broker & Insured Information'!$G$48=\"Yes\",'Broker & Insured Information'!$G$49=\"Yes\"),$H$212=\"Yes\"),\"Show\",\"Hide\")","v":"Hide"},"Yes","Assoc has Hab bldgs + Was asbetos or lead paint = Y","Yes","No","Y/N",null,null,null,null,"Indicate where:                                                                                                                     "]
[{"$f":"IF(AND(OR('Broker & Insured Information'!$E$47<>0,'Broker & Insured Information'!$E$48<>0,'Broker & Insured Information'!$E$49=\"Yes\",'Broker & Insured Information'!$G$48=\"Yes\",'Broker & Insured Information'!$G$49=\"Yes\"),$H$212=\"Yes\"),\"Show\",\"Hide\")","v":"Hide"},"Yes","Assoc has Hab bldgs + Was asbetos or lead paint = Y","Yes","No","Y/N",null,null,null,null,"Is any remediation work planned, in progress or in place?"]
["Show","No","n/a","No","No","Space"]
[{"$f":"IF(OR('Broker & Insured Information'!$E$47<>0,'Broker & Insured Information'!$E$48<>0,'Broker & Insured Information'!$E$49=\"Yes\",'Broker & Insured Information'!$G$48=\"Yes\",'Broker & Insured Information'!H154=\"Yes\"),\"Show\",\"Hide\")","v":"Hide"},"Heading","Heading","No","No","Heading",null,null,"Property Rating Info"]
[{"$f":"IF(OR('Broker & Insured Information'!$E$47<>0,'Broker & Insured Information'!$E$47=\"\"),\"Show\",\"Hide\")","v":"Show"},"Yes","Assoc has hab bldgs","No","No","Heading",null,null,"RESIDENTIAL BUILDINGS:"]
[{"$f":"IF(OR('Broker & Insured Information'!$E$47<>0,'Broker & Insured Information'!$E$47=\"\"),\"Show\",\"Hide\")","v":"Show"},"Yes","Assoc has hab bldgs","No","No","Heading",null,null,null,"Building Construction"]
[{"$f":"IF(OR('Broker & Insured Information'!$E$47<>0,'Broker & Insured Information'!$E$47=\"\"),\"Show\",\"Hide\")","v":"Show"},"Yes","Assoc has hab bldgs",null,"No","FYI",null,null,null,null,"Frame (FM)"]
[{"$f":"IF(OR('Broker & Insured Information'!$E$47<>0,'Broker & Insured Information'!$E$47=\"\"),\"Show\",\"Hide\")","v":"Show"},"Yes","Assoc has hab bldgs","No","No","FYI",null,null,null,null,"     Wood framed walls with exterior consisting of brick veneer, stucco, wood, vinyl or similar material. Wood floors and roof."]
[{"$f":"IF(OR('Broker & Insured Information'!$E$47<>0,'Broker & Insured Information'!$E$47=\"\"),\"Show\",\"Hide\")","v":"Show"},"Yes","Assoc has hab bldgs","No","No","FYI"]
[{"$f":"IF(OR('Broker & Insured Information'!$E$47<>0,'Broker & Insured Information'!$E$47=\"\"),\"Show\",\"Hide\")","v":"Show"},"Yes","Assoc has hab bldgs","No","No","FYI",null,null,null,null,"Brick Veneer (BV)"]
[{"$f":"IF(OR('Broker & Insured Information'!$E$47<>0,'Broker & Insured Information'!$E$47=\"\"),\"Show\",\"Hide\")","v":"Show"},"Yes","Assoc has hab bldgs","No","No","FYI",null,null,null,null,"     Wood framed walls with exterior consisting of 100% brick veneer or stucco. Wood frame floors and roof."]
[{"$f":"IF(OR('Broker & Insured Information'!$E$47<>0,'Broker & Insured Information'!$E$47=\"\"),\"Show\",\"Hide\")","v":"Show"},"Yes","Assoc has hab bldgs","No","No","FYI"]
[{"$f":"IF(OR('Broker & Insured Information'!$E$47<>0,'Broker & Insured Information'!$E$47=\"\"),\"Show\",\"Hide\")","v":"Show"},"Yes","Assoc has hab bldgs","No","No","FYI",null,null,null,null,"Joisted Masonry (JM)"]
[{"$f":"IF(OR('Broker & Insured Information'!$E$47<>0,'Broker & Insured Information'!$E$47=\"\"),\"Show\",\"Hide\")","v":"Show"},"Yes","Assoc has hab bldgs","No","No","FYI",null,null,null,null,"     Concrete block, masonry or reinforced masonry exterior load bearing walls. Wood floors and roof. "]
[{"$f":"IF(OR('Broker & Insured Information'!$E$47<>0,'Broker & Insured Information'!$E$47=\"\"),\"Show\",\"Hide\")","v":"Show"},"Yes","Assoc has hab bldgs","No","No","FYI"]
[{"$f":"IF(OR('Broker & Insured Information'!$E$47<>0,'Broker & Insured Information'!$E$47=\"\"),\"Show\",\"Hide\")","v":"Show"},"Yes","Assoc has hab bldgs","No","No","FYI",null,null,null,null,"Noncombustible (NC)"]
[{"$f":"IF(OR('Broker & Insured Information'!$E$47<>0,'Broker & Insured Information'!$E$47=\"\"),\"Show\",\"Hide\")","v":"Show"},"Yes","Assoc has hab bldgs","No","No","FYI",null,null,null,null,"     Exterior walls and floors are constructed of, and supported by non-combustible or slow burning material."]
[{"$f":"IF(OR('Broker & Insured Information'!$E$47<>0,'Broker & Insured Information'!$E$47=\"\"),\"Show\",\"Hide\")","v":"Show"},"Yes","Assoc has hab bldgs","No","No","FYI",null,null,null,null,"Masonry Noncombustible (MNC)"]
[{"$f":"IF(OR('Broker & Insured Information'!$E$47<>0,'Broker & Insured Information'!$E$47=\"\"),\"Show\",\"Hide\")","v":"Show"},"Yes","Assoc has hab bldgs","No","No","FYI",null,null,null,null,"     Exterior walls constructed of masonry materials greater than 4” thick or noncombustible materials with a fire resistance rating of at least one hour. Noncombustible or slow burning floors and roof."]
[{"$f":"IF(OR('Broker & Insured Information'!$E$47<>0,'Broker & Insured Information'!$E$47=\"\"),\"Show\",\"Hide\")","v":"Show"},"Yes","Assoc has hab bldgs","No","No","FYI"]
[{"$f":"IF(OR('Broker & Insured Information'!$E$47<>0,'Broker & Insured Information'!$E$47=\"\"),\"Show\",\"Hide\")","v":"Show"},"Yes","Assoc has hab bldgs","No","No","FYI",null,null,null,null,"Fire Resistive (FR)"]
[{"$f":"IF(OR('Broker & Insured Information'!$E$47<>0,'Broker & Insured Information'!$E$47=\"\"),\"Show\",\"Hide\")","v":"Show"},"Yes","Assoc has hab bldgs","No","No","FYI",null,null,null,null,"     Exterior walls, or the exterior structural frame, floors and roof are constructed of, and supported by masonry or noncombustible materials with a fire resistance rating of at least two hours."]
[{"$f":"IF(OR('Broker & Insured Information'!$E$47<>0,'Broker & Insured Information'!$E$47=\"\"),\"Show\",\"Hide\")","v":"Show"},"Yes","Assoc has hab bldgs","No","No","FYI"]
[{"$f":"IF(OR('Broker & Insured Information'!$E$47<>0,'Broker & Insured Information'!$E$47=\"\"),\"Show\",\"Hide\")","v":"Show"},"Yes","Assoc has hab bldgs","Yes","No","List",null,null,"Indicate the Construction Type in the space to the left."]
[{"$f":"IF(OR('Broker & Insured Information'!$E$47<>0,'Broker & Insured Information'!$E$47=\"\"),\"Show\",\"Hide\")","v":"Show"},"No","n/a","No","No","Space"]
[{"$f":"IF(OR('Broker & Insured Information'!$E$47<>0,'Broker & Insured Information'!$E$47=\"\"),\"Show\",\"Hide\")","v":"Show"},"Yes","Assoc has hab bldgs","No","No","FYI",null,null,null,"Insuring Agreements within Association CCRs or By-laws"]
[{"$f":"IF(OR('Broker & Insured Information'!$E$47<>0,'Broker & Insured Information'!$E$47=\"\"),\"Show\",\"Hide\")","v":"Show"},"Yes","Assoc has hab bldgs","No","No","FYI",null,null,null,null,"Bare Walls"]
[{"$f":"IF(OR('Broker & Insured Information'!$E$47<>0,'Broker & Insured Information'!$E$47=\"\"),\"Show\",\"Hide\")","v":"Show"},"Yes","Assoc has hab bldgs","No","No","FYI",null,null,null,null,"     Association is responsible for insuring the buildings and structures only; No interior coverage for units."]
[{"$f":"IF(OR('Broker & Insured Information'!$E$47<>0,'Broker & Insured Information'!$E$47=\"\"),\"Show\",\"Hide\")","v":"Show"},"Yes","Assoc has hab bldgs","No","No","FYI"]
[{"$f":"IF(OR('Broker & Insured Information'!$E$47<>0,'Broker & Insured Information'!$E$47=\"\"),\"Show\",\"Hide\")","v":"Show"},"Yes","Assoc has hab bldgs","No","No","FYI",null,null,null,null,"Single Entity"]
[{"$f":"IF(OR('Broker & Insured Information'!$E$47<>0,'Broker & Insured Information'!$E$47=\"\"),\"Show\",\"Hide\")","v":"Show"},"Yes","Assoc has hab bldgs","No","No","FYI",null,null,null,null,"     Association is responsible for insuring the buildings, structures, and units per original builder specifications."]
[{"$f":"IF(OR('Broker & Insured Information'!$E$47<>0,'Broker & Insured Information'!$E$47=\"\"),\"Show\",\"Hide\")","v":"Show"},"Yes","Assoc has hab bldgs","No","No","FYI"]
[{"$f":"IF(OR('Broker & Insured Information'!$E$47<>0,'Broker & Insured Information'!$E$47=\"\"),\"Show\",\"Hide\")","v":"Show"},"Yes","Assoc has hab bldgs","No","No","FYI",null,null,null,null,"All-In"]
[{"$f":"IF(OR('Broker & Insured Information'!$E$47<>0,'Broker & Insured Information'!$E$47=\"\"),\"Show\",\"Hide\")","v":"Show"},"Yes","Assoc has hab bldgs","No","No","FYI",null,null,null,null,"     Association is responsible for insuring the building, structures, and units per original specifications and improvements and betterments."]
[{"$f":"IF(OR('Broker & Insured Information'!$E$47<>0,'Broker & Insured Information'!$E$47=\"\"),\"Show\",\"Hide\")","v":"Show"},"Yes","Assoc has hab bldgs","No","No","FYI"]
[{"$f":"IF(OR('Broker & Insured Information'!$E$47<>0,'Broker & Insured Information'!$E$47=\"\"),\"Show\",\"Hide\")","v":"Show"},"Yes","Assoc has hab bldgs","Yes","No","List",null,null,"Indicate the type of Insuring Agreements that Association is responsible for in the space to the left"]
[{"$f":"IF(OR('Broker & Insured Information'!$E$47<>0,'Broker & Insured Information'!$E$47=\"\"),\"Show\",\"Hide\")","v":"Show"},"No","n/a","No","No","Space"]
[{"$f":"IF(OR('Broker & Insured Information'!$E$47<>0,'Broker & Insured Information'!$E$47=\"\"),\"Show\",\"Hide\")","v":"Show"},"Yes","Assoc has hab bldgs","Yes","No","Data Point",null,null,null,"Describe the type or finish of the of the basement (if there is a basement) for the average/typical unit within the association."]
[{"$f":"IF(OR('Broker & Insured Information'!$E$47<>0,'Broker & Insured Information'!$E$47=\"\"),\"Show\",\"Hide\")","v":"Show"},"No","n/a","No","No","Space"]
[{"$f":"IF(OR('Broker & Insured Information'!$E$47<>0,'Broker & Insured Information'!$E$47=\"\"),\"Show\",\"Hide\")","v":"Show"},"Yes","Assoc has hab bldgs","Yes","No","Dropdown",null,null,null,"Describe the roof type or finish on the Habitational buildings via the options to the left. (This list is organized by most common answers then alphabetical)"]
[{"$f":"IF(OR('Broker & Insured Information'!$E$47<>0,'Broker & Insured Information'!$E$47=\"\"),\"Show\",\"Hide\")","v":"Show"},"No","n/a","No","No","Space"]
[{"$f":"IF(OR('Broker & Insured Information'!$E$47<>0,'Broker & Insured Information'!$E$47=\"\"),\"Show\",\"Hide\")","v":"Show"},"Yes","Assoc has hab bldgs","No","No","Heading",null,null,null,"Distance between Buildings"]
[{"$f":"IF(OR('Broker & Insured Information'!$E$47<>0,'Broker & Insured Information'!$E$47=\"\"),\"Show\",\"Hide\")","v":"Show"},"Yes","Assoc has hab bldgs","Yes","No","Data Point",null,null,null,"     Minimum distance between buildings (feet)"]
[{"$f":"IF(OR('Broker & Insured Information'!$E$47<>0,'Broker & Insured Information'!$E$47=\"\"),\"Show\",\"Hide\")","v":"Show"},"Yes","Assoc has hab bldgs","Yes","No","Data Point",null,null,null,"     Maximum distance between buildings (feet)"]
[{"$f":"IF(OR('Broker & Insured Information'!$E$47<>0,'Broker & Insured Information'!$E$47=\"\"),\"Show\",\"Hide\")","v":"Show"},"No","n/a","No","No","Space"]
[{"$f":"IF(OR('Broker & Insured Information'!$E$47<>0,'Broker & Insured Information'!$E$47=\"\"),\"Show\",\"Hide\")","v":"Show"},"No","Assoc has hab bldgs","Yes","No","Y/N",null,null,null,"Are all habitational buildings fully sprinklered?"]
[{"$f":"IF(OR(AND(A258=\"Show\",H258=\"Yes\"),AND(A258=\"Show\",H258=\"\")),\"Show\",\"Hide\")","v":"Show"},"Yes","Are all habitational buildings fully sprinklered?= Yes","Yes","No","Free Form",null,null,null,"What is the Sprinkler System Rating? (example: NFPA 13D, NFPA 13R, NFPA 13)"]
[{"$f":"IF(OR('Broker & Insured Information'!$E$47<>0,'Broker & Insured Information'!$E$47=\"\"),\"Show\",\"Hide\")","v":"Show"},"No","n/a","No","No","Space"]
[{"$f":"IF(OR('Broker & Insured Information'!$E$47<>0,'Broker & Insured Information'!$E$47=\"\"),\"Show\",\"Hide\")","v":"Show"},"Yes","Assoc has hab bldgs","Yes","No","List",null,null,null,"Public Protection Class             "]
[{"$f":"IF(OR('Broker & Insured Information'!$E$47<>0,'Broker & Insured Information'!$E$47=\"\"),\"Show\",\"Hide\")","v":"Show"},"No","n/a","No","No","Space"]
[{"$f":"IF(OR('Broker & Insured Information'!$E$47<>0,'Broker & Insured Information'!$E$47=\"\"),\"Show\",\"Hide\")","v":"Show"},"Yes","Assoc has hab bldgs","Yes","No","Data Point",null,"Individual Building Details- Complete SOV tab for residential buildings of associations.",null,"Habitational Buildings and Structures (click button to the left to start the SOV)\nCoverage for buildings and structures is provided on a guaranteed replacement cost basis.\n\nDistinguished Programs may value the property differently, please be sure to review this value if/when presented a quote. \n"]
["Show","No","n/a","Yes","No","Space"]
["Show","No","n/a","Yes","No","FYI",null,null,null,"Amenities/Other Buildings Values -The following structures are automatically covered and must not be listed (unless the association is an HOA that is not responsible for habitational structures): Cabanas, courts for handball, courts for racquet sports, pool houses, gate houses, storage sheds, shelters, mailboxes, gazebos, pump houses, fences, walkways, roadways and other paved surfaces, recreation fixtures, outdoor fixtures, outdoor swimming pools, flagpoles, light poles, fountains, outside statues and freestanding walls other than retaining walls. "]
["Show","No","n/a","Yes","No","Space"]
["Show","No","n/a","Yes","No","FYI",null,null,null,"Exposure","Value ($)",null,"Exposure","Value ($)","Number"]
["Show","No","n/a","Yes","No","Data Point",null,null,null,"Clubhouse",null,null,"HVAC bldg"]
["Show","No","n/a","Yes","No","Data Point",null,null,null,"Meeting Center",null,null,"Detached Garages"]
["Show","No","n/a","Yes","No","Data Point",null,null,null,"Water treatment bldg",null,null,"Detached Carports"]
["Show","No","n/a","Yes","No","Data Point",null,null,null,null,null,null,"Recreational bldg(s)"]
[{"$f":"IF(OR('Broker & Insured Information'!$E$46=\"HOA or PUD (No Habitational Bldgs)\",'Broker & Insured Information'!$E$46=\"Master Association\"),\"Show\",\"Hide\")","v":"Hide"},"Yes","Assoc Type = HOA or PUD (No Habitational Bldgs) or Master Association","Yes","No","Data Point",null,null,null,"Fences/Walls",null,null,"Pools",null,{"$f":"H124","v":0}]
[{"$f":"IF(OR('Broker & Insured Information'!$E$46=\"HOA or PUD (No Habitational Bldgs)\",'Broker & Insured Information'!$E$46=\"Master Association\"),\"Show\",\"Hide\")","v":"Hide"},"Yes","Assoc Type = HOA or PUD (No Habitational Bldgs) or Master Association","Yes","No","Data Point",null,null,null,"Signs ",null,null,"Spa/Hot Tub",null,{"$f":"H125","v":0}]
[{"$f":"IF(OR('Broker & Insured Information'!$E$46=\"HOA or PUD (No Habitational Bldgs)\",'Broker & Insured Information'!$E$46=\"Master Association\"),\"Show\",\"Hide\")","v":"Hide"},"Yes","Assoc Type = HOA or PUD (No Habitational Bldgs) or Master Association","Yes","No","Data Point",null,null,null,"Kiosks/Mailboxes",null,null,"Whirlpool",null,{"$f":"H126","v":0}]
[{"$f":"IF(OR('Broker & Insured Information'!$E$46=\"HOA or PUD (No Habitational Bldgs)\",'Broker & Insured Information'!$E$46=\"Master Association\"),\"Show\",\"Hide\")","v":"Hide"},"Yes","Assoc Type = HOA or PUD (No Habitational Bldgs) or Master Association","Yes","No","Data Point",null,null,null,"Lights / poles ",null,null,"Pool House"]
[{"$f":"IF(OR('Broker & Insured Information'!$E$46=\"HOA or PUD (No Habitational Bldgs)\",'Broker & Insured Information'!$E$46=\"Master Association\"),\"Show\",\"Hide\")","v":"Hide"},"Yes","Assoc Type = HOA or PUD (No Habitational Bldgs) or Master Association","Yes","No","Data Point",null,null,null,"Paved Streets",null,null,"Pump House"]
[{"$f":"IF(OR('Broker & Insured Information'!$E$46=\"HOA or PUD (No Habitational Bldgs)\",'Broker & Insured Information'!$E$46=\"Master Association\"),\"Show\",\"Hide\")","v":"Hide"},"Yes","Assoc Type = HOA or PUD (No Habitational Bldgs) or Master Association","Yes","No","Data Point",null,null,null,"Sidewalks",null,null,"Cabanas"]
[{"$f":"IF(OR('Broker & Insured Information'!$E$46=\"HOA or PUD (No Habitational Bldgs)\",'Broker & Insured Information'!$E$46=\"Master Association\"),\"Show\",\"Hide\")","v":"Hide"},"Yes","Assoc Type = HOA or PUD (No Habitational Bldgs) or Master Association","Yes","No","Data Point",null,null,null,"Monuments",null,null,"Playgrounds"]
[{"$f":"IF(OR('Broker & Insured Information'!$E$46=\"HOA or PUD (No Habitational Bldgs)\",'Broker & Insured Information'!$E$46=\"Master Association\"),\"Show\",\"Hide\")","v":"Hide"},"Yes","Assoc Type = HOA or PUD (No Habitational Bldgs) or Master Association","Yes","No","Data Point",null,null,null,"Benches",null,null,"Basketball courts"]
[{"$f":"IF(OR('Broker & Insured Information'!$E$46=\"HOA or PUD (No Habitational Bldgs)\",'Broker & Insured Information'!$E$46=\"Master Association\"),\"Show\",\"Hide\")","v":"Hide"},"Yes","Assoc Type = HOA or PUD (No Habitational Bldgs) or Master Association","Yes","No","Data Point",null,null,null,"Sprinkler/Irrigation system",null,null,"Volleyball courts"]
[{"$f":"IF(OR('Broker & Insured Information'!$E$46=\"HOA or PUD (No Habitational Bldgs)\",'Broker & Insured Information'!$E$46=\"Master Association\"),\"Show\",\"Hide\")","v":"Hide"},"Yes","Assoc Type = HOA or PUD (No Habitational Bldgs) or Master Association","Yes","No","Data Point",null,null,null,"Gate house",null,null,"Tennis courts"]
[{"$f":"IF(OR('Broker & Insured Information'!$E$46=\"HOA or PUD (No Habitational Bldgs)\",'Broker & Insured Information'!$E$46=\"Master Association\"),\"Show\",\"Hide\")","v":"Hide"},"No","n/a","Yes","No","Space"]
[{"$f":"IF(OR('Broker & Insured Information'!$E$46=\"HOA or PUD (No Habitational Bldgs)\",'Broker & Insured Information'!$E$46=\"Master Association\"),\"Show\",\"Hide\")","v":"Hide"},"No","n/a","Yes","No","FYI",null,null,null,"Exposures Not Listed Above - Type a brief discription in the cell to the left of gold field, then the value in the gold field."]
[{"$f":"IF(OR('Broker & Insured Information'!$E$46=\"HOA or PUD (No Habitational Bldgs)\",'Broker & Insured Information'!$E$46=\"Master Association\"),\"Show\",\"Hide\")","v":"Hide"},"No","n/a","Yes","No","Data point"]
[{"$f":"IF(OR('Broker & Insured Information'!$E$46=\"HOA or PUD (No Habitational Bldgs)\",'Broker & Insured Information'!$E$46=\"Master Association\"),\"Show\",\"Hide\")","v":"Hide"},"No","n/a","Yes","No","Data point"]
[{"$f":"IF(OR('Broker & Insured Information'!$E$46=\"HOA or PUD (No Habitational Bldgs)\",'Broker & Insured Information'!$E$46=\"Master Association\"),\"Show\",\"Hide\")","v":"Hide"},"No","n/a","Yes","No","Data point"]
[{"$f":"IF(OR('Broker & Insured Information'!$E$46=\"HOA or PUD (No Habitational Bldgs)\",'Broker & Insured Information'!$E$46=\"Master Association\"),\"Show\",\"Hide\")","v":"Hide"},"No","n/a","Yes","No","Data point"]
[{"$f":"IF(OR('Broker & Insured Information'!$E$46=\"HOA or PUD (No Habitational Bldgs)\",'Broker & Insured Information'!$E$46=\"Master Association\"),\"Show\",\"Hide\")","v":"Hide"},"No","n/a","Yes","No","Space"]
["Show","No","n/a","Yes","No","Data Point",null,{"$f":"SUM(K268:K281,N268:N281,K284:K287,N284:N287)","v":0},null,"Total Amenities/Other Buildings Lump Sum Value (total per the above. This value cannot be editted/overwritten)\n"]
["Show","No","n/a","Yes","No","Space"]
["Show","Yes","Assoc has hab bldgs","Yes","No","Data Point",null,null,null,"Community Personal Property and Property Contained in Units (enter value in column to the left)\nProperty Contained in Units: Personal Property contained in units where insurance is required by the Association Documents \n(Atttach an itemized schedule of the items with your submission)"]
["Show"]
["Show","Yes","Assoc has hab bldgs","Yes","No","Data Point",null,null,null,"Maintenance Fees and Assessments (enter value in column to the left)\nConsequential Coverage’s: Coverage is provided for Maintenance Fees and Assessments as well as Community Income on an actual loss sustained basis. "]
["Show","No","n/a","No","No","Space"]
["Show","Yes","Assoc has hab bldgs","No","No","FYI",null,null,"Deductibles: ","Please refer to the below to request deductible options. Deductible options are subject to change as determined by the Distinguished underwirting process. Be sure to refer to the quote if/when presented to confirm the options available."]
["Show","No","Space","No","No","Space"]
[{"$f":"IF('Broker & Insured Information'!$E$46=\"HOA or PUD (No Habitational Bldgs)\",\"Hide\",\"Show\")","v":"Show"},"Yes","Assoc Type <> HOA or PUD (No Habitational Bldgs)","Yes","No","FYI",null,null,null,"Deductible","Select Desired Option","(Select below for 'Per Unit' Option)",null,null,null,null,null,null,null,2500,"(None)"]
[{"$f":"IF('Broker & Insured Information'!$E$46=\"HOA or PUD (No Habitational Bldgs)\",\"Hide\",\"Show\")","v":"Show"},"Yes","Assoc Type <> HOA or PUD (No Habitational Bldgs)","Yes","No","List",null,null,null,"AOP/Basic",null,"Standard Option",null,null,null,null,null,null,null,5000,0.01]
[{"$f":"IF('Broker & Insured Information'!$E$46=\"HOA or PUD (No Habitational Bldgs)\",\"Hide\",\"Show\")","v":"Show"},"Yes","Assoc Type <> HOA or PUD (No Habitational Bldgs)","Yes","No","List",null,null,null,"Water Damage",null,"Standard Option",null,null,null,null,null,null,null,10000,0.02]
[{"$f":"IF('Broker & Insured Information'!$E$46=\"HOA or PUD (No Habitational Bldgs)\",\"Hide\",\"Show\")","v":"Show"},"Yes","Assoc Type <> HOA or PUD (No Habitational Bldgs)","Yes","No","List",null,null,null,"Ice Damming*",null,"Always Per Unit",null,"*Ice Damming deductible will not apply in GA, AZ or CA.",null,null,null,null,null,25000,0.05]
[{"$f":"IF('Broker & Insured Information'!$E$46=\"HOA or PUD (No Habitational Bldgs)\",\"Hide\",\"Show\")","v":"Show"},"Yes","Assoc Type <> HOA or PUD (No Habitational Bldgs)","Yes","No","List",null,null,null,"Sprinkler Leakage",null,"Standard Option",null,null,null,null,null,null,null,null,"$5,000 Occurrence (CA Only)*"]
[{"$f":"IF('Broker & Insured Information'!$E$46=\"HOA or PUD (No Habitational Bldgs)\",\"Hide\",\"Show\")","v":"Show"},"Yes","Assoc Type <> HOA or PUD (No Habitational Bldgs)","Yes","No","List",null,null,null,"Sewer Backup",null,"Standard Option",null,null,null,null,null,null,null,null,"$10,000 Occurrence (CA Only)*"]
[{"$f":"IF(AND('Broker & Insured Information'!$E$41<>\"CA\",'Broker & Insured Information'!$E$46<>\"HOA or PUD (No Habitational Bldgs)\"),\"Show\",\"Hide\")","v":"Show"},"Yes","Assoc has hab bldgs + Physical State <> CA","Yes","No","List",null,null,null,"Wind or Hail","(None)","Always Per Building",null,null,null,null,null,null,null,null,"$25,000 Occurrence (CA Only)*"]
[{"$f":"IF(AND('Broker & Insured Information'!$E$41=\"CA\",'Broker & Insured Information'!$E$46<>\"HOA or PUD (No Habitational Bldgs)\"),\"Show\",\"Hide\")","v":"Hide"},"Yes","Assoc has hab bldgs + Physical State = CA","Yes","No","List",null,null,null,"California Wind/Hail","(None)","Always Per Building",null,"*Occurrence Options Based on Replacement Cost"]
[{"$f":"IF('Broker & Insured Information'!$E$46=\"HOA or PUD (No Habitational Bldgs)\",\"Hide\",\"Show\")","v":"Show"},"Yes",null,"Yes","No","Space"]
[{"$f":"IF('Broker & Insured Information'!$E$46=\"HOA or PUD (No Habitational Bldgs)\",\"Show\",\"Hide\")","v":"Hide"},"Yes","Assoc Type = HOA or PUD (No Habitational Bldgs)","Yes","No","FYI",null,null,null,"Deductible","Option","(Select below for 'Per Unit' Option)",null,null,null,null,null,null,null,1000,"(None)"]
[{"$f":"IF('Broker & Insured Information'!$E$46=\"HOA or PUD (No Habitational Bldgs)\",\"Show\",\"Hide\")","v":"Hide"},"Yes","Assoc Type = HOA or PUD (No Habitational Bldgs)","Yes","No","List",null,null,null,"AOP/Basic",null,"Standard Option",null,null,null,null,null,null,null,2500,0.01]
[{"$f":"IF('Broker & Insured Information'!$E$46=\"HOA or PUD (No Habitational Bldgs)\",\"Show\",\"Hide\")","v":"Hide"},"Yes","Assoc Type = HOA or PUD (No Habitational Bldgs)","Yes","No","List",null,null,null,"Water Damage",null,"Standard Option",null,null,null,null,null,null,null,5000,0.02]
[{"$f":"IF('Broker & Insured Information'!$E$46=\"HOA or PUD (No Habitational Bldgs)\",\"Show\",\"Hide\")","v":"Hide"},"Yes","Assoc Type = HOA or PUD (No Habitational Bldgs)","Yes","No","List",null,null,null,"Ice Damming*",null,"Always Per Unit",null,"*Ice Damming deductible will not apply in GA, AZ or CA.",null,null,null,null,null,10000,0.05]
[{"$f":"IF('Broker & Insured Information'!$E$46=\"HOA or PUD (No Habitational Bldgs)\",\"Show\",\"Hide\")","v":"Hide"},"Yes","Assoc Type = HOA or PUD (No Habitational Bldgs)","Yes","No","List",null,null,null,"Sprinkler Leakage",null,"Standard Option",null,null,null,null,null,null,null,25000,"$5,000 Occurrence (CA Only)*"]
[{"$f":"IF('Broker & Insured Information'!$E$46=\"HOA or PUD (No Habitational Bldgs)\",\"Show\",\"Hide\")","v":"Hide"},"Yes","Assoc Type = HOA or PUD (No Habitational Bldgs)","Yes","No","List",null,null,null,"Sewer Backup",null,"Standard Option",null,null,null,null,null,null,null,null,"$10,000 Occurrence (CA Only)*"]
[{"$f":"IF(AND('Broker & Insured Information'!$E$41<>\"CA\",'Broker & Insured Information'!$E$46=\"HOA or PUD (No Habitational Bldgs)\"),\"Show\",\"Hide\")","v":"Hide"},"Yes","Assoc Type = HOA or PUD (No Habitational Bldgs) + Physical state <> CA","Yes","No","List",null,null,null,"Wind or Hail","(None)","Always Per Building",null,null,null,null,null,null,null,null,"$25,000 Occurrence (CA Only)*"]
[{"$f":"IF(AND('Broker & Insured Information'!$E$41=\"CA\",'Broker & Insured Information'!$E$46=\"HOA or PUD (No Habitational Bldgs)\"),\"Show\",\"Hide\")","v":"Hide"},"Yes","Assoc Type = HOA or PUD (No Habitational Bldgs) + Physical State = CA","Yes","No","List",null,null,null,"California Wind/Hail","(None)","Always Per Building",null,"*Occurrence Options Based on Replacement Cost"]
[{"$f":"IF('Broker & Insured Information'!$E$46=\"HOA or PUD (No Habitational Bldgs)\",\"Show\",\"Hide\")","v":"Hide"},"Yes","Assoc Type = HOA or PUD (No Habitational Bldgs)","Yes","No","Space"]
["Show","Yes","Assoc has hab bldgs","No","No","FYI",null,null,null,"Boiler and Machinery (Equipment Breakdown) Coverage is included for equipment breakdown on a replacement cost basis."]
["Show","Yes","Assoc has hab bldgs","Yes","No","Y/N",null,null,null,null,"Does any building have a hot water or steam boiler?"]
["Show","Yes","Assoc has hab bldgs","Yes","No","Y/N",null,null,null,null,"Does any building have a central air conditioning system servicing the entire building?"]
["Hide","Yes + Source","Assoc has hab bldgs","Yes","Yes","Y/N",null,null,null,"Is Earthquake and Volcanic Eruption Coverage desired?"]
["Hide","Yes","Assoc has hab bldgs + Want Quake? = Y","Yes","No","Data Point",null,null,null,null,"Limit of Insurance (enter value in column to the left)              "]
["Hide","Yes","Assoc has hab bldgs + Want Quake? = Y","Yes","No","Data Point",null,null,null,null,"Percentage Deductible (applies per building) - 5%, 10%, Other%"]
["Show","No","n/a","No","No","Space"]
["Show","Heading","Heading","No","No","Heading",null,null,"Directors and Officers Liability"]
["Show","No","n/a","Yes","No","Y/N",null,null,null,"Have there been any D&O claims made against the Association in the last five years?"]
["Show","No","n/a","No","No","FYI",null,null,null,null," (If yes, 5 year currently valued D&O loss run and description of the claim with corrective actions required. Associations currently experiencing open claims are not eligible)."]
["Show","No","n/a","Yes","No","Y/N",null,null,null,"If available to your Insured, would you like to select the D&O Choice option, which caps defense costs outside the limits at $1M for a reduction in premium?"]
["Show","No","n/a","Yes","No","Y/N",null,null,null,"Does the Association anticipate any renovations in the next year? (Excludes new\nconstruction of units of purchasing.)"]
["Show","No","n/a","Yes","No","Y/N",null,null,null,"Does any single entity own more than 30% of the total units? (Excludes units owned by Developer awaiting sale.)"]
["Show","No","n/a","No","No","Space"]
["Show","Heading","Heading","No","No","Heading",null,null,"Fidelity/Crime "]
["Show","No","n/a","No","No","FYI",null,null,"We can offer a standalone Crime policy up to $5M in limits. Confirmation of the below procedural requirements is required to offer terms. We will provide the lowest available deductible option for the requested limit and Agreements."]
["Show","No","n/a","Yes","No","Y/N",null,null,"Total Limit Needed (enter amount to the left)"]
["Show","No","Total Limit Needed > $50,000","Yes","No","Y/N",null,null,"Agreements Needed"]
["Show","No","n/a","No","No","Space"]
["Show","No","n/a","No","No","FYI",null,null,"Item 1: Required Association Characteristics"]
["Show","No","n/a","No","No","FYI",null,null,null,"The entity is a non-profit community association."]
["Show","No","n/a","No","No","FYI",null,null,null,"The association has been Crime claim-free for the last 5 years."]
["Show","No","n/a","No","No","FYI",null,null,null,"The association does not have more than 25 employees on payroll."]
["Show","No","n/a","No","No","FYI",null,null,"Item 2: Procedures"]
["Show","No","n/a","No","No","FYI",null,null,null,"Dues/Fees/Mortgage payments are always received as checks, not cash."]
["Show","No","n/a","No","No","FYI",null,null,null,"Vouchers/supporting records are stamped “PAID” when checks are signed. If records are kept electronically, there is a system in place to indicate that a check has been issued to prevent duplication."]
["Show","No","n/a","No","No","FYI",null,null,null,"Anyone authorized to fire or hire association employees is prohibited from distributing payroll. If there is no payroll, this question does not apply."]
["Show","No","n/a","No","No","FYI",null,null,null,"Volunteers (other than Directors & Officers) are prohibited from handling bank accounts or fee/mortgage payments. If there are no other volunteers, aside from Directors & Officers, this does not apply."]
["Show","No","n/a","No","No","FYI",null,null,"Item 3: Oversight/Reconciliation "]
["Show","No","n/a","No","No","FYI",null,null,null,"Are the associations’ bank accounts and credit card statements are reconciled monthly by someone not authorized to deposit, withdraw, initiate electronic funds transfer, or use an association credit card?"]
["Show","No","n/a","No","No","FYI",null,null,null,"If Association utilizes Traditional Banking, countersignatures are required on all checks over $500"]
["Show","No","n/a","No","No","FYI",null,null,null,"If Association utilizes Electronic Banking, they must meet the following:"]
["Show","No","n/a","No","No","FYI",null,null,null,null,"The board approves all checks/expenditures and also verifies the completion/receipt of purchased services or goods."]
["Show","No","n/a","No","No","FYI",null,null,null,null,"The employee creating the check or payment request does not also sign or approve."]
["Show","No","n/a","No","No","FYI",null,null,null,null,"The board receives a monthly statement directly from the bank (via mail in a sealed envelope or via e-mail directly from the bank’s website) and reviews it on a monthly basis."]
["Show","No","n/a","Yes","No","Checkbox",null,null,"By confirming via this box I acknowledge that I have read items above and agree that this association complies."]
["Show","No","n/a","No","No","Space"]
["Show","Heading","Heading","No","No","Heading",null,null,"Umbrella/Excess Laibility Option"]
["Show","No","n/a","No","No","FYI",null,null,"If eligible, you will receive a $1MM Umbrella quote that will include options up to $200MM. "]
["Show","No","n/a","No","No","FYI",null,null,"Community Association Package policies bound with Umbrellas receive 15% commission."]
["Show","No","n/a","No","No","FYI",null,null,"We require that all underlying insurance for which you want the umbrella to provide coverage, meet the following minimum requirements. Listed below are the only coverages that qualify as underlying insurance. In addition, coverage for defense costs on the underlying General Liability, Auto Liability, and Employer's Liability policies must be in addition to the limits of liability."]
["Show","No","n/a","No","No","FYI",null,null,null,null,null,null,null,1000000,null,"Per Occurrence"]
["Show","No","n/a","No","No","FYI",null,null,null,"Commercial General Liability (CGL)",null,null,null,2000000,null,"General Aggregate Per Location"]
["Show","No","n/a","No","No","FYI",null,null,null,null,null,null,null,1000000,null,"Personal & Advertising Injury"]
["Show","No","n/a","No","No","FYI"]
["Show","No","n/a","No","No","FYI",null,null,null,"Commercial Auto Liability",null,null,null,1000000,null,"Combined Single Limit"]
["Show","No","n/a","No","No","FYI"]
["Show","No","n/a","No","No","FYI",null,null,null,null,null,null,null,500000,null,"Each Accident"]
["Show","No","n/a","No","No","FYI",null,null,null,"Employer's Liability:",null,null,null,500000,null,"Each Policy"]
["Show","No","n/a","No","No","FYI",null,null,null,null,null,null,null,500000,null,"Each Employee"]
["Show","No","n/a","No","No","FYI"]
["Show","No","n/a","No","No","FYI",null,null,null,"Garage Keepers Legal Liability",null,null,null,1000000,null,"Each Occurrence/Aggregate"]
["Show","No","n/a","No","No","FYI"]
["Show","No","n/a","No","No","FYI",null,null,null,null,null,null,null,1000000,null,"Each Claim (Indemnity)"]
["Show","No","n/a","No","No","FYI",null,null,null,"Directors & Officers Liability",null,null,null,1000000,null,"Each Claim (Defense)"]
["Show","No","n/a","No","No","FYI",null,null,null,"(Not for Profit Community Associations Only)",null,null,null,1000000,null,"Aggregate each Association"]
["Show","No","n/a","No","No","FYI",null,null,null,"*See form requirements below",null,null,null,null,"OR"]
["Show","No","n/a","No","No","FYI",null,null,null,null,null,null,null,2000000,null,"Each Claim (Defense inside the limit)"]
["Show","No","n/a","No","No","FYI",null,null,null,null,null,null,null,2000000,null,"Aggregate each Association"]
["Show","No","n/a","No","No","FYI",null,null,null,"All primary insurers must have an AM Best rating of A-VI or better. However, we will provide coverage over Employers Liability placed with CertifiedState Funds, and/or carriers with an AM Best Rating of B++ VI or better."]
["Show","No","n/a","No","No","FYI",null,null,null,"*Endorsement from Directors & Officers Liability on the Commercial General Liability policy is eligible only if the D&O has its own separate unimpeded limit."]
["Show","No","n/a","No","No","FYI",null,null,null,"*Underlying Directors & Officers Liability must include Duty to Defend wording."]
["Show","No","n/a","No","No","FYI",null,null,null,"*Granite State Form 101140 (04/09) is acceptable only when written in conjunction with the DPG City Homes Program."]
["Show","No","n/a","No","No","FYI",null,null,null,"*New Hampshire Form NH74321 (9/99) is acceptable only when written in conjunction with the DPG New York Brick & Brownstone Program"]
["Show","No","n/a","Yes","No","Checkbox",null,null,"By confirming via this box I acknowledge that I have read completely through the above and agree that all primary insurance either currently complies or will be placed and/or amended to be in compliance with the underlying requirements prior to binding."]
["Show","No","n/a","No","No","Space"]
["Show","No","Heading","Heading","No","Heading",null,null,"Signature"]
["Show","No","n/a","No","No","FYI",null,"Notice to applicants: Any person who knowingly and with intent to defraud any insurance company or another person files an application for insurance or statement of claim containing any materially false information or conceals for the purpose of misleading information concerning any fact material thereto, commits a fraudulent act, which is a crime and subjects the person to criminal and civil penalties. (Not applicable in Colorado, Ohio, Oregon, or Washington; in Virginia, insurance benefits may also be denied.)"]
["Show","No","n/a","No","No","FYI"]
["Show","No","n/a","No","No","FYI",null,"Notice to Colorado applicants: It is unlawful to knowingly provide false, incomplete or misleading facts or information to an insurance company for the purposes of defrauding or attempting to defraud the company. Penalties may include imprisonment, fines, denial of insurance and civil damages. Any insurance company or agent of an insurance company who knowingly provides false, incomplete or misleading facts or information to a policy holder or claimant for the purpose  of defrauding or attempting to defraud the policy holder or claimant with regard to a settlement or award payable from insurance proceeds hall be reported to the Colorado Division of Insurance within the Department of Regulatory Agencies."]
["Show","No","n/a","No","No","FYI"]
["Show","No","n/a","No","No","FYI",null,"Notice to Ohio applicants: Any person with intent to defraud or knowing that he / she is facilitating a fraud against an insurer, submits an application or files a claim containing a false or deceptive statement is guilty of insurance fraud."]
["Show","No","n/a","No","No","FYI"]
["Show","No","n/a","No","No","FYI",null,"Notice to Oregon applicants: Any person who knowingly and with intent to defraud any insurance company or another person files an application for insurance or statement of claim containing any materially false information or conceals for the purpose of misleading information concerning any fact material thereto, may be committing a fraudulent insurance act, which is a crime and may subject the persona to criminal and civil penalties."]
["Show","No","n/a","No","No","FYI"]
["Show","No","n/a","No","No","FYI",null,"Notice to Washington applicants: It is a crime to knowingly provide false, incomplete or misleading information to an insurance company for the purpose of defrauding the company. Penalties include imprisonment, fines and denial of insurance benefits."]
["Show","No","n/a","No","No","FYI"]
["Show","No","n/a","No","No","FYI",null,"It is understood and agreed that this policy does not apply to any D&O claim made against any insured based upon,arising out of, relating to, directly or indirectly resulting from or in consequence of, or in any way involving any wrongful act or any fact, matter, circumstance, situation, transaction, casualty, event or decision, known by the insured prior to the initial coverage date, which would indicate the probability of such claim being made. Please obtain a copy of the policy through your broker and read it carefully."]
["Show","No","n/a","No","No","FYI"]
["Show","No","n/a","No","No","FYI"]
["Show","No","n/a","No","No","FYI",null,null,"This application must be signed by the association’s property manager or by a member of the board of trustees of the association in order to bind coverage. The signature confirms that the signee has reviewed the application in its entirety and confirms that all information provided is accurate to the best of the signee's knowlege. Any previously presented quote is subject to change if any corrections to this application are needed. "]
["Show"]
["Show"]
["Show"]
["Show"]
["Show"]
["Show"]
["Show"]
["Show"]
["Show"]
["Show"]
["Show"]
["Show"]

{"sheet":"SOV","index":2,"n_rows":15,"n_cols":12,"rows_kept":15,"cut":false,"hidden":false,"merged":[[3,5,3,6],[7,0,7,11],[5,5,5,6]]}
[]
["Insured Name:",{"$f":"'Broker & Insured Information'!E19","v":0},null,null,"Proposed Effective Date:",{"$f":"'Broker & Insured Information'!G39","v":"00:00:00"}]
["Insured Physical Address:",{"$f":"'Broker & Insured Information'!E39","v":0},null,null,"Proposed Expiration Date:",{"$f":"'Broker & Insured Information'!G40","v":"00:00:00"}]
["City:",{"$f":"'Broker & Insured Information'!E40","v":0},null,null,"Association Type:",{"$f":"'Broker & Insured Information'!E46","v":0}]
["State:",{"$f":"'Broker & Insured Information'!E41","v":0},null,null,"Construction Type:",{"$f":"'Smart Application'!H236","v":0}]
["Zip Code:",{"$f":"'Broker & Insured Information'!E43","v":0},null,null,"Roof Type:",{"$f":"'Smart Application'!H252","v":0}]
[]
["Habitational Building Schedule\nOnly Habitational building information should be entered. Do not enter any Amentity, Common/Shared, or Commercial building information on this page as it will be collected seperately."]
["Building Number","Street Address\n(please edit if necessary)","Unit Count","Year Built","# of Stories\n(Above ground)","# of Elevators","Total Livable Sqft\n(Excluding Basement)","Basement Sqft","Attached Garage Sqft\n(If Applicable)","Total Sqft per Building","Proposed Valuation","Proposed Cost/Sqft"]
["(This is a total row)",null,{"$f":"SUM(C11:C1048576)","v":0},{"$f":"MIN(D11:D1048576)","v":0},{"$f":"MAX(E11:E1048576)","v":0},{"$f":"SUM(F11:F1048576)","v":0},0,0,0,0,0,{"$f":"IFERROR($K10/$J10,\"\")","v":""}]
[{"$f":"ROW()-10","v":1},{"$f":"$B$3","v":0},null,null,null,null,null,null,null,{"$f":"IF(SUM(G11:I11)=0,\"\",SUM(G11:I11))","v":""},null,{"$f":"IFERROR($K11/$J11,\"\")","v":""}]
[null,null,null,null,null,null,null,null,null,{"$f":"IF(SUM(G12:I12)=0,\"\",SUM(G12:I12))","v":""},null,{"$f":"IFERROR($K12/$J12,\"\")","v":""}]
[null,null,null,null,null,null,null,null,null,"",null,""]
[null,null,null,null,null,null,null,null,null,"",null,""]
[null,null,null,null,null,null,null,null,null,"",null,""]

{"sheet":"Commercial Unit Details","index":3,"n_rows":36,"n_cols":6,"rows_kept":36,"cut":false,"hidden":false,"merged":[[1,1,1,3],[29,5,29,6],[11,1,11,2],[11,5,11,6],[20,1,20,2],[20,5,20,6],[29,1,29,2]]}
[]
[null,"Commercial Unit Details (if applicable)"]
[null,"For each commercial or professional occupant provide the following on the SOV Tab (see the bottom of the workbook)"]
[null,"As a reminder, Risk Transfer Requirements for each tenant are as follows:"]
[null,null,"Written contract must be in place"]
[null,null,"Current certificates of insurance must be collected"]
[null,null,"Association must be named as an additional insured"]
[null,null,"Liability limits must be at least $1M per Occurrence with a $2M General Aggregate"]
[null,null,"3rd paty contractor/service provider must provide a hold harmless or indemnification agreement that is favorable to the associaiton."]
[null,null,"Association cannot indemnify or hold harmless any independent contractor by contractual agreement."]
[]
[null,"Commercial Tenant #1",null,null,null,"Commercial Tenant #2"]
[null,"Business Name:",null,null,null,"Business Name:"]
[null,"Describe Business:",null,null,null,"Describe Business:"]
[null,"Unit #:",null,null,null,"Unit #:"]
[null,"Unit Square Footage:",null,null,null,"Unit Square Footage:"]
[null,"Owned by Association?",null,null,null,"Owned by Association?"]
[null,"Rented by Association?",null,null,null,"Rented by Association?"]
[]
[]
[null,"Commercial Tenant #3",null,null,null,"Commercial Tenant #4"]
[null,"Business Name:",null,null,null,"Business Name:"]
[null,"Describe Business:",null,null,null,"Describe Business:"]
[null,"Unit #:",null,null,null,"Unit #:"]
[null,"Unit Square Footage:",null,null,null,"Unit Square Footage:"]
[null,"Owned by Association?",null,null,null,"Owned by Association?"]
[null,"Rented by Association?",null,null,null,"Rented by Association?"]
[]
[]
[null,"Commercial Tenant #5",null,null,null,"Commercial Tenant #6"]
[null,"Business Name:",null,null,null,"Business Name:"]
[null,"Describe Business:",null,null,null,"Describe Business:"]
[null,"Unit #:",null,null,null,"Unit #:"]
[null,"Unit Square Footage:",null,null,null,"Unit Square Footage:"]
[null,"Owned by Association?",null,null,null,"Owned by Association?"]
[null,"Rented by Association?",null,null,null,"Rented by Association?"]

{"sheet":"Printable App","index":4,"n_rows":405,"n_cols":15,"rows_kept":405,"cut":false,"hidden":true,"merged":[[395,2,395,13],[393,0,393,15],[143,3,143,15],[374,7,374,8],[375,7,375,8],[376,3,376,15],[377,3,377,15],[380,3,380,15],[381,2,381,15],[384,1,384,15],[386,1,386,15],[387,1,387,15],[365,7,365,8],[366,7,366,8],[368,7,368,8],[370,7,370,8],[371,3,371,6],[371,7,371,8],[372,3,372,6],[372,7,372,8],[373,3,373,7],[391,1,391,15],[315,9,315,11],[316,9,316,11],[388,1,388,15],[389,1,389,15],[361,7,361,8],[362,7,362,8],[363,7,363,8],[364,7,364,8],[314,9,314,11],[329,3,329,15],[332,2,332,15],[342,3,342,15],[343,3,343,15],[344,3,344,15],[346,3,346,15],[351,4,351,15],[352,2,352,15],[359,7,359,8],[360,7,360,8],[317,9,317,11],[318,9,318,11],[319,9,319,11],[303,3,303,5],[303,9,303,11],[304,3,304,5],[304,9,304,11],[306,3,306,15],[308,3,308,15],[309,3,309,15],[357,2,357,15],[358,7,358,8],[314,4,314,5],[315,4,315,5],[316,4,316,5],[317,4,317,5],[318,4,318,5],[319,4,319,5],[313,6,313,8],[314,6,314,8],[315,6,315,8],[316,6,316,8],[317,6,317,8],[318,6,318,8],[319,6,319,8],[311,3,311,15],[327,4,327,15],[313,9,313,11],[313,4,313,5],[295,3,295,5],[295,6,295,7],[295,9,295,11],[295,12,295,13],[296,3,296,5],[296,6,296,7],[296,9,296,11],[296,12,296,13],[297,3,297,5],[297,6,297,7],[297,9,297,11],[297,12,297,13],[298,3,298,5],[298,6,298,7],[298,9,298,11],[298,12,298,13],[299,3,299,5],[299,6,299,7],[299,9,299,11],[299,12,299,13],[302,3,302,5],[302,9,302,11],[292,3,292,5],[292,6,292,7],[292,9,292,11],[292,12,292,13],[293,3,293,5],[293,6,293,7],[293,9,293,11],[293,12,293,13],[294,3,294,5],[294,6,294,7],[294,9,294,11],[294,12,294,13],[289,3,289,5],[289,6,289,7],[289,9,289,11],[289,12,289,13],[290,3,290,5],[290,6,290,7],[290,9,290,11],[290,12,290,13],[291,3,291,5],[291,6,291,7],[291,9,291,11],[291,12,291,13],[286,3,286,5],[286,6,286,7],[286,9,286,11],[286,12,286,13],[287,3,287,5],[287,6,287,7],[287,9,287,11],[287,12,287,13],[288,3,288,5],[288,6,288,7],[288,9,288,11],[288,12,288,13],[255,5,255,15],[259,5,259,15],[261,5,261,15],[270,5,270,15],[282,3,282,15],[283,3,283,15],[285,3,285,5],[285,6,285,7],[285,9,285,11],[285,12,285,13],[162,4,162,15],[188,3,188,15],[189,4,189,15],[197,4,197,15],[220,5,220,15],[210,5,210,15],[215,5,215,15],[229,2,229,15],[251,5,251,15],[192,3,192,15],[68,2,68,15],[78,2,78,15],[79,3,79,15],[93,4,93,14],[95,2,95,15],[99,3,99,15],[154,4,154,15],[38,3,38,4],[38,7,38,11],[59,3,59,15],[65,3,65,15],[60,3,60,15],[66,3,66,15],[36,12,36,13],[38,12,38,13],[34,12,34,13],[39,3,39,4],[39,7,39,11],[39,12,39,13],[44,3,44,14],[30,1,30,4],[30,5,30,8],[30,12,30,13],[37,12,37,13],[34,1,34,11],[35,1,35,14],[36,3,36,4],[36,8,36,11],[37,3,37,4],[37,7,37,11],[31,1,31,4],[31,5,31,6],[31,12,31,13],[32,1,32,4],[32,5,32,6],[32,12,32,13],[33,1,33,4],[12,11,12,14],[33,5,33,6],[33,12,33,13],[28,11,28,13],[17,10,17,13],[18,10,18,13],[20,1,20,9],[23,1,23,14],[25,11,25,13],[26,11,26,13],[27,11,27,13],[24,2,24,5],[25,2,25,5],[26,2,26,5],[27,2,27,5],[28,2,28,5],[22,10,22,13],[3,1,3,14],[4,2,4,6],[5,2,5,6],[10,8,10,10],[19,10,19,13],[20,10,20,13],[21,10,21,13],[4,10,4,13],[7,2,7,3],[7,5,7,6],[5,12,5,13],[5,7,5,11],[6,2,6,6],[8,1,8,14],[15,10,15,13],[16,10,16,13],[9,2,9,6],[10,2,10,6],[11,2,11,6],[12,2,12,6],[13,2,13,6],[14,2,14,6],[10,11,10,14],[11,11,11,14]]}
[null,null,null,null,null,null,null,null,null,null,null,null,"App Version:",2.0821201899999999]
[]
[]
[null,"Broker Contact Details"]
[null,"Brokerage Name:",{"$f":"'Broker & Insured Information'!E9","v":0},null,null,null,null,null,null,"Broker Contact Name:",{"$f":"'Broker & Insured Information'!E10","v":0}]
[null,"Address:",{"$f":"'Broker & Insured Information'!E11","v":0},null,null,null,null,"Does your brokerage control the account?",null,null,null,null,{"$f":"'Broker & Insured Information'!E15","v":0}]
[null,"City:",{"$f":"'Broker & Insured Information'!E12","v":0}]
[null,"State:",{"$f":"'Broker & Insured Information'!E13","v":0},null,"Zip Code:",{"$f":"'Broker & Insured Information'!E14","v":0}]
[null,"Insured Contact and Management Details"]
[null," Insured Name:",{"$f":"'Broker & Insured Information'!E19","v":0}]
[null,"Insured Mailing Address:",{"$f":"'Broker & Insured Information'!E20","v":0},null,null,null,null,null,"Inspection Contact Name:",null,null,{"$f":"'Broker & Insured Information'!E26","v":0}]
[null,null,{"$f":"'Broker & Insured Information'!E21","v":0},null,null,null,null,null,null,null,"Inspection Contact Phone Number:",{"$f":"'Broker & Insured Information'!E27","v":0}]
[null,"City:",{"$f":"'Broker & Insured Information'!E22","v":0},null,null,null,null,null,null,null,"Inspection Contact E-mail:",{"$f":"'Broker & Insured Information'!E28","v":0}]
[null,"State:",{"$f":"'Broker & Insured Information'!E23","v":0}]
[null,"Zip Code:",{"$f":"'Broker & Insured Information'!E24","v":0}]
[null,null,null,null,null,null,null,null,null,"Is an independent property management firm utilized?",{"$f":"'Broker & Insured Information'!G27","v":0}]
[null,null,null,null,null,null,null,null,null,"Property Management Firm Name (if applicable):",{"$f":"'Broker & Insured Information'!G28","v":0}]
[null,null,null,null,null,null,null,null,null,"Number of Association Employees (if any):",{"$f":"'Broker & Insured Information'!G26","v":0}]
[null,null,null,null,null,null,null,null,null,"Does the association or property management firm hire independent contractors?",{"$f":"'Broker & Insured Information'!G30","v":0}]
[null,null,null,null,null,null,null,null,null,"Is snow clearance of common areas the responsibility of the Association or is it contracted to a 3rd party?",{"$f":"'Broker & Insured Information'!G31","v":0}]
[null,"Is street or road maintenance the responsibility of the association or  contracted to a 3rd party?",null,null,null,null,null,null,null,null,{"$f":"'Broker & Insured Information'!G32","v":0}]
[null,null,null,null,null,null,null,null,null,"Does the Association use security personnel or contract it via a 3rd party?",{"$f":"'Broker & Insured Information'!G33","v":0}]
[null,null,null,null,null,null,null,null,null,"Do employees or volunteers use personal autos on behalf of the association, either on a weekly or daily basis?",{"$f":"'Broker & Insured Information'!G34","v":0}]
[null,"Association & Amenity Information"]
[null,"Insured Physical Address:",{"$f":"'Broker & Insured Information'!E39","v":0}]
[null,"City:",{"$f":"'Broker & Insured Information'!E40","v":0},null,null,null,null,null,null,null,"Proposed Effective Date:",{"$f":"'Broker & Insured Information'!G39","v":"00:00:00"}]
[null,"State:",{"$f":"'Broker & Insured Information'!E41","v":0},null,null,null,null,null,null,null,"Proposed Expiration Date:",{"$f":"'Broker & Insured Information'!G40","v":"00:00:00"}]
[null,"County:",{"$f":"'Broker & Insured Information'!E42","v":0},null,null,null,null,null,null,null,"Need By Date:",{"$f":"'Broker & Insured Information'!G41","v":"00:00:00"}]
[null,"Zip Code:",{"$f":"'Broker & Insured Information'!E43","v":0},null,null,null,null,null,null,null,"Expiring Carrier:",{"$f":"'Broker & Insured Information'!G44","v":0}]
[null,null,null,null,null,null,null,"Expiring Premium:",{"$f":"'Broker & Insured Information'!G43","v":0},null,"Target Premium:",{"$f":"'Broker & Insured Information'!G42","v":0}]
[null,"Association Type:",null,null,null,{"$f":"'Broker & Insured Information'!E46","v":0},null,null,null,null,null,"1st Construction Completed:",{"$f":"'Broker & Insured Information'!G46","v":0}]
[null,"*Number of Habitational Buildings Association Must Insure:",null,null,null,{"$f":"'Broker & Insured Information'!E47","v":0},null,null,null,null,null,"Total Number of Pools, Spas, and/or Saunas:",{"$f":"'Broker & Insured Information'!G47","v":0}]
[null,"*Number of Amenity, Services, or Commercial Buildings:",null,null,null,{"$f":"'Broker & Insured Information'!E48","v":0},null,null,null,null,null,"Is there a restaurant on premises?",{"$f":"'Broker & Insured Information'!G48","v":0}]
[null,"*Is any space leased to a commercial or professional tenant?",null,null,null,{"$f":"'Broker & Insured Information'!E49","v":0},null,null,null,null,null,"Is there a clubhouse?",{"$f":"'Broker & Insured Information'!G49","v":0}]
[null,"Are there any bodies of water such as lakes, ponds, retention basins, canals, lagoons or rivers on or next to the premises?",null,null,null,null,null,null,null,null,null,null,{"$f":"'Broker & Insured Information'!G50","v":0}]
[null,"*Supplemental applications are required when Association is responsible for habitational structures or has commercial occupancies."]
[null,null,"Total Number of Units:",{"$f":"'Broker & Insured Information'!E54","v":0},null,null,null,null,"Average Market Value of a Unit:",null,null,null,{"$f":"'Broker & Insured Information'!G54","v":0}]
[null,null,"Is the Association fully built-out?",{"$f":"'Broker & Insured Information'!E55","v":0},null,null,null,"Total Unit Count Expected When Complete:",null,null,null,null,{"$f":"'Broker & Insured Information'!G55","v":0}]
[null,null,"Units Owned by the Association:",{"$f":"'Broker & Insured Information'!E56","v":0},null,null,null,"Units Owned by developer/sponsor:",null,null,null,null,{"$f":"'Broker & Insured Information'!G56","v":0}]
[null,null,"Number of units rented (annual basis):",{"$f":"'Broker & Insured Information'!E57","v":0},null,null,null,"Units Owned by financial institution:",null,null,null,null,{"$f":"'Broker & Insured Information'!G57","v":0}]
[null,null,"The following buildings / exposures / amenities / claims history are either not eligible or eligible:"]
[null,null,"Associations that offer the following amenities, services, activities or can otherwise be described as the following are ineligible risks:"]
[null,null,null,"A.     Associations where more than 50% of units are rented on an annual basis."]
[null,null,null,"B.     Associations that allow unit owners to sublease for less than 12 months."]
[null,null,null,"C.     Associations where the property management firm’s employees perform any maintenance or service work on property that is owned by unit owners, or on behalf of individual unit owners."]
[null,null,null,"D.     Associations where public or non-owner pool access of any kind is offered, including events."]
[null,null,null,"E.      Associations with pools featuring diving board(s) and/or water slide(s)."]
[null,null,null,"F.      Associations that permit Sponsored Athletic teams, such as swim teams are permitted pool access."]
[null,null,null,"G.     Associations with tanning beds or tanning salons that are owned, operated or maintained by the insured."]
[null,null,null,"H.     Associations with Passenger Transportation Services, whether provided by the insured or contracted out to a third party."]
[null,null,null,"I.       Associations that permit the use of ATV’s and recreational vehicles including golf carts used to transport residents."]
[null,null,null,"J.       Associations that permit hunting, archery, indoor, outdoor trap and skeet shooting ranges."]
[null,null,null,"K.      Associations with armed guard (no exceptions for Courtesy Officers) and/or guard dog services of any kind."]
[null,null,null,"L.      Association-provided stable or equestrian amenities."]
[null,null,null,"M.    Association-provided ski areas including skiing activities, water skiing and water ski jets."]
[null,null,null,"N.     Association-provided and/or owned day care, in-home daycare, medical and nursing operations of any kind."]
[null,null,null,"O.     Association-owned and/or operated golf courses."]
[null,null,null,"P.      Associations with Aircraft and Aviation exposures, airports, and/or landing strips of any kind."]
[null,null,"Associations with Buildings and/or Property that have the following features are not eligible:"]
[null,null,null,"Q.    Buildings with an effective age over 20 years that have not had the roof, HVAC, plumbing, and electrical systems updated. Effective age means the last complete renovation or replacement of the above components. "]
[null,null,null,"R.    Habitational buildings with occupancy of less than 75% of total units, unless new construction or gut rehabbed within one year of the proposed effective date of coverage. A certificate of occupancy must be issued prior to the effective date of coverage. No single individual buildings can be completely vacant. "]
[null,null,null,"S.    Buildings or garages with man lifts."]
[null,null,null,"T.    Buildings with common areas that exceed 3 stories in height."]
[null,null,null,"U.    Common areas, buildings, or individual units with any identified construction defects."]
[null,null,null,"V.    Common areas, buildings, or individual units with polybutylene or galvanized plumbing."]
[null,null,null,"W.   Common areas, buildings, or individual units with electric systems featuring fuse panels or that otherwise utilize fuses and/or electric systems utilizing knob and tube wiring. Federal Pacific Stab Lok circuit breakers and panels are ineligible. "]
[null,null,null,"X.   Common areas, buildings, or individual units with any aluminum wiring other than the main feed line. Aluminum wiring to major appliance connections is acceptable."]
[null,null,null,"Y.    Associations with any building or common element, etc. which currently contains asbestos and/or lead paint"]
[null,{"$f":"'Smart Application'!$H$35","v":0},"By confirming via this box I acknowledge that I have read items above and agree that all exposures within this association complies."]
[null,null,"Residential Ownership and Occupancy Details"]
[null,{"$f":"IF('Smart Application'!A38=\"Hide\",\"N/a\",IF('Smart Application'!H38=\"\",\"\",'Smart Application'!H38))","v":""},null,"Is the developer/builder/sponsor or their representatives on the board?"]
[null,{"$f":"IF('Smart Application'!A39=\"Hide\",\"N/a\",IF('Smart Application'!H39=\"\",\"\",'Smart Application'!H39))","v":""},null,"Does association have any ownership or rental restrictions for owners or residents?"]
[null,{"$f":"IF('Smart Application'!A40=\"Hide\",\"N/a\",IF('Smart Application'!H40=\"\",\"\",'Smart Application'!H40))","v":0},null,"Units Rented on an Annual Basis"]
[null,{"$f":"IF('Smart Application'!A41=\"Hide\",\"N/a\",IF('Smart Application'!H41=\"\",\"\",'Smart Application'!H41))","v":""},null,null,"Are the rules governing use of the unit and emergency procedures provided?"]
[null,{"$f":"IF('Smart Application'!A42=\"Hide\",\"N/a\",IF('Smart Application'!H42=\"\",\"\",'Smart Application'!H42))","v":""},null,null,"Who provides the emergency procedures to the tenant?"]
[null,{"$f":"IF('Smart Application'!A43=\"Hide\",\"N/a\",IF('Smart Application'!H43=\"\",\"\",'Smart Application'!H43))","v":""},null,null,"Is proof of insurance obtained from all tenants?"]
[]
[null,null,"Risk Transfer"]
[null,null,"The following risk transfer requirements must be obtained through written contract for all but not limited to the following business relationships: commercial tenants; 3rd party vendors; rental or reserving of association grounds or buildings; contractors providing services such as snow removal, elevator maintenance, security, road maintenance, restaurants, outside life guard services and valet parking."]
[null,null,null,"3rd Party Contractors or Service Providers as Indicated previously (but requirement is not limited to):"]
[null,null,null,null,"Association-hired or property management firm-hired independent contractors"]
[null,null,null,null,"Snow clearance 3rd party contractor"]
[null,null,null,null,"Street or road maintenance 3rd party contractor"]
[null,null,null,null,"Security personnel 3rd party contractor"]
[null,null,null,null,"Commercial Tenant"]
[null,null,null,null,"Solar panel installation/maintenance/leasing/contracting of any kind"]
[null,null,null,null,"Requirement is applicable for any 3rd Party Contractor or Service Provider not specifically mentioned"]
[]
[null,null,null,"Risk Transfer Requirements for all 3rd party relationships include:"]
[null,null,null,null,"Written contract must be in place"]
[null,null,null,null,"Current certificates of insurance must be collected"]
[null,null,null,null,"Association must be named as an additional insured"]
[null,null,null,null,"Liability limits must be at least $1M per Occurrence with a $2M General Aggregate"]
[null,null,null,null,"3rd party contractor/service provider must provide a hold harmless or indemnification agreement that is favorable to the association."]
[null,null,null,null,"Association cannot indemnify or hold harmless any independent contractor by contractual agreement."]
[null,{"$f":"'Smart Application'!H63","v":0},"By confirming via this box I acknowledge that I have read items above and agree that all exposures within this association complies."]
[]
[null,null," Commercial/Professional Exposures (Where Applicable)"]
[null,{"$f":"'Smart Application'!H66","v":0},null,"Is there any space leased to a commercial or professional tenant?"]
[null,null,null,"For each commercial or professional occupant be prepared to provide the following on the Commercial Unit Supplement"]
[null,null,null,null,"Business\nName"]
[null,null,null,null,"Type of\nBusiness"]
[null,null,null,null,"Unit #"]
[null,null,null,null,"Square\nFootage"]
[null,null,null,null,"Owned by\nAssociation?"]
[null,null,null,null,"Rented by Association? If yes, attach Certificate of Ins."]
[]
[null,null,"Association Employees/Volunteers"]
[null,{"$f":"IF('Smart Application'!A76=\"Hide\",\"N/a\",IF('Smart Application'!H76=\"\",\"\",'Smart Application'!H76))","v":0},null,"Number of Association Employees (if any):"]
[null,{"$f":"IF('Smart Application'!A77=\"Hide\",\"N/a\",IF('Smart Application'!H77=\"\",\"\",'Smart Application'!H77))","v":""},null,"Do any employees have maintenance responsibilities?"]
[null,{"$f":"IF('Smart Application'!A78=\"Hide\",\"N/a\",IF('Smart Application'!H78=\"\",\"\",'Smart Application'!H78))","v":""},null,"Do any employees perform road maintenance, snow removal, roofing, HVAC unit or boiler repair?"]
[null,{"$f":"IF('Smart Application'!A79=\"Hide\",\"N/a\",IF('Smart Application'!H79=\"\",\"\",'Smart Application'!H79))","v":""},null,"Do association employees perform any maintenance or service work on property owned by unit owners?"]
[null,{"$f":"IF('Smart Application'!A80=\"Hide\",\"N/a\",IF('Smart Application'!H80=\"\",\"\",'Smart Application'!H80))","v":""},null,null,"Is a signed hold harmless agreement obtained from the unit owner?"]
[null,{"$f":"IF('Smart Application'!A81=\"Hide\",\"N/a\",IF('Smart Application'!H81=\"\",\"\",'Smart Application'!H81))","v":0},null,"Do employees or volunteers use personal automobiles on behalf of the association, either on a weekly or daily basis?"]
[null,{"$f":"IF('Smart Application'!A82=\"Hide\",\"N/a\",IF('Smart Application'!H82=\"\",\"\",'Smart Application'!H82))","v":""},null,null,"a. Number of employees that have usage of personal autos (enter to the left)"]
[null,{"$f":"IF('Smart Application'!A83=\"Hide\",\"N/a\",IF('Smart Application'!H83=\"\",\"\",'Smart Application'!H83))","v":""},null,null,null,"Number of Volunteers (enter to the left)"]
[null,{"$f":"IF('Smart Application'!A84=\"Hide\",\"N/a\",IF('Smart Application'!H84=\"\",\"\",'Smart Application'!H84))","v":""},null,null,"Describe type of usage                          "]
[null,{"$f":"IF('Smart Application'!A85=\"Hide\",\"N/a\",IF('Smart Application'!H85=\"\",\"\",'Smart Application'!H85))","v":""},null,null,null,"Does association obtain MVRs?"]
[null,{"$f":"IF('Smart Application'!A86=\"Hide\",\"N/a\",IF('Smart Application'!H86=\"\",\"\",'Smart Application'!H86))","v":""},null,null,"Does association confirm adequate insurance is in place?"]
[null,{"$f":"IF('Smart Application'!A87=\"Hide\",\"N/a\",IF('Smart Application'!H87=\"\",\"\",'Smart Application'!H87))","v":""},null,null,null,"If yes, indicate minimum limits required: $_                           "]
[]
[null,null,"Independent Property Management Firm"]
[null,{"$f":"IF('Smart Application'!A90=\"Hide\",\"N/a\",IF('Smart Application'!H90=\"\",\"\",'Smart Application'!H90))","v":0},null,"Is an independent property management firm utilized?             "]
[null,{"$f":"IF('Smart Application'!A91=\"Hide\",\"N/a\",IF('Smart Application'!H91=\"\",\"\",'Smart Application'!H91))","v":""},null,"Has the property management firm been in business at least 2 years?"]
[null,{"$f":"IF('Smart Application'!A92=\"Hide\",\"N/a\",IF('Smart Application'!H92=\"\",\"\",'Smart Application'!H92))","v":""},null,"How long have they managed the proposed insured property?  (enter years to the left)"]
[null,{"$f":"IF('Smart Application'!A93=\"Hide\",\"N/a\",IF('Smart Application'!H93=\"\",\"\",'Smart Application'!H93))","v":""},null,"Is the independent property manager on the premises full time?"]
[null,{"$f":"IF('Smart Application'!A94=\"Hide\",\"N/a\",IF('Smart Application'!H94=\"\",\"\",'Smart Application'!H94))","v":""},null,"Are on site visits conducted at regular intervals?"]
[null,{"$f":"IF('Smart Application'!A95=\"Hide\",\"N/a\",IF('Smart Application'!H95=\"\",\"\",'Smart Application'!H95))","v":""},null,"Does the independent property management firm have a maintenance staff?"]
[null,{"$f":"IF('Smart Application'!A96=\"Hide\",\"N/a\",IF('Smart Application'!H96=\"\",\"\",'Smart Application'!H96))","v":""},null,"Do the management firm's employees perform any maintenance or service work on property that is owned by unit owners?"]
[null,{"$f":"IF('Smart Application'!A97=\"Hide\",\"N/a\",IF('Smart Application'!H97=\"\",\"\",'Smart Application'!H97))","v":""},null,null,"Is a signed hold harmless agreement obtained from the unit owner?"]
[]
[null,null,"Additional Liability Exposures"]
[null,{"$f":"IF('Smart Application'!A100=\"Hide\",\"N/a\",IF('Smart Application'!H100=\"\",\"\",'Smart Application'!H100))","v":0},null,"Is there a restaurant on premises?"]
[null,{"$f":"IF('Smart Application'!A101=\"Hide\",\"N/a\",IF('Smart Application'!H101=\"\",\"\",'Smart Application'!H101))","v":""},null,null,"Are there any deep fat fryers?"]
[null,{"$f":"IF('Smart Application'!A102=\"Hide\",\"N/a\",IF('Smart Application'!H102=\"\",\"\",'Smart Application'!H102))","v":""},null,null,"Is the hood and duct system protected by an extinguishing system?"]
[null,{"$f":"IF('Smart Application'!A103=\"Hide\",\"N/a\",IF('Smart Application'!H103=\"\",\"\",'Smart Application'!H103))","v":""},null,null,"Is the extinguishing system a wet chemical system that meets U.L. 300 Standards?"]
[null,{"$f":"IF('Smart Application'!A104=\"Hide\",\"N/a\",IF('Smart Application'!H104=\"\",\"\",'Smart Application'!H104))","v":""},null,null,"Is there a cleaning contract in force with an independent contractor?"]
[null,{"$f":"IF('Smart Application'!A105=\"Hide\",\"N/a\",IF('Smart Application'!H105=\"\",\"\",'Smart Application'!H105))","v":""},null,null,"Is it open year round?"]
[null,{"$f":"IF('Smart Application'!A106=\"Hide\",\"N/a\",IF('Smart Application'!H106=\"\",\"\",'Smart Application'!H106))","v":""},null,null,"Is it open to the public?"]
[null,{"$f":"IF('Smart Application'!A107=\"Hide\",\"N/a\",IF('Smart Application'!H107=\"\",\"\",'Smart Application'!H107))","v":""},null,null,"Is it owned or operated by the association?"]
[null,{"$f":"IF('Smart Application'!A108=\"Hide\",\"N/a\",IF('Smart Application'!H108=\"\",\"\",'Smart Application'!H108))","v":0},null,"Is snow clearance the responsibility of the Association?"]
[null,{"$f":"IF('Smart Application'!A109=\"Hide\",\"N/a\",IF('Smart Application'!H109=\"\",\"\",'Smart Application'!H109))","v":""},null,null,"If an independent contractor is utilized, does the association have a written contract?"]
[null,{"$f":"IF('Smart Application'!A110=\"Hide\",\"N/a\",IF('Smart Application'!H110=\"\",\"\",'Smart Application'!H110))","v":""},null,null,"Does the contract stipulate snow fall amount of 2\" or more requires snow clearance to be performed?"]
[null,{"$f":"IF('Smart Application'!A111=\"Hide\",\"N/a\",IF('Smart Application'!H111=\"\",\"\",'Smart Application'!H111))","v":0},null,"Is street or road maintenance the responsibility of the association or  contracted to a 3rd party? \n(3rd Party must comply with prior stated 'Risk Transfer Requirements')"]
[null,{"$f":"IF('Smart Application'!A112=\"Hide\",\"N/a\",IF('Smart Application'!H112=\"\",\"\",'Smart Application'!H112))","v":""},null,null,"Please indicate the number of Miles of Roads that the association is responsible to the left."]
[null,{"$f":"IF('Smart Application'!A113=\"Hide\",\"N/a\",IF('Smart Application'!H113=\"\",\"\",'Smart Application'!H113))","v":0},null,"Are there any bodies of water such as lakes, ponds, retention basins, canals, lagoons or rivers on or next to the premises?"]
[null,{"$f":"IF('Smart Application'!A114=\"Hide\",\"N/a\",IF('Smart Application'!H114=\"\",\"\",'Smart Application'!H114))","v":""},null,null,"Is swimming allowed?"]
[null,{"$f":"IF('Smart Application'!A115=\"Hide\",\"N/a\",IF('Smart Application'!H115=\"\",\"\",'Smart Application'!H115))","v":""},null,null,"Are any other water activities permitted?"]
[null,{"$f":"IF('Smart Application'!A116=\"Hide\",\"N/a\",IF('Smart Application'!H116=\"\",\"\",'Smart Application'!H116))","v":""},null,null,"Describe water activity:    "]
[null,{"$f":"IF('Smart Application'!A117=\"Hide\",\"N/a\",IF('Smart Application'!H117=\"\",\"\",'Smart Application'!H117))","v":""},null,null,"Any dock or pier fueling operations?"]
[null,{"$f":"IF('Smart Application'!A118=\"Hide\",\"N/a\",IF('Smart Application'!H118=\"\",\"\",'Smart Application'!H118))","v":""},null,null,"Are any public memberships permitted?"]
[null,{"$f":"IF('Smart Application'!A119=\"Hide\",\"N/a\",IF('Smart Application'!H119=\"\",\"\",'Smart Application'!H119))","v":""},null,null,"Do public members provide a hold harmless and indemnification agreement?"]
[null,{"$f":"IF('Smart Application'!A120=\"Hide\",\"N/a\",IF('Smart Application'!H120=\"\",\"\",'Smart Application'!H120))","v":""},null,null,"# of public members:                      "]
[null,{"$f":"IF('Smart Application'!A121=\"Hide\",\"N/a\",IF('Smart Application'!H121=\"\",\"\",'Smart Application'!H121))","v":""},null,null,"Do any lakes exceed 75 acres in surface area?"]
[null,{"$f":"IF('Smart Application'!A122=\"Hide\",\"N/a\",IF('Smart Application'!H122=\"\",\"\",'Smart Application'!H122))","v":""},null,null,"Is there a dam, levee or dike? (lake cannot exceed 25 acres of surface area)   (If yes, Attach most current inspection and engineering report)"]
[null,{"$f":"IF('Smart Application'!A123=\"Hide\",\"N/a\",IF('Smart Application'!H123=\"\",\"\",'Smart Application'!H123))","v":""},null,"Is there a swimming pool, spa, hot tub, or whirlpool?"]
[null,{"$f":"IF('Smart Application'!A124=\"Hide\",\"N/a\",IF('Smart Application'!H124=\"\",\"\",'Smart Application'!H124))","v":""},null,null,"Number of Pools (enter value to the left)"]
[null,{"$f":"IF('Smart Application'!A125=\"Hide\",\"N/a\",IF('Smart Application'!H125=\"\",\"\",'Smart Application'!H125))","v":""},null,null,"Number of  Spa/Hot Tubs (enter value to the left)"]
[null,{"$f":"IF('Smart Application'!A126=\"Hide\",\"N/a\",IF('Smart Application'!H126=\"\",\"\",'Smart Application'!H126))","v":""},null,null,"Number of Whirlpools (enter value to the left)"]
[null,{"$f":"IF('Smart Application'!A127=\"Hide\",\"N/a\",IF('Smart Application'!H127=\"\",\"\",'Smart Application'!H127))","v":""},null,null,"Do all hot tubs, spas, and/or whirlpools have emergency shut-off switches or buttons?"]
[null,{"$f":"IF('Smart Application'!A128=\"Hide\",\"N/a\",IF('Smart Application'!H128=\"\",\"\",'Smart Application'!H128))","v":""},null,null,"Is there a fence at least 4 feet high around all pools?"]
[null,{"$f":"IF('Smart Application'!A129=\"Hide\",\"N/a\",IF('Smart Application'!H129=\"\",\"\",'Smart Application'!H129))","v":""},null,null,"Does the fence have a self-closing and self-latching gate?"]
[null,{"$f":"IF('Smart Application'!A130=\"Hide\",\"N/a\",IF('Smart Application'!H130=\"\",\"\",'Smart Application'!H130))","v":""},null,null,"Are all swimming pools and spas in compliance with local and state regulations as well as the Virginia Graeme Baker Pool and Spa Safety Act?"]
[null,{"$f":"IF('Smart Application'!A131=\"Hide\",\"N/a\",IF('Smart Application'!H131=\"\",\"\",'Smart Application'!H131))","v":""},null,null,"Are the pool rules prominently posted?"]
[null,{"$f":"IF('Smart Application'!A132=\"Hide\",\"N/a\",IF('Smart Application'!H132=\"\",\"\",'Smart Application'!H132))","v":""},null,null,"Is lifesaving equipment accessible and maintained in good condition?"]
[null,{"$f":"IF('Smart Application'!A133=\"Hide\",\"N/a\",IF('Smart Application'!H133=\"\",\"\",'Smart Application'!H133))","v":""},null,null,"Is an emergency phone accessible and fully operational?"]
[null,{"$f":"IF('Smart Application'!A134=\"Hide\",\"N/a\",IF('Smart Application'!H134=\"\",\"\",'Smart Application'!H134))","v":""},null,null,"Are any public memberships permitted?"]
[null,{"$f":"IF('Smart Application'!A135=\"Hide\",\"N/a\",IF('Smart Application'!H135=\"\",\"\",'Smart Application'!H135))","v":""},null,null,"Are lifeguards required by ordinance?"]
[null,{"$f":"IF('Smart Application'!A136=\"Hide\",\"N/a\",IF('Smart Application'!H136=\"\",\"\",'Smart Application'!H136))","v":""},null,null,"Are lifeguards provided?"]
[null,{"$f":"IF('Smart Application'!A137=\"Hide\",\"N/a\",IF('Smart Application'!H137=\"\",\"\",'Smart Application'!H137))","v":""},null,null,null,"Do all lifeguards hold Red Cross or equivalent certifications?"]
[null,{"$f":"IF('Smart Application'!A138=\"Hide\",\"N/a\",IF('Smart Application'!H138=\"\",\"\",'Smart Application'!H138))","v":""},null,null,null,"Are lifeguards on duty during all hours of pool use?"]
[null,{"$f":"IF('Smart Application'!A139=\"Hide\",\"N/a\",IF('Smart Application'!H139=\"\",\"\",'Smart Application'!H139))","v":""},null,null,null,"Is an outside lifeguard service used? Must comply with prior stated 'Risk Transfer Requirements'"]
[null,{"$f":"IF('Smart Application'!A140=\"Hide\",\"N/a\",IF('Smart Application'!H140=\"\",\"\",'Smart Application'!H140))","v":""},null,null,"Is the pool rented for private parties?"]
[null,{"$f":"IF('Smart Application'!A141=\"Hide\",\"N/a\",IF('Smart Application'!H141=\"\",\"\",'Smart Application'!H141))","v":""},null,null,null,"Is alcohol sold or provided by the insured?"]
[null,{"$f":"IF('Smart Application'!A142=\"Hide\",\"N/a\",IF('Smart Application'!H142=\"\",\"\",'Smart Application'!H142))","v":0},null,"Is there a clubhouse?"]
[null,{"$f":"IF('Smart Application'!A143=\"Hide\",\"N/a\",IF('Smart Application'!H143=\"\",\"\",'Smart Application'!H143))","v":""},null,null,"Are facilities rented to or used by individual unit owners?"]
[null,{"$f":"IF('Smart Application'!A144=\"Hide\",\"N/a\",IF('Smart Application'!H144=\"\",\"\",'Smart Application'!H144))","v":""},null,null,null,"Indicate # of events annually                                                                                                                                                                                                   "]
[null,{"$f":"IF('Smart Application'!A145=\"Hide\",\"N/a\",IF('Smart Application'!H145=\"\",\"\",'Smart Application'!H145))","v":""},null,null,"Are facilities rented to or used by anyone other than unit owners? (Yes = Knockout)"]
[null,{"$f":"IF('Smart Application'!A146=\"Hide\",\"N/a\",IF('Smart Application'!H146=\"\",\"\",'Smart Application'!H146))","v":""},null,null,"Are there cooking facilities on premises?"]
[null,{"$f":"IF('Smart Application'!A147=\"Hide\",\"N/a\",IF('Smart Application'!H147=\"\",\"\",'Smart Application'!H147))","v":"N/a"},null,null,"Are there any deep fat fryers?"]
[null,{"$f":"IF('Smart Application'!A148=\"Hide\",\"N/a\",IF('Smart Application'!H148=\"\",\"\",'Smart Application'!H148))","v":"N/a"},null,null,"Is the hood and duct system protected by an extinguishing system?"]
[null,{"$f":"IF('Smart Application'!A149=\"Hide\",\"N/a\",IF('Smart Application'!H149=\"\",\"\",'Smart Application'!H149))","v":"N/a"},null,null,"Is the extinguishing system a wet chemical system that meets U.L. 300 Standards?"]
[null,{"$f":"IF('Smart Application'!A150=\"Hide\",\"N/a\",IF('Smart Application'!H150=\"\",\"\",'Smart Application'!H150))","v":"N/a"},null,null,"Is there a cleaning contract in force with an independent contractor?"]
[null,{"$f":"IF('Smart Application'!A151=\"Hide\",\"N/a\",IF('Smart Application'!H151=\"\",\"\",'Smart Application'!H151))","v":0},null,"Does the Assoc. use security personnel? Armed guards and/or guard dog services are ineligible as advised previously. "]
[null,{"$f":"IF('Smart Application'!A152=\"Hide\",\"N/a\",IF('Smart Application'!H152=\"\",\"\",'Smart Application'!H152))","v":""},null,null,"Are background checks performed on all persons in security work?"]
[null,{"$f":"IF('Smart Application'!A153=\"Hide\",\"N/a\",IF('Smart Application'!H153=\"\",\"\",'Smart Application'!H153))","v":""},null,null,"Is an outside security service utilized?"]
[null,{"$f":"IF('Smart Application'!A154=\"Hide\",\"N/a\",IF('Smart Application'!H154=\"\",\"\",'Smart Application'!H154))","v":""},null,null,"Is the association named as an additional insured?"]
[null,{"$f":"IF('Smart Application'!A155=\"Hide\",\"N/a\",IF('Smart Application'!H155=\"\",\"\",'Smart Application'!H155))","v":""},null,null,"Are the liability limits at least $1,000,000 per Occurrence with a $1,000,000 General Aggregate?"]
[null,{"$f":"IF('Smart Application'!A156=\"Hide\",\"N/a\",IF('Smart Application'!H156=\"\",\"\",'Smart Application'!H156))","v":""},null,"Has the association or any unit owners/tenants installed solar panels on any of the association roofs?\nSolar panel installation/maintenance/leasing/contracting of any kind must comply with prior stated 'Risk Transfer Requirements'"]
[null,{"$f":"IF('Smart Application'!A157=\"Hide\",\"N/a\",IF('Smart Application'!H157=\"\",\"\",'Smart Application'!H157))","v":""},null,null,"Do the solar panels have an emergency shutoff switch at exterior ground level (for fire fighter safety)?\nNo exterior solar panel shutoff will result in a declination."]
[]
[null,null,"Liability Coverage"]
[null,{"$f":"IF('Smart Application'!A160=\"Show\",'Smart Application'!H160,\"$1MM per Occurrence/$2MM Aggregate\")","v":"$1MM per Occurrence/$2MM Aggregate"},null,{"$f":"IF('Smart Application'!A160=\"Show\",\"GL Limit - Be advised that the $2MM/$4MM option is subject to Underwriter review and may not be able for all associations based on their characteristics. Be sure to review your quote to confirm the limit Distinguished can offer prior to binding.\",\"General Liability Limit\")","v":"General Liability Limit"}]
[null,null,null,null,"Medical Payments: $5,000 "]
[null,null,null,"Hired and Nonowned Auto Liability*"]
[null,null,null,null,"*Coverage for hired and nonowned auto liability will be included unless there is an owned auto exposure. "]
[null,{"$f":"IF('Smart Application'!A165=\"Hide\",\"N/a\",IF('Smart Application'!H165=\"\",\"\",'Smart Application'!H165))","v":""},null,"Is Employee Benefits Liability coverage desired?"]
[null,null,null,null,"Coverage is provided on claims made basis with an annual aggregate. The minimum EBL limit offered is $1,000,000 and the minimum retention is $1,000. "]
[null,{"$f":"IF('Smart Application'!A167=\"Hide\",\"N/a\",IF('Smart Application'!H167=\"\",\"\",'Smart Application'!H167))","v":"N/a"},null,"Is Stop Gap Liability – Employers Liability coverage desired? (For applicable states only)"]
[null,{"$f":"IF('Smart Application'!A168=\"Hide\",\"N/a\",IF('Smart Application'!H168=\"\",\"\",'Smart Application'!H168))","v":"N/a"},null,null,"Total payroll (enter to the left)"]
[]
[null,null,"Premises Features, Exposures, and Details (Where Applicable)"]
[null,null,"LIFE SAFETY- We require at least the following to alert people in the event of a fire and to help exit: "]
[null,null,null,"Stories/Height Requirements"]
[null,null,null,null,"Buildings 1 to 3 stories containing 16 units or less:"]
[null,null,null,null,null,"Smoke detectors in each unit and common area. "]
[null,null,null,null,"Buildings 1 to 3 stories with more than 16 units: "]
[null,null,null,null,null,"Smoke detectors in each unit and common area. Two means of egress."]
[null,null,null,null,"Buildings 4-6 stories:"]
[null,null,null,null,null,"Smoke detectors in each unit and common area."]
[null,null,null,null,null,"Two means of egress through a masonry enclosed stairwell with class A or B rated fire door on each floor. Emergency lighting in all interior stairwells, halls and common areas."]
[null,null,null,null,null,"Local fire alarm system with manual pull alarms."]
[null,null,null,null,null,"Elevator recall."]
[null,null,null,null,"Buildings 7-10 stories:"]
[null,null,null,null,null,"Smoke detectors in each unit and common area. Fully sprinklered."]
[null,null,null,null,null,"Two means of egress through a masonry enclosed stairwell with class A or B rated fire door on each floor. Emergency lighting in all interior stairwells, halls and common areas."]
[null,null,null,null,null,"Local fire alarm system with manual pull alarms. Elevator recall."]
[null,null,null,null,null,"Standpipes in each stairwell."]
[null,null,null,null,"Buildings 10 to 20 stories:"]
[null,null,null,null,null,"Smoke detectors in each unit and common area. Fully sprinklered."]
[null,null,null,null,null,"Two means of egress through a masonry enclosed stairwell with class A or B rated fire door on each floor. Emergency lighting in all interior stairwells, halls and common areas."]
[null,null,null,null,null,"Annunciator panel in lobby."]
[null,null,null,null,null,"Central station fire alarm system transmitting to a station with two guards on duty 24/7/365. Elevator recall."]
[null,null,null,null,null,"Standpipes in each stairwell."]
[null,null,null,"Square Footage Requirements"]
[null,null,null,null,"Buildings over 20,000 square feet"]
[null,null,null,null,null,"8\" masonry fire wall/division per every 20,000 of building sq. ft"]
[null,null,null,null,null,null,"Firewalls must go from the ground floor to the underside of the roof."]
[null,null,null,null,null,"Must have common stairwells masonry enclosed and protected by self closing UL class A or B fire doors."]
[null,{"$f":"IF('Smart Application'!A198=\"Hide\",\"N/a\",IF('Smart Application'!H198=\"\",\"\",'Smart Application'!H198))","v":""},"By confirming via this box I acknowledge that I have read item F.1. Life Safety above and agree that all locations comply with applicable requirements."]
[]
[null,null,"ASSOCIATIONS UNDER CONSTUCTION"]
[null,{"$f":"IF('Smart Application'!A201=\"Hide\",\"N/a\",IF('Smart Application'!H201=\"\",\"\",'Smart Application'!H201))","v":"N/a"},null,"Is the Association fully built-out?"]
[null,{"$f":"IF('Smart Application'!A202=\"Hide\",\"N/a\",IF('Smart Application'!H202=\"\",\"\",'Smart Application'!H202))","v":"N/a"},null,"Total Unit Count Expected When Complete"]
[null,{"$f":"IF('Smart Application'!A203=\"Hide\",\"N/a\",IF('Smart Application'!H203=\"\",\"\",'Smart Application'!H203))","v":"N/a"},null,"Total Number of Units expected to be added during proposed policy term (enter value in the space to the left)"]
[null,{"$f":"IF('Smart Application'!A204=\"Hide\",\"N/a\",IF('Smart Application'!H204=\"\",\"\",'Smart Application'!H204))","v":"N/a"},null,"Total Square Footage expected to be added during proposed policy term (enter value in the space to the left)"]
[null,{"$f":"IF('Smart Application'!A205=\"Hide\",\"N/a\",IF('Smart Application'!H205=\"\",\"\",'Smart Application'!H205))","v":"N/a"},null,"How frequently is new building construction expected to be completed for this association?"]
[]
[null,null,"GENERAL DETAILS"]
[null,{"$f":"IF('Smart Application'!A208=\"Hide\",\"N/a\",IF('Smart Application'!H208=\"\",\"\",'Smart Application'!H208))","v":"N/a"},null,"Is there any building with a roof over 20 years old?"]
[null,{"$f":"IF('Smart Application'!A209=\"Hide\",\"N/a\",IF('Smart Application'!H209=\"\",\"\",'Smart Application'!H209))","v":"N/a"},null,null,"Has a professional inspection of all roofs over 20 years been conducted? (If Yes, attach a copy of last inspection report)"]
[null,{"$f":"IF('Smart Application'!A210=\"Hide\",\"N/a\",IF('Smart Application'!H210=\"\",\"\",'Smart Application'!H210))","v":"N/a"},null,null,"Does any roof have fire retardant plywood? (If Yes, attach a copy of last inspection report)"]
[null,"N/a",null,"What is the year of oldest roof (either new construction or last complete roof resurface) out of all the association buildings? "]
[null,{"$f":"IF('Smart Application'!A212=\"Hide\",\"N/a\",IF('Smart Application'!H212=\"\",\"\",'Smart Application'!H212))","v":"N/a"},null,"Is or was asbestos or lead paint ever present in common elements or units?"]
[null,{"$f":"IF('Smart Application'!A213=\"Hide\",\"N/a\",IF('Smart Application'!H213=\"\",\"\",'Smart Application'!H213))","v":"N/a"},null,null,"Indicate where:                                                                                                                     "]
[null,{"$f":"IF('Smart Application'!A214=\"Hide\",\"N/a\",IF('Smart Application'!H214=\"\",\"\",'Smart Application'!H214))","v":"N/a"},null,null,"Is any remediation work planned, in progress or in place?"]
[]
[null,null,"Property Rating Info"]
[null,null,"RESIDENTIAL BUILDINGS:"]
[null,null,null,"Building Construction"]
[null,null,null,null,"Frame (FM)"]
[null,null,null,null,null,"Wood framed walls with exterior consisting of brick veneer, stucco, wood, vinyl or similar material. Wood floors and roof."]
[null,null,null,null,"Brick Veneer (BV)"]
[null,null,null,null,null,"Wood framed walls with exterior consisting of 100% brick veneer or stucco. Wood frame floors and roof."]
[null,null,null,null,"Joisted Masonry (JM)"]
[null,null,null,null,null,"Concrete block, masonry or reinforced masonry exterior load bearing walls. Wood floors and roof. "]
[null,null,null,null,"Noncombustible (NC)"]
[null,null,null,null,null,"Exterior walls and floors are constructed of, and supported by non-combustible or slow burning material."]
[null,null,null,null,"Masonry Noncombustible (MNC)"]
[null,null,null,null,null,"Exterior walls constructed of masonry materials greater than 4” thick or noncombustible materials with a fire resistance rating of at least one hour. Noncombustible or slow burning floors and roof."]
[null,null,null,null,"Fire Resistive (FR)"]
[null,null,null,null,null,"Exterior walls, or the exterior structural frame, floors and roof are constructed of, and supported by masonry or noncombustible materials with a fire resistance rating of at least two hours."]
[null,{"$f":"IF('Smart Application'!A236=\"Hide\",\"N/a\",IF('Smart Application'!H236=\"\",\"\",'Smart Application'!H236))","v":""},null,"Indicate the Construction Type in the space to the left."]
[]
[null,null,null,"Insuring Agreements within Association CCRs or By-laws"]
[null,null,null,null,"Bare Walls"]
[null,null,null,null,null,"Association is responsible for insuring the buildings and structures only; No interior coverage for units."]
[null,null,null,null,"Single Entity"]
[null,null,null,null,null,"Assoc. is responsible for insuring the buildings, structures, and units per original builder specifications."]
[null,null,null,null,"All-In"]
[null,null,null,null,null,"Association is responsible for insuring the building, structures, and units per original specifications and improvements and betterments."]
[null,{"$f":"IF('Smart Application'!A248=\"Hide\",\"N/a\",IF('Smart Application'!H248=\"\",\"\",'Smart Application'!H248))","v":""},null,"Indicate the type of Insuring Agreements that Association is responsible for in the space to the left"]
[]
[null,{"$f":"IF('Smart Application'!A250=\"Hide\",\"N/a\",IF('Smart Application'!H250=\"\",\"\",'Smart Application'!H250))","v":""},null,"Describe the type or finish of the of the basement (if there is a basement) for the average/typical unit within the association."]
[null,{"$f":"IF('Smart Application'!A252=\"Hide\",\"N/a\",IF('Smart Application'!H252=\"\",\"\",'Smart Application'!H252))","v":""},null,"Describe the roof type or finish on the Habitational buildings via the options to the left."]
[null,null,null,"Distance between Buildings"]
[null,{"$f":"IF('Smart Application'!A255=\"Hide\",\"N/a\",IF('Smart Application'!H255=\"\",\"\",'Smart Application'!H255))","v":""},null,null,"Minimum distance between buildings (feet)"]
[null,{"$f":"IF('Smart Application'!A256=\"Hide\",\"N/a\",IF('Smart Application'!H256=\"\",\"\",'Smart Application'!H256))","v":""},null,null,"Maximum distance between buildings (feet)"]
[null,{"$f":"IF('Smart Application'!A258=\"Hide\",\"N/a\",IF('Smart Application'!H258=\"\",\"\",'Smart Application'!H258))","v":""},null,"Are all habitational buildings fully sprinklered?"]
[null,{"$f":"IF('Smart Application'!H259<>\"\",'Smart Application'!H259,\"N/a\")","v":"N/a"},null,"What is the Sprinkler System Rating? (only if applicable)"]
[null,{"$f":"IF('Smart Application'!A261=\"Hide\",\"N/a\",IF('Smart Application'!H261=\"\",\"\",'Smart Application'!H261))","v":""},null,"Public Protection Class             "]
[]
[null,{"$f":"SOV!K10","v":0},null,"Habitational Buildings and Structures (Amount shown is the total value from the SOV completed via the application process.)\nCoverage for buildings and structures is provided on a guaranteed replacement cost basis.\n\nDistinguished Programs may value the property differently, please be sure to review this value if/when presented a quote. \n"]
[null,null,null,"Amenities/Other Buildings Values -The following structures are automatically covered and must not be listed (unless the association is an HOA that is not responsible for habitational structures): Cabanas, courts for handball, courts for racquet sports, pool houses, gate houses, storage sheds, shelters, mailboxes, gazebos, pump houses, fences, walkways, roadways and other paved surfaces, recreation fixtures, outdoor fixtures, outdoor swimming pools, flagpoles, light poles, fountains, outside statues and freestanding walls other than retaining walls. "]
[]
[null,null,null,"Exposure",null,null,"Value ($)",null,null,"Exposure",null,null,"Value ($)",null,"Number"]
[null,null,null,"Clubhouse",null,null,{"$f":"IF('Smart Application'!A268=\"Hide\",\"N/a\",IF('Smart Application'!K268=\"\",0,'Smart Application'!K268))","v":0},{"$f":"IF('Smart Application'!G269=\"Hide\",\"N/a\",IF('Smart Application'!N269=\"\",\"\",'Smart Application'!N269))","v":""},null,"HVAC bldg",null,null,{"$f":"IF('Smart Application'!$A268=\"Hide\",\"N/a\",IF('Smart Application'!N268=\"\",0,'Smart Application'!N268))","v":0},{"$f":"IF('Smart Application'!M269=\"Hide\",\"N/a\",IF('Smart Application'!T269=\"\",\"\",'Smart Application'!T269))","v":""},{"$f":"IF('Smart Application'!$A268=\"Hide\",\"N/a\",IF('Smart Application'!O268=\"\",0,'Smart Application'!O268))","v":0}]
[null,null,null,"Meeting Center",null,null,{"$f":"IF('Smart Application'!A269=\"Hide\",\"N/a\",IF('Smart Application'!K269=\"\",0,'Smart Application'!K269))","v":0},{"$f":"IF('Smart Application'!G270=\"Hide\",\"N/a\",IF('Smart Application'!N270=\"\",\"\",'Smart Application'!N270))","v":""},null,"Detached Garages",null,null,{"$f":"IF('Smart Application'!$A269=\"Hide\",\"N/a\",IF('Smart Application'!N269=\"\",0,'Smart Application'!N269))","v":0},{"$f":"IF('Smart Application'!M270=\"Hide\",\"N/a\",IF('Smart Application'!T270=\"\",\"\",'Smart Application'!T270))","v":""},{"$f":"IF('Smart Application'!$A269=\"Hide\",\"N/a\",IF('Smart Application'!O269=\"\",0,'Smart Application'!O269))","v":0}]
[null,null,null,"Water treatment bldg",null,null,{"$f":"IF('Smart Application'!A270=\"Hide\",\"N/a\",IF('Smart Application'!K270=\"\",0,'Smart Application'!K270))","v":0},{"$f":"IF('Smart Application'!G271=\"Hide\",\"N/a\",IF('Smart Application'!N271=\"\",\"\",'Smart Application'!N271))","v":""},null,"Detached Carports",null,null,{"$f":"IF('Smart Application'!$A270=\"Hide\",\"N/a\",IF('Smart Application'!N270=\"\",0,'Smart Application'!N270))","v":0},{"$f":"IF('Smart Application'!M271=\"Hide\",\"N/a\",IF('Smart Application'!T271=\"\",\"\",'Smart Application'!T271))","v":""},{"$f":"IF('Smart Application'!$A270=\"Hide\",\"N/a\",IF('Smart Application'!O270=\"\",0,'Smart Application'!O270))","v":0}]
[null,null,null,null,null,null,null,null,null,"Recreational bldg(s)",null,null,{"$f":"IF('Smart Application'!$A271=\"Hide\",\"N/a\",IF('Smart Application'!N271=\"\",0,'Smart Application'!N271))","v":0},{"$f":"IF('Smart Application'!M272=\"Hide\",\"N/a\",IF('Smart Application'!T272=\"\",\"\",'Smart Application'!T272))","v":""},{"$f":"IF('Smart Application'!$A271=\"Hide\",\"N/a\",IF('Smart Application'!O271=\"\",0,'Smart Application'!O271))","v":0}]
[null,null,null,"Fences/Walls",null,null,{"$f":"IF('Smart Application'!A272=\"Hide\",\"Included\",IF('Smart Application'!K272=\"\",0,'Smart Application'!K272))","v":"Included"},{"$f":"IF('Smart Application'!G273=\"Hide\",\"N/a\",IF('Smart Application'!N273=\"\",\"\",'Smart Application'!N273))","v":""},null,"Pools",null,null,{"$f":"IF('Smart Application'!$A272=\"Hide\",\"Included\",IF('Smart Application'!N272=\"\",0,'Smart Application'!N272))","v":"Included"},{"$f":"IF('Smart Application'!M273=\"Hide\",\"N/a\",IF('Smart Application'!T273=\"\",\"\",'Smart Application'!T273))","v":""},{"$f":"IF('Smart Application'!$A272=\"Hide\",\"N/a\",IF('Smart Application'!O272=\"\",0,'Smart Application'!O272))","v":"N/a"}]
[null,null,null,"Signs ",null,null,{"$f":"IF('Smart Application'!A273=\"Hide\",\"Included\",IF('Smart Application'!K273=\"\",0,'Smart Application'!K273))","v":"Included"},{"$f":"IF('Smart Application'!G274=\"Hide\",\"N/a\",IF('Smart Application'!N274=\"\",\"\",'Smart Application'!N274))","v":""},null,"Spa/Hot Tub",null,null,{"$f":"IF('Smart Application'!$A273=\"Hide\",\"Included\",IF('Smart Application'!N273=\"\",0,'Smart Application'!N273))","v":"Included"},{"$f":"IF('Smart Application'!M274=\"Hide\",\"N/a\",IF('Smart Application'!T274=\"\",\"\",'Smart Application'!T274))","v":""},{"$f":"IF('Smart Application'!$A273=\"Hide\",\"N/a\",IF('Smart Application'!O273=\"\",0,'Smart Application'!O273))","v":"N/a"}]
[null,null,null,"Kiosks/Mailboxes",null,null,{"$f":"IF('Smart Application'!A274=\"Hide\",\"Included\",IF('Smart Application'!K274=\"\",0,'Smart Application'!K274))","v":"Included"},{"$f":"IF('Smart Application'!G275=\"Hide\",\"N/a\",IF('Smart Application'!N275=\"\",\"\",'Smart Application'!N275))","v":""},null,"Whirlpool",null,null,{"$f":"IF('Smart Application'!$A274=\"Hide\",\"Included\",IF('Smart Application'!N274=\"\",0,'Smart Application'!N274))","v":"Included"},{"$f":"IF('Smart Application'!M275=\"Hide\",\"N/a\",IF('Smart Application'!T275=\"\",\"\",'Smart Application'!T275))","v":""},{"$f":"IF('Smart Application'!$A274=\"Hide\",\"N/a\",IF('Smart Application'!O274=\"\",0,'Smart Application'!O274))","v":"N/a"}]
[null,null,null,"Lights / poles ",null,null,{"$f":"IF('Smart Application'!A275=\"Hide\",\"Included\",IF('Smart Application'!K275=\"\",0,'Smart Application'!K275))","v":"Included"},{"$f":"IF('Smart Application'!G276=\"Hide\",\"N/a\",IF('Smart Application'!N276=\"\",\"\",'Smart Application'!N276))","v":""},null,"Pool House",null,null,{"$f":"IF('Smart Application'!$A275=\"Hide\",\"Included\",IF('Smart Application'!N275=\"\",0,'Smart Application'!N275))","v":"Included"},{"$f":"IF('Smart Application'!M276=\"Hide\",\"N/a\",IF('Smart Application'!T276=\"\",\"\",'Smart Application'!T276))","v":""},{"$f":"IF('Smart Application'!$A275=\"Hide\",\"N/a\",IF('Smart Application'!O275=\"\",0,'Smart Application'!O275))","v":"N/a"}]
[null,null,null,"Paved Streets",null,null,{"$f":"IF('Smart Application'!A276=\"Hide\",\"Included\",IF('Smart Application'!K276=\"\",0,'Smart Application'!K276))","v":"Included"},{"$f":"IF('Smart Application'!G277=\"Hide\",\"N/a\",IF('Smart Application'!N277=\"\",\"\",'Smart Application'!N277))","v":""},null,"Pump House",null,null,{"$f":"IF('Smart Application'!$A276=\"Hide\",\"Included\",IF('Smart Application'!N276=\"\",0,'Smart Application'!N276))","v":"Included"},{"$f":"IF('Smart Application'!M277=\"Hide\",\"N/a\",IF('Smart Application'!T277=\"\",\"\",'Smart Application'!T277))","v":""},{"$f":"IF('Smart Application'!$A276=\"Hide\",\"N/a\",IF('Smart Application'!O276=\"\",0,'Smart Application'!O276))","v":"N/a"}]
[null,null,null,"Sidewalks",null,null,{"$f":"IF('Smart Application'!A277=\"Hide\",\"Included\",IF('Smart Application'!K277=\"\",0,'Smart Application'!K277))","v":"Included"},{"$f":"IF('Smart Application'!G278=\"Hide\",\"N/a\",IF('Smart Application'!N278=\"\",\"\",'Smart Application'!N278))","v":""},null,"Cabanas",null,null,{"$f":"IF('Smart Application'!$A277=\"Hide\",\"Included\",IF('Smart Application'!N277=\"\",0,'Smart Application'!N277))","v":"Included"},{"$f":"IF('Smart Application'!M278=\"Hide\",\"N/a\",IF('Smart Application'!T278=\"\",\"\",'Smart Application'!T278))","v":""},{"$f":"IF('Smart Application'!$A277=\"Hide\",\"N/a\",IF('Smart Application'!O277=\"\",0,'Smart Application'!O277))","v":"N/a"}]
[null,null,null,"Monuments",null,null,{"$f":"IF('Smart Application'!A278=\"Hide\",\"Included\",IF('Smart Application'!K278=\"\",0,'Smart Application'!K278))","v":"Included"},{"$f":"IF('Smart Application'!G279=\"Hide\",\"N/a\",IF('Smart Application'!N279=\"\",\"\",'Smart Application'!N279))","v":""},null,"Playgrounds",null,null,{"$f":"IF('Smart Application'!$A278=\"Hide\",\"Included\",IF('Smart Application'!N278=\"\",0,'Smart Application'!N278))","v":"Included"},{"$f":"IF('Smart Application'!M279=\"Hide\",\"N/a\",IF('Smart Application'!T279=\"\",\"\",'Smart Application'!T279))","v":""},{"$f":"IF('Smart Application'!$A278=\"Hide\",\"N/a\",IF('Smart Application'!O278=\"\",0,'Smart Application'!O278))","v":"N/a"}]
[null,null,null,"Benches",null,null,{"$f":"IF('Smart Application'!A279=\"Hide\",\"Included\",IF('Smart Application'!K279=\"\",0,'Smart Application'!K279))","v":"Included"},{"$f":"IF('Smart Application'!G280=\"Hide\",\"N/a\",IF('Smart Application'!N280=\"\",\"\",'Smart Application'!N280))","v":""},null,"Basketball courts",null,null,{"$f":"IF('Smart Application'!$A279=\"Hide\",\"Included\",IF('Smart Application'!N279=\"\",0,'Smart Application'!N279))","v":"Included"},{"$f":"IF('Smart Application'!M280=\"Hide\",\"N/a\",IF('Smart Application'!T280=\"\",\"\",'Smart Application'!T280))","v":""},{"$f":"IF('Smart Application'!$A279=\"Hide\",\"N/a\",IF('Smart Application'!O279=\"\",0,'Smart Application'!O279))","v":"N/a"}]
[null,null,null,"Sprinkler/Irrigation system",null,null,{"$f":"IF('Smart Application'!A280=\"Hide\",\"Included\",IF('Smart Application'!K280=\"\",0,'Smart Application'!K280))","v":"Included"},{"$f":"IF('Smart Application'!G281=\"Hide\",\"N/a\",IF('Smart Application'!N281=\"\",\"\",'Smart Application'!N281))","v":""},null,"Volleyball courts",null,null,{"$f":"IF('Smart Application'!$A280=\"Hide\",\"Included\",IF('Smart Application'!N280=\"\",0,'Smart Application'!N280))","v":"Included"},{"$f":"IF('Smart Application'!M281=\"Hide\",\"N/a\",IF('Smart Application'!T281=\"\",\"\",'Smart Application'!T281))","v":""},{"$f":"IF('Smart Application'!$A280=\"Hide\",\"N/a\",IF('Smart Application'!O280=\"\",0,'Smart Application'!O280))","v":"N/a"}]
[null,null,null,"Gate house",null,null,{"$f":"IF('Smart Application'!A281=\"Hide\",\"Included\",IF('Smart Application'!K281=\"\",0,'Smart Application'!K281))","v":"Included"},{"$f":"IF('Smart Application'!G282=\"Hide\",\"N/a\",IF('Smart Application'!N282=\"\",\"\",'Smart Application'!N282))","v":""},null,"Tennis courts",null,null,{"$f":"IF('Smart Application'!$A281=\"Hide\",\"Included\",IF('Smart Application'!N281=\"\",0,'Smart Application'!N281))","v":"Included"},{"$f":"IF('Smart Application'!M282=\"Hide\",\"N/a\",IF('Smart Application'!T282=\"\",\"\",'Smart Application'!T282))","v":""},{"$f":"IF('Smart Application'!$A281=\"Hide\",\"N/a\",IF('Smart Application'!O281=\"\",0,'Smart Application'!O281))","v":"N/a"}]
[]
[null,null,null,"Exposures Not Listed Above - (manually entered exposures not listed above)"]
[null,null,null,{"$f":"IF('Smart Application'!A284=\"Hide\",\"N/a\",IF('Smart Application'!J284=\"\",0,'Smart Application'!J284))","v":"N/a"},null,null,{"$f":"IF('Smart Application'!A284=\"Hide\",\"N/a\",IF('Smart Application'!K284=\"\",0,'Smart Application'!K284))","v":"N/a"},null,null,{"$f":"IF('Smart Application'!A284=\"Hide\",\"N/a\",IF('Smart Application'!M284=\"\",0,'Smart Application'!M284))","v":"N/a"},null,null,{"$f":"IF('Smart Application'!A284=\"Hide\",\"N/a\",IF('Smart Application'!N284=\"\",0,'Smart Application'!N284))","v":"N/a"}]
[null,null,null,{"$f":"IF('Smart Application'!A285=\"Hide\",\"N/a\",IF('Smart Application'!J285=\"\",0,'Smart Application'!J285))","v":"N/a"},null,null,{"$f":"IF('Smart Application'!A285=\"Hide\",\"N/a\",IF('Smart Application'!K285=\"\",0,'Smart Application'!K285))","v":"N/a"},null,null,{"$f":"IF('Smart Application'!A285=\"Hide\",\"N/a\",IF('Smart Application'!M285=\"\",0,'Smart Application'!M285))","v":"N/a"},null,null,{"$f":"IF('Smart Application'!A285=\"Hide\",\"N/a\",IF('Smart Application'!N285=\"\",0,'Smart Application'!N285))","v":"N/a"}]
[null,null,null,{"$f":"IF('Smart Application'!A287=\"Hide\",\"N/a\",IF('Smart Application'!J287=\"\",0,'Smart Application'!J287))","v":"N/a"},null,null,{"$f":"IF('Smart Application'!A287=\"Hide\",\"N/a\",IF('Smart Application'!K287=\"\",0,'Smart Application'!K287))","v":"N/a"},null,null,{"$f":"IF('Smart Application'!A287=\"Hide\",\"N/a\",IF('Smart Application'!M287=\"\",0,'Smart Application'!M287))","v":"N/a"},null,null,{"$f":"IF('Smart Application'!A287=\"Hide\",\"N/a\",IF('Smart Application'!N287=\"\",0,'Smart Application'!N287))","v":"N/a"}]
[]
[null,{"$f":"IF('Smart Application'!A289=\"Hide\",\"N/a\",IF('Smart Application'!A289=\"\",\"\",'Smart Application'!H289))","v":0},null,"Total Amenities/Other Buildings Lump Sum Value (total per the above)"]
[]
[null,{"$f":"IF('Smart Application'!A291=\"Hide\",\"N/a\",IF('Smart Application'!A291=\"\",\"\",'Smart Application'!H291))","v":0},null,"Community Personal Property and Property Contained in Units (enter value in column to the left)\nProperty Contained in Units: Personal Property contained in units where insurance is required by the Association Documents \n(Attach an itemized schedule of the items with your submission)"]
[null,{"$f":"IF('Smart Application'!A293=\"Hide\",\"N/a\",IF('Smart Application'!A293=\"\",\"\",'Smart Application'!H293))","v":0},null,"Maintenance Fees and Assessments (enter value in column to the left)\nConsequential Coverage’s: Coverage is provided for Maintenance Fees and Assessments as well as Community Income on an actual loss sustained basis. "]
[]
[null,null,"Deductibles: ","Deductible options are subject to change as determined by the Distinguished underwriting process. Be sure to refer to the quote if/when presented to confirm the options available. Ice Damming deductible will not apply in GA, AZ or CA."]
[]
[null,null,null,null,"Deductible",null,"Deductible Option",null,null,"Deductible Application Option"]
[null,null,null,null,"AOP/Basic",null,{"$f":"IF('Smart Application'!$A298=\"Show\",'Smart Application'!K298,'Smart Application'!K307)","v":0},null,null,{"$f":"IF('Smart Application'!$A298=\"Show\",'Smart Application'!L298,'Smart Application'!L307)","v":"Standard Option"}]
[null,null,null,null,"Water Damage",null,{"$f":"IF('Smart Application'!$A299=\"Show\",'Smart Application'!K299,'Smart Application'!K308)","v":0},null,null,{"$f":"IF('Smart Application'!$A299=\"Show\",'Smart Application'!L299,'Smart Application'!L308)","v":"Standard Option"}]
[null,null,null,null,"Ice Damming",null,{"$f":"IF('Smart Application'!$A300=\"Show\",'Smart Application'!K300,'Smart Application'!K309)","v":0},null,null,{"$f":"IF('Smart Application'!$A300=\"Show\",'Smart Application'!L300,'Smart Application'!L309)","v":"Always Per Unit"}]
[null,null,null,null,"Sprinkler Leakage",null,{"$f":"IF('Smart Application'!$A301=\"Show\",'Smart Application'!K301,'Smart Application'!K310)","v":0},null,null,{"$f":"IF('Smart Application'!$A301=\"Show\",'Smart Application'!L301,'Smart Application'!L310)","v":"Standard Option"}]
[null,null,null,null,"Sewer Backup",null,{"$f":"IF('Smart Application'!$A302=\"Show\",'Smart Application'!K302,'Smart Application'!K311)","v":0},null,null,{"$f":"IF('Smart Application'!$A302=\"Show\",'Smart Application'!L302,'Smart Application'!L311)","v":"Standard Option"}]
[null,null,null,null,"Wind or Hail",null,{"$f":"IF('Broker & Insured Information'!$E$41=\"CA\",IF('Smart Application'!$A$304=\"Show\",'Smart Application'!$K$304,'Smart Application'!$K$313),IF('Smart Application'!$A$303=\"Show\",'Smart Application'!$K$303,'Smart Application'!$K$312))","v":"(None)"},null,null,{"$f":"IF('Smart Application'!$A303=\"Show\",'Smart Application'!L303,'Smart Application'!L312)","v":"Always Per Building"}]
[null,null,null,null,null,null,null,null,null,{"$f":"IF(OR('Smart Application'!A304=\"Show\",'Smart Application'!A313=\"Show\"),\"*Occurrence Options Based on Replacement Cost (CA only)\",\"\")","v":""}]
[null,null,null,"Boiler and Machinery (Equipment Breakdown) Coverage is included for equipment breakdown on a replacement cost basis."]
[null,{"$f":"IF('Smart Application'!A316=\"Hide\",\"N/a\",IF('Smart Application'!A316=\"\",\"\",'Smart Application'!H316))","v":0},null,null,"Does any building have a hot water or steam boiler?"]
[null,{"$f":"IF('Smart Application'!A317=\"Hide\",\"N/a\",IF('Smart Application'!A317=\"\",\"\",'Smart Application'!H317))","v":0},null,null,"Does any building have a central air conditioning system servicing the entire building?"]
[]
[null,null,"Directors and Officers Liability"]
[null,{"$f":"IF('Smart Application'!A323=\"Hide\",\"N/a\",IF('Smart Application'!A323=\"\",\"\",'Smart Application'!H323))","v":0},null,"Have there been any D&O claims made against the Association in the last five years?"]
[null,null,null,null," (If yes, 5 year currently valued D&O loss run and description of the claim with corrective actions required. Associations currently experiencing open claims are not eligible)."]
[null,{"$f":"IF('Smart Application'!A326=\"Hide\",\"N/a\",IF('Smart Application'!A326=\"\",\"\",'Smart Application'!H326))","v":0},null,"Does the Association anticipate any renovations in the next year? (Excludes new\nconstruction of units of purchasing.)"]
[null,{"$f":"IF('Smart Application'!A327=\"Hide\",\"N/a\",IF('Smart Application'!A327=\"\",\"\",'Smart Application'!H327))","v":0},null,"Does any single entity own more than 30% of the total units? (Excludes units owned by Developer awaiting sale.)"]
[]
[null,null,"Fidelity/Crime "]
[null,null,"We can offer a standalone Crime policy up to $5M in limits. Confirmation of the below procedural requirements is required to offer terms. We will provide the lowest available deductible option for the requested limit and Agreements."]
[null,{"$f":"IF('Smart Application'!A331=\"Hide\",\"N/a\",IF('Smart Application'!A331=\"\",\"\",'Smart Application'!H331))","v":0},"Total Limit Needed (enter amount to the left)"]
[null,{"$f":"IF('Smart Application'!A332=\"Hide\",\"N/a\",IF('Smart Application'!A332=\"\",\"\",'Smart Application'!H332))","v":0},"Agreements Needed"]
[]
[null,null,"Item 1: Required Association Characteristics"]
[null,null,null,"The entity is a non-profit community association."]
[null,null,null,"The association has been Crime claim-free for the last 5 years."]
[null,null,null,"The association does not have more than 25 employees on payroll."]
[null,null,"Item 2: Procedures"]
[null,null,null,"Dues/Fees/Mortgage payments are always received as checks, not cash."]
[null,null,null,"Vouchers/supporting records are stamped “PAID” when checks are signed. If records are kept electronically, there is a system in place to indicate that a check has been issued to prevent duplication."]
[null,null,null,"Anyone authorized to fire or hire association employees is prohibited from distributing payroll. If there is no payroll, this question does not apply."]
[null,null,null,"Volunteers (other than Directors & Officers) are prohibited from handling bank accounts or fee/mortgage payments. If there are no other volunteers, aside from Directors & Officers, this does not apply."]
[null,null,"Item 3: Oversight/Reconciliation "]
[null,null,null,"Are the associations’ bank accounts and credit card statements are reconciled monthly by someone not authorized to deposit, withdraw, initiate electronic funds transfer, or use an association credit card?"]
[null,null,null,"If Association utilizes Traditional Banking, countersignatures are required on all checks over $500"]
[null,null,null,"If Association utilizes Electronic Banking, they must meet the following:"]
[null,null,null,null,"The board approves all checks/expenditures and also verifies the completion/receipt of purchased services or goods."]
[null,null,null,null,"The employee creating the check or payment request does not also sign or approve."]
[null,null,null,null,"The board receives a monthly statement directly from the bank (via mail in a sealed envelope or via e-mail directly from the bank’s website) and reviews it on a monthly basis."]
[null,{"$f":"IF('Smart Application'!A350=\"Hide\",\"N/a\",IF('Smart Application'!A350=\"\",\"\",'Smart Application'!H350))","v":0},"By confirming via this box I acknowledge that I have read items above and agree that this association complies."]
[]
[null,null,"Umbrella/Excess Liability Option"]
[null,null,"If eligible, you will receive a $1MM Umbrella quote that will include options up to $200MM."]
[null,null,"Community Association Package policies bound with Umbrellas receive 15% commission."]
[null,null,"We require that all underlying insurance for which you want the umbrella to provide coverage, meet the following minimum requirements. Listed below are the only coverages that qualify as underlying insurance. In addition, coverage for defense costs on the underlying General Liability, Auto Liability, and Employer's Liability policies must be in addition to the limits of liability."]
[null,null,null,null,null,null,null,1000000,null,"Per Occurrence"]
[null,null,null,"Commercial General Liability (CGL)",null,null,null,2000000,null,"General Aggregate Per Location"]
[null,null,null,null,null,null,null,1000000,null,"Personal & Advertising Injury"]
[]
[null,null,null,"Commercial Auto Liability",null,null,null,1000000,null,"Combined Single Limit"]
[]
[null,null,null,null,null,null,null,500000,null,"Each Accident"]
[null,null,null,"Employer's Liability:",null,null,null,500000,null,"Each Policy"]
[null,null,null,null,null,null,null,500000,null,"Each Employee"]
[]
[null,null,null,"Garage Keepers Legal Liability",null,null,null,1000000,null,"Each Occurrence/Aggregate"]
[]
[null,null,null,null,null,null,null,1000000,null,"Each Claim (Indemnity)"]
[null,null,null,"Directors & Officers Liability",null,null,null,1000000,null,"Each Claim (Defense)"]
[null,null,null,"(Not for Profit Community Associations Only)",null,null,null,1000000,null,"Aggregate each Association"]
[null,null,null,"*See form requirements below",null,null,null,null,"OR"]
[null,null,null,null,null,null,null,2000000,null,"Each Claim (Defense inside the limit)"]
[null,null,null,null,null,null,null,2000000,null,"Aggregate each Association"]
[null,null,null,"All primary insurers must have an AM Best rating of A-VI or better. However, we will provide coverage over Employers Liability placed with Certified State Funds, and/or carriers with an AM Best Rating of B++ VI or better."]
[null,null,null,"*Endorsement from Directors & Officers Liability on the Commercial General Liability policy is eligible only if the D&O has its own separate unimpeded limit."]
[null,null,null,"*Underlying Directors & Officers Liability must include Duty to Defend wording."]
[null,null,null,"*Granite State Form 101140 (04/09) is acceptable only when written in conjunction with the DPG City Homes Program."]
[null,null,null,"*New Hampshire Form NH74321 (9/99) is acceptable only when written in conjunction with the DPG New York Brick & Brownstone Program"]
[null,{"$f":"IF('Smart Application'!A379=\"Hide\",\"N/a\",IF('Smart Application'!A379=\"\",\"\",'Smart Application'!H379))","v":0},"By confirming via this box I acknowledge that I have read completely through the above and agree that all primary insurance either currently complies or will be placed and/or amended to be in compliance with the underlying requirements prior to binding."]
[]
[null,null,"Signature"]
[null,"Notice to applicants: Any person who knowingly and with intent to defraud any insurance company or another person files an application for insurance or statement of claim containing any materially false information or conceals for the purpose of misleading information concerning any fact material thereto, commits a fraudulent act, which is a crime and subjects the person to criminal and civil penalties. (Not applicable in Colorado, Ohio, Oregon, or Washington; in Virginia, insurance benefits may also be denied.)"]
[]
[null,"Notice to Colorado applicants: It is unlawful to knowingly provide false, incomplete or misleading facts or information to an insurance company for the purposes of defrauding or attempting to defraud the company. Penalties may include imprisonment, fines, denial of insurance and civil damages. Any insurance company or agent of an insurance company who knowingly provides false, incomplete or misleading facts or information to a policy holder or claimant for the purpose  of defrauding or attempting to defraud the policy holder or claimant with regard to a settlement or award payable from insurance proceeds hall be reported to the Colorado Division of Insurance within the Department of Regulatory Agencies."]
[null,"Notice to Ohio applicants: Any person with intent to defraud or knowing that he / she is facilitating a fraud against an insurer, submits an application or files a claim containing a false or deceptive statement is guilty of insurance fraud."]
[null,"Notice to Oregon applicants: Any person who knowingly and with intent to defraud any insurance company or another person files an application for insurance or statement of claim containing any materially false information or conceals for the purpose of misleading information concerning any fact material thereto, may be committing a fraudulent insurance act, which is a crime and may subject the persona to criminal and civil penalties."]
[null,"Notice to Washington applicants: It is a crime to knowingly provide false, incomplete or misleading information to an insurance company for the purpose of defrauding the company. Penalties include imprisonment, fines and denial of insurance benefits."]
[]
[null,"It is understood and agreed that this policy does not apply to any D&O claim made against any insured based upon, arising out of, relating to, directly or indirectly resulting from or in consequence of, or in any way involving any wrongful act or any fact, matter, circumstance, situation, transaction, casualty, event or decision, known by the insured prior to the initial coverage date, which would indicate the probability of such claim being made. Please obtain a copy of the policy through your broker and read it carefully."]
[]
["This application must be signed by the association’s property manager or by a member of the board of trustees of the association in order to bind coverage.\nThe signature confirms that the signee has reviewed the application in its entirety and confirms that all information provided is accurate to the best of the signee's knowledge. \nAny previously presented quote is subject to change if any corrections to this application are needed. "]
[]
[null,"Proposed Insured:",{"$f":"'Broker & Insured Information'!E19","v":0}]
[]
[null,"Signature:"]
[]
[]
[null,"Printed Name of Signee:"]
[]
[]
[null,"Title/Relationship to Insured:"]
[null,"Date:"]

{"sheet":"RPA Data","index":5,"n_rows":291,"n_cols":10,"rows_kept":291,"cut":false,"hidden":true,"merged":[]}
["BROKER","BROKER DETAILS",null,null,null,null,{"$f":"'Printable App'!M1","v":"App Version:"},{"$f":"'Printable App'!N1","v":2.0821201899999999}]
[null,null,"Brokerage Name",{"$f":"'Printable App'!C5","v":0}]
[null,null,"Address 1",{"$f":"'Printable App'!C6","v":0}]
[null,null,"Address 2"]
[null,null,"Zip Code",{"$f":"'Printable App'!F8","v":0}]
[null,null,"City",{"$f":"'Printable App'!C7","v":0}]
[null,null,"State",{"$f":"'Printable App'!C8","v":0}]
[null,null,"Phone"]
[null,null,"Extension"]
[null,null,"Fax"]
[null,"CONTACT"]
[null,null,"Override Division & Role Assignments"]
[null,null,"Contact Full Name",{"$f":"'Printable App'!K5","v":0}]
[null,null,"Choose A Contact"]
[null,null,"Phone"]
[null,null,"Email"]
[null,null,"Production Underwriter"]
[null,null,"Service Underwriter"]
[null,null,"Marketing Exec"]
[null,"ACKNOWLEDGEMENT"]
[null,null,"I understand and agree to the above terms.","(CONFIRM)"]
["INSURED","PROPOSED INSURED"]
[null,null,"Named Insured",{"$f":"'Printable App'!C10","v":0}]
[null,null,"Insured Inspection Contact Name:",{"$f":"'Printable App'!L11","v":0}]
[null,null,"Insured Inspection Contact Phone Number:",{"$f":"'Printable App'!L12","v":0}]
[null,null,"DBA"]
[null,null,"Type of Ownership","Nonprofit Community Association"]
[null,null,"Does your agency control the business?",{"$f":"'Printable App'!M6","v":0}]
[null,"INSURED MAILING ADDRESS"]
[null,null,"Address 1",{"$f":"'Printable App'!C11","v":0}]
[null,null,"Address 2",{"$f":"'Printable App'!C12","v":0}]
[null,null,"Zip Code",{"$f":"'Printable App'!C15","v":0}]
[null,null,"City",{"$f":"'Printable App'!C13","v":0}]
[null,null,"State",{"$f":"'Printable App'!C14","v":0}]
[null,null,"Override Address"]
[null,null,"AIM Insured ID"]
[null,null,"Prior Insured ID"]
[null,null,"Estart Number"]
[null,"INSURED PHYSICAL ADDRESS"]
[null,null,"Edit Physical Addres","x"]
[null,null,"Physical Address 1",{"$f":"'Printable App'!C25","v":0}]
[null,null,"Physical Address 2"]
[null,null,"Zip Code",{"$f":"'Printable App'!C29","v":0}]
[null,null,"City",{"$f":"'Printable App'!C13","v":0}]
[null,null,"State",{"$f":"'Printable App'!C14","v":0}]
[null,null,"County",{"$f":"'Printable App'!C28","v":0}]
[null,null,"Insured Email Addres","n/a"]
[null,"POLICY DETAILS INSURED"]
[null,null,"Policy Term"]
[null,null,"Effective Date",{"$f":"'Printable App'!L26","v":"00:00:00"}]
[null,null,"Expiration Date",{"$f":"'Printable App'!L27","v":"00:00:00"}]
[null,null,"Renewal Conversion Indicator",null,null,null,null,null,null,",,,,"]
[null,"INTERNAL INFORMATION"]
[null,null,"Description Override","skip",null,null,null,null,"Residential Condominium","Residential Condominium Association"]
[null,null,"Ineligibility Override","skip",null,null,null,null,"Cooperative Apartment","Cooperative Apartment"]
[null,null,"Ineligibility Override Comment","skip",null,null,null,null,"HOA or PUD (No Habitational Bldgs)","Homeowners Association - Non-Residential"]
[null,null,"Agency Type","skip",null,null,null,null,"Master Association","Homeowners Association - Master"]
[null,null,"Issue Indicator","skip",null,null,null,null,"Townhouse Association","Residential Condominium Association"]
[null,"MANUSCRIPT VERSIONS",null,null,null,null,null,null,null,"Homeowners Association - Residential"]
["Property","BUILDINGS AND STRUCTURES",null,null,null,null,null,null,null,"Office Condominium Association"]
[null,null,"Asscociation Type",{"$f":"VLOOKUP('Printable App'!F31,AssocType,2,FALSE)","v":{"$error":"#N/A"}}]
[null,null,"Occupancy Type","Year Round"]
[null,null,"Protection Class",{"$f":"'Printable App'!B281","v":""}]
[null,null,"Construction Type",{"$f":"IF('Printable App'!B263=\"\",\"Frame\",'Printable App'!B263)","v":"Frame"}]
[null,null,"Total # of Units",{"$f":"'Printable App'!D37","v":0}]
[null,null,"Number of Buildings",{"$f":"'Printable App'!F32","v":0}]
[null,null,"Number of Stories",{"$f":"IF(SOV!E10=0,1,SOV!E10)","v":1}]
[null,null,"Year Built",{"$f":"'Printable App'!M31","v":0}]
[null,null,"Wood Roof","N"]
[null,null,"Broadening Endorsement","Y"]
[null,"LIMITS"]
[null,null,"Buildings/Structures",{"$f":"'Printable App'!B283","v":0}]
[null,null,"Other Property",{"$f":"'Printable App'!B307","v":0}]
[null,null,"Units",0]
[null,null,"Community Personal Property",{"$f":"'Printable App'!B309","v":0}]
[null,null,"Loss Of Income",{"$f":"'Printable App'!B310","v":0}]
[null,"DEDUCTIBLES"]
[null,null,"Basic",{"$f":"'Printable App'!G315","v":0}]
[null,null,"Ice Damming",{"$f":"'Printable App'!G317","v":0}]
[null,null,"Water Damage",{"$f":"'Printable App'!G316","v":0}]
[null,null,"Sprinkler Leakage",{"$f":"'Printable App'!G318","v":0}]
[null,null,"Sewer Backup",{"$f":"'Printable App'!G319","v":0}]
[null,null,"Wind/Hall",{"$f":"'Printable App'!G320","v":"(None)"}]
[null,"MODIFIERS"]
[null,null,"Fully Sprinklered",{"$f":"IF('Printable App'!B279=\"\",\"No\",'Printable App'!B279)","v":"No"}]
[null,"PER UNIT DEDUCTIBLES"]
[null,null,"Basic"]
[null,null,"Water Damage",{"$f":"IF('Printable App'!J316=\"Standard Option\",\"No\",\"Yes\")","v":"No"}]
[null,null,"Sprinkler Leakage",{"$f":"IF('Printable App'!J318=\"Standard Option\",\"No\",\"Yes\")","v":"No"}]
[null,null,"Sewer Backup",{"$f":"IF('Printable App'!J319=\"Standard Option\",\"No\",\"Yes\")","v":"No"}]
["General Liability","EXPOSURES"]
[null,null,"Territory"]
[null,null,"Office Condo Area (sq ft)",0]
[null,null,"Mercantile Exposure (sq ft)",0]
[null,null,"Number of Pools",{"$f":"IF('Printable App'!O291=\"N/a\",0,'Printable App'!O291)","v":0}]
[null,"ADDITIONAL EXPOSURES"]
[null,null,"Golf Course (receipts)",0]
[null,null,"Golf Cart Rentals (receipts)",0]
[null,null,"Boat Rentals (receipts)",0]
[null,null,"Restaurant - No Alcohol (receipts)",0]
[null,null,"Restaurant - < 75% Alcohol (receipts)",0]
[null,null,"Restaurant - > 75% Alcohol (receipts)",0]
[null,null,"Rental of Community Facilities (Non-Member) (receipts)",0]
[null,null,"Docks & Piers (acres)",0]
[null,null,"Lake/Pond (acres)",0]
[null,null,"Lake/Pond with Dam, Levy or Dike (acres)",0]
[null,"MULTIPLIERS"]
[null,null,"Med Pay Limit (per person)",5000]
[null,null,"Property Coverage","yes"]
[null,"MODIFIERS"]
[null,null,"Property Damage Legal Liability Deductible",0]
[null,null,"Exclusion-Sidewalks, Streets, Roads, Highways or Bridges","No"]
[null,null,"Responsible for Road Maintenace (HOA Only)",{"$f":"IF('Printable App'!K21=\"Association Not Responsible\",\"No\",\"Yes\")","v":"Yes"}]
[null,null,"# of Miles",{"$f":"IF('Printable App'!B145=\"N/a\",0,'Printable App'!B145)","v":""}]
[null,"GL EACH OCCURRENCE/GENERAL AGGREGATE LIMITS"]
[null,null,"GL Each Occurrence/General Aggregate Limits",{"$f":"IF('Printable App'!B193=\"$1MM per Occurrence/$2MM Aggregate\",\"$1M Each Occurrence/$2M General Aggregate\",\"$2M Each Occurrence/$4M General Aggregate\")","v":"$1M Each Occurrence/$2M General Aggregate"}]
[null,"GARAGE & PARKING LEGAL LIABILITY"]
[null,null,"Comprehensive - Limit",0]
[null,null,"Comprehensive - Deductible",0]
[null,null,"Collision - Limit",0]
[null,null,"Collision - Deductible",0]
[null,"EMPLOYEE BENEFITS LIABILITY"]
[null,null,"Coverage","No"]
[null,null,"Number Of Employees",{"$f":"'Printable App'!K18","v":0}]
[null,"HIRED & NON-OWNED AUTO"]
[null,null,"Hired Auto","Yes"]
[null,null,"Non-Owned Auto","Yes"]
[null,null,"Number Of Drivers",0]
[null,null,"Frequency Of Use","Incidental"]
[]
[]
["UMBRELLA INSURED","PROPOSED INSURED"]
[null,null,"Named Insured",{"$f":"D23","v":0}]
[null,null,"Insured Inspection Contact Name:",0]
[null,null,"Insured Inspection Contact Phone Number:",0]
[null,null,"DBA"]
[null,null,"Type of Ownership","Nonprofit Community Association"]
[null,null,"Does your agency control the business?",0]
[null,"INSURED MAILING ADDRESS"]
[null,null,"Address 1",0]
[null,null,"Address 2"]
[null,null,"Zip Code",0]
[null,null,"City",0]
[null,null,"State",0]
[null,null,"Override Address"]
[null,null,"AIM Insured ID"]
[null,null,"Prior Insured ID"]
[null,null,"Estart Number"]
[null,"INSURED PHYSICAL ADDRESS"]
[null,null,"Edit Physical Addres"]
[null,null,"Physical Address 1",0]
[null,null,"Physical Address 2"]
[null,null,"Zip Code",0]
[null,null,"City",0]
[null,null,"State"]
[null,null,"County",0]
[null,null,"Insured Email Addres",0]
[null,"POLICY DETAILS INSURED"]
[null,null,"Policy Term"]
[null,null,"Effective Date",0]
[null,null,"Expiration Date",0]
[null,null,"Renewal Conversion Indicator"]
[null,null,"Existing Distinguished Programs Master Umbrella?"]
[null,null,"Parent ID"]
[null,null,"Parent Name"]
[null,"INTERNAL INFORMATION"]
[null,null,"Description Override"]
[null,null,"Ineligibility Override"]
[null,null,"Ineligibility Override Comment"]
[null,null,"Agency Type"]
[null,null,"Issue Indicator"]
[null,"MANUSCRIPT VERSIONS"]
[]
[]
["UMBRELLA","ELIGIBILITY STATUS"]
[null,null,"Include Umbrella in my quote","Y"]
[null,null,"Decline Umbrella in my quote."]
[null,null,"Non-renew Umbrella"]
[null,null,"Conditional Renewal Umbrella"]
[]
[null,"Eligibility 1: Building and Exposures"]
[null,null,"By selecting Yes I acknowledge that I have read and complete thhrough items 1 and 2 and agree that all locations comply. ","Y"]
[null,"Eligibility 2: Amenities"]
[null,null,"By selecting Yes I acknowledge that I have read completely through items 1 and 2 above and agree that all locations comply.","Y"]
[null,"Eligibility 3: Life Safety"]
[null,null,"By selecting Yes I acknowledge that I have read completely through the above and agree that all locations comply.","Y"]
[null,"Eligibility 4: Loss History"]
[null,null,"In the past 5 years, have there been aggregate liability losses incurred exceeding $250,000 at any one location within a single policy year?","N"]
[null,null,"In the past 5 years, have there been any of the following types of claims or known incidents at any location?","N"]
[null,"Eligibility 5: Underlying Carrier Info"]
[null,null,"By selecting Yes I acknowledge that I have read completely through the above and agree that all primary insurance either currently complies or will be placed and/or amended to be in compliance with the underlying requirements prior to binding.","Y"]
[]
[null,null,"*Limit","$1MM"]
[null,null,"Risk Quality Modifier"]
[null,null,"Fee Override"]
[null,null,"Fee Modifier"]
[null,null,"No Minimum"]
[null,null,"Product Sub Type"]
[null,null,"*Agent Commission Percentage","Default"]
[null,null,"Special Condition"]
[null,null,"Does Insured Have Other DP Policies?","Yes"]
[null,null,null,"CA Package"]
[null,null,"*Day Care Tenant on Site?"]
[null,null,"*Is this a Community Association where more than 50% of the total units are short term rentals?","N"]
[null,null,"*Timeshare Association?","N"]
[null,null,"*Are more than 20% of the units at any one location Independent Living or Senior Living rentals?","N"]
[null,null,"*Are more than 50% of the occupants at any location occupied by Undergraduate Students?","N"]
[null,null,"*Is there any Warehouse or Light Industrial Exposures at any location?","N"]
[null,null,"*Are there any Owned or Leased Vehicles?","N"]
[null,null,null,"*Automobile Eligibility Complies"]
[null,null,null,"*Type"]
[null,null,null,"*Passenger Capacity"]
[null,null,null,"*# of Vehicles"]
[null,null,null,"Please mark if any vehicles are garaged in the following states:"]
[null,null,null,"None Apply"]
[null,null,null,"Florida"]
[null,null,null,"Louisiana"]
[null,null,null,"New Hampshire"]
[null,null,null,"Vermont"]
[null,null,null,"West Virginia"]
[null,"Location 1:"]
[null,null,"*Address 1"]
[null,null,"Use Physical Address","CLICK BUTTON"]
[null,null,"Address 2"]
[null,null,"*Zip"]
[null,null,"*City"]
[null,null,"*State"]
[null,null,"Risk Quality Modifier"]
[null,null,"Minimums Modifier"]
[null,null,"*Construction Type",{"$f":"D64","v":"Frame"}]
[null,null,"# Of Stories",{"$f":"D67","v":1}]
[null,null,"*Occupancy Type",{"$f":"VLOOKUP(D61,H232:I235,2,FALSE)","v":{"$error":"#N/A"}},null,null,null,"Residential Condominium Association","Condominium Association"]
[null,null,"*Units",{"$f":"D65","v":0},null,null,null,"Cooperative Apartment","Co-op"]
[null,null,"*Commercial Square Footage Only",0,null,null,null,"Homeowners Association - Non-Residential","PUD/HOA/Masters"]
[null,null,"Add Another Occupancy Type",null,null,null,null,"Homeowners Association - Master","PUD/HOA/Masters"]
[null,null,"*# Of Pools",{"$f":"D95","v":0},null,null,null,"Residential Condominium Association"]
[null,null,"*Who is the underlying CGL Carrier?","Great American Insurance Company"]
[null,null,"*Is the Underlying CGL policy written on Surplus lines (non-admitted) paper?","N"]
[null,null,"*Is the association responsible for the rental of any units?","N"]
[null,null,"*Was this building newly constructed or gut rehabbed in the past year?","N"]
[null,null,"Do you want to order an inspection for this location?"]
[]
["D&O"]
[null,null,"Include D&O in my quote",{"$f":"IF(OR('Printable App'!B327=0,'Printable App'!B329=0,'Printable App'!B330=0),\"No\",\"Yes\")","v":"No"}]
[null,null,"Decline D&O in my quote"]
[null,null,"Non-renew D&O"]
[null,null,"Conditional Renewal D&O"]
[null,"D&O Eligibility"]
[null,null,"*By selecting 'Yes', I agree with the above notice.","Y"]
[null,null,"*This program is for non-profit community associations or community associations that practice zero-balance accounting only. For-profit enterprises of any kind are not eligible. By selecting 'Yes', I confirm that this risk complies.","Y"]
[null,"D&O Information"]
[null,null,"*Has the association experienced any D&O claims in the last 5 years?","N"]
[null,null,"*Is the association fully built out?",{"$f":"'Printable App'!D38","v":0}]
[null,null,"*Does the association anticipate any renovations in the next year?","No"]
[null,null,"PPL date:","Override date?"]
[null,null,"*How is the association managed?",{"$f":"IF('Printable App'!K16=\"Yes\",\"Third Party Management Co\",IF('Printable App'!K18>0,\"Self Managed by Association Employees\",\"Not Managed Professionally\"))","v":"Not Managed Professionally"}]
[null,null,"*Property Management Company",{"$f":"'Printable App'!K17","v":0}]
[null,null,"*Agent Commission Percentage","Default"]
[null,"D&O Exposures"]
[null,null,"*Association Type",{"$f":"VLOOKUP(D61,H260:I263,2,FALSE)","v":{"$error":"#N/A"}},null,null,null,"Residential Condominium Association","Residential Condominium Association (COA)"]
[null,null,"Unit Count when fully built",{"$f":"'Printable App'!M38","v":0},null,null,null,"Cooperative Apartment","Cooperative"]
[null,null,"*Current total unit count:",{"$f":"'Printable App'!D37","v":0},null,null,null,"Homeowners Association - Non-Residential","Homeowners Association (HOA)"]
[null,null,"*Does any one entity own more than 50% of the units?","No",null,null,null,"Homeowners Association - Master","Master Association"]
[null,null,"*Average Market Value of a Residential Unit",{"$f":"'Printable App'!M37","v":0}]
[null,null,"*Number of owners past-due on association fees over 90 days:",0]
[null,null,"*Number of employees/leased employees:",{"$f":"'Printable App'!K18","v":0}]
[null,null,"*Nature of operations debit:","skip"]
[null,null,"*Requested Limit:","$1MM"]
[null,null,"*Retention:"]
[null,null,"*Include Absence of Replacement Coverage Reporting Provision? (+5%)"]
[null,null,"*Include Discovery?"]
[]
[]
["CRIME",null,"Include Crime in my quote",{"$f":"IF(OR('Printable App'!B334<>\"\",'Printable App'!B334=0,D286=\"Skip\"),\"No\",\"Yes\")","v":"No"}]
[null,null,"Decline Crime in my quote"]
[null,null,"Non-renew Crime"]
[null,null,"Conditional Renewal Crime"]
[]
[null,"Crime Eligibility"]
[null,null,"*By selecting Yes, I acknowledge that I have read the above, and the Insured meets all underwriting criteria.","Y"]
[null,"Crime Questions"]
[null,null,"*How is the association managed?",{"$f":"D256","v":"Not Managed Professionally"}]
[null,null,"Does the association have a Pension Plan?"]
[null,null,"Name Of Pension Plan"]
[null,"Crime Coverages"]
[null,null,"*Agreement Type",{"$f":"IFERROR(VLOOKUP('Printable App'!B335,'RPA Data'!I286:J287,2,FALSE),\"Skip\")","v":"Skip"},null,null,null,null,"Employee Dishonesty (Agreement #1 Only)","Agreement 1"]
[null,null,"*Limit",{"$f":"'Printable App'!B334","v":0},null,null,null,null,"Agreements 1-6&8","Agreements 1-6,8"]
[null,null,"*Deductible Options","default Lowest for the provided limit"]
[null,null,"*Agent Commission Percentage","default"]
[null,null,"Override Pricing Option"]
[null,null,"Override Limit and Deductible"]